Workbook

Sheet Display
F2: CQG Market Vectors Uranium + Nuclear Energy ETF (US Stocks) | AB2: =RTD("cqg.rtd", ,"SystemInfo", "Linetime") -> 45930.30668
B5: Exchange Traded Funds Performance | S5: Today's Ranked Percent Net Change
B6: Symbol | C6: Description | H6: Last | I6: NC | J6: %NC | K6: NC/ATR | L6: Open | M6: High | N6: Low | O6: Volume | Q6: Ratio
B7: S.NLR | C7: =RTD("cqg.rtd", ,"ContractData",B7, "LongDescription",, "T") -> Market Vectors Uranium+Nuclear EnergyETF | H7: =RTD("cqg.rtd", ,"ContractData",B7, "LastTradeToday",, "T") ->  | I7: =RTD("cqg.rtd", ,"ContractData",B7, "NetLastTradeToday",, "T") ->  | J7: =IFERROR(RTD("cqg.rtd", ,"ContractData",B7, "PerCentNetLastTrade",, "T")/100,"") ->  | K7: =IFERROR(I7/RTD("cqg.rtd",,"StudyData",B7, "ATR", "MaType=Sim,Period=10", "ATR","D","-1","ALL",,,"FALSE","T")/100,"") ->  | L7: =RTD("cqg.rtd", ,"ContractData",B7, "OPen",, "T") ->  | M7: =RTD("cqg.rtd", ,"ContractData", B7, "HIgh",, "T") ->  | N7: =RTD("cqg.rtd", ,"ContractData",B7, "LOw",, "T") ->  | O7: =RTD("cqg.rtd", ,"ContractData",B7, "T_CVol",, "T") -> 2311 | Q7: =IFERROR(O7/RTD("cqg.rtd",,"StudyData",B7, "MA", "InputChoice=Vol,MAType=Sim,Period=21", "MA","D","-1","all",,,,"T"),"") -> 0.003959467894
B8: S.SMH | C8: =RTD("cqg.rtd", ,"ContractData",B8, "LongDescription",, "T") -> VanEck Semiconductor ETF | H8: =RTD("cqg.rtd", ,"ContractData",B8, "LastTradeToday",, "T") ->  | I8: =RTD("cqg.rtd", ,"ContractData",B8, "NetLastTradeToday",, "T") ->  | J8: =IFERROR(RTD("cqg.rtd", ,"ContractData",B8, "PerCentNetLastTrade",, "T")/100,"") ->  | K8: =IFERROR(I8/RTD("cqg.rtd",,"StudyData",B8, "ATR", "MaType=Sim,Period=10", "ATR","D","-1","ALL",,,"FALSE","T")/100,"") ->  | L8: =RTD("cqg.rtd", ,"ContractData",B8, "OPen",, "T") ->  | M8: =RTD("cqg.rtd", ,"ContractData", B8, "HIgh",, "T") ->  | N8: =RTD("cqg.rtd", ,"ContractData",B8, "LOw",, "T") ->  | O8: =RTD("cqg.rtd", ,"ContractData",B8, "T_CVol",, "T") -> 29035 | Q8: =IFERROR(O8/RTD("cqg.rtd",,"StudyData",B8, "MA", "InputChoice=Vol,MAType=Sim,Period=21", "MA","D","-1","all",,,,"T"),"") -> 0.003339299769
B9: S.ANGL | C9: =RTD("cqg.rtd", ,"ContractData",B9, "LongDescription",, "T") -> VanEck Fallen Angel High Yield Bond ETF | H9: =RTD("cqg.rtd", ,"ContractData",B9, "LastTradeToday",, "T") ->  | I9: =RTD("cqg.rtd", ,"ContractData",B9, "NetLastTradeToday",, "T") ->  | J9: =IFERROR(RTD("cqg.rtd", ,"ContractData",B9, "PerCentNetLastTrade",, "T")/100,"") ->  | K9: =IFERROR(I9/RTD("cqg.rtd",,"StudyData",B9, "ATR", "MaType=Sim,Period=10", "ATR","D","-1","ALL",,,"FALSE","T")/100,"") ->  | L9: =RTD("cqg.rtd", ,"ContractData",B9, "OPen",, "T") ->  | M9: =RTD("cqg.rtd", ,"ContractData", B9, "HIgh",, "T") ->  | N9: =RTD("cqg.rtd", ,"ContractData",B9, "LOw",, "T") ->  | O9: =RTD("cqg.rtd", ,"ContractData",B9, "T_CVol",, "T") -> 26 | Q9: =IFERROR(O9/RTD("cqg.rtd",,"StudyData",B9, "MA", "InputChoice=Vol,MAType=Sim,Period=21", "MA","D","-1","all",,,,"T"),"") -> 4.890166502e-05
B10: S.PPH | C10: =RTD("cqg.rtd", ,"ContractData",B10, "LongDescription",, "T") -> VanEck Pharmaceutical ETF | H10: =RTD("cqg.rtd", ,"ContractData",B10, "LastTradeToday",, "T") ->  | I10: =RTD("cqg.rtd", ,"ContractData",B10, "NetLastTradeToday",, "T") ->  | J10: =IFERROR(RTD("cqg.rtd", ,"ContractData",B10, "PerCentNetLastTrade",, "T")/100,"") ->  | K10: =IFERROR(I10/RTD("cqg.rtd",,"StudyData",B10, "ATR", "MaType=Sim,Period=10", "ATR","D","-1","ALL",,,"FALSE","T")/100,"") ->  | L10: =RTD("cqg.rtd", ,"ContractData",B10, "OPen",, "T") ->  | M10: =RTD("cqg.rtd", ,"ContractData", B10, "HIgh",, "T") ->  | N10: =RTD("cqg.rtd", ,"ContractData",B10, "LOw",, "T") ->  | O10: =RTD("cqg.rtd", ,"ContractData",B10, "T_CVol",, "T") -> 3 | Q10: =IFERROR(O10/RTD("cqg.rtd",,"StudyData",B10, "MA", "InputChoice=Vol,MAType=Sim,Period=21", "MA","D","-1","all",,,,"T"),"") -> 1.118366886e-05
B11: S.DAPP | C11: =RTD("cqg.rtd", ,"ContractData",B11, "LongDescription",, "T") -> VanEck Digital Transformation ETF | H11: =RTD("cqg.rtd", ,"ContractData",B11, "LastTradeToday",, "T") ->  | I11: =RTD("cqg.rtd", ,"ContractData",B11, "NetLastTradeToday",, "T") ->  | J11: =IFERROR(RTD("cqg.rtd", ,"ContractData",B11, "PerCentNetLastTrade",, "T")/100,"") ->  | K11: =IFERROR(I11/RTD("cqg.rtd",,"StudyData",B11, "ATR", "MaType=Sim,Period=10", "ATR","D","-1","ALL",,,"FALSE","T")/100,"") ->  | L11: =RTD("cqg.rtd", ,"ContractData",B11, "OPen",, "T") ->  | M11: =RTD("cqg.rtd", ,"ContractData", B11, "HIgh",, "T") ->  | N11: =RTD("cqg.rtd", ,"ContractData",B11, "LOw",, "T") ->  | O11: =RTD("cqg.rtd", ,"ContractData",B11, "T_CVol",, "T") -> 1322 | Q11: =IFERROR(O11/RTD("cqg.rtd",,"StudyData",B11, "MA", "InputChoice=Vol,MAType=Sim,Period=21", "MA","D","-1","all",,,,"T"),"") -> 0.002015854541
B12: S.ESPO | C12: =RTD("cqg.rtd", ,"ContractData",B12, "LongDescription",, "T") -> VanEck Video Gaming and eSports ETF | H12: =RTD("cqg.rtd", ,"ContractData",B12, "LastTradeToday",, "T") ->  | I12: =RTD("cqg.rtd", ,"ContractData",B12, "NetLastTradeToday",, "T") ->  | J12: =IFERROR(RTD("cqg.rtd", ,"ContractData",B12, "PerCentNetLastTrade",, "T")/100,"") ->  | K12: =IFERROR(I12/RTD("cqg.rtd",,"StudyData",B12, "ATR", "MaType=Sim,Period=10", "ATR","D","-1","ALL",,,"FALSE","T")/100,"") ->  | L12: =RTD("cqg.rtd", ,"ContractData",B12, "OPen",, "T") ->  | M12: =RTD("cqg.rtd", ,"ContractData", B12, "HIgh",, "T") ->  | N12: =RTD("cqg.rtd", ,"ContractData",B12, "LOw",, "T") ->  | O12: =RTD("cqg.rtd", ,"ContractData",B12, "T_CVol",, "T") -> 134 | Q12: =IFERROR(O12/RTD("cqg.rtd",,"StudyData",B12, "MA", "InputChoice=Vol,MAType=Sim,Period=21", "MA","D","-1","all",,,,"T"),"") -> 0.002533024282
B13: S.BBH | C13: =RTD("cqg.rtd", ,"ContractData",B13, "LongDescription",, "T") -> VanEck Biotech ETF | H13: =RTD("cqg.rtd", ,"ContractData",B13, "LastTradeToday",, "T") ->  | I13: =RTD("cqg.rtd", ,"ContractData",B13, "NetLastTradeToday",, "T") ->  | J13: =IFERROR(RTD("cqg.rtd", ,"ContractData",B13, "PerCentNetLastTrade",, "T")/100,"") ->  | K13: =IFERROR(I13/RTD("cqg.rtd",,"StudyData",B13, "ATR", "MaType=Sim,Period=10", "ATR","D","-1","ALL",,,"FALSE","T")/100,"") ->  | L13: =RTD("cqg.rtd", ,"ContractData",B13, "OPen",, "T") ->  | M13: =RTD("cqg.rtd", ,"ContractData", B13, "HIgh",, "T") ->  | N13: =RTD("cqg.rtd", ,"ContractData",B13, "LOw",, "T") ->  | O13: =RTD("cqg.rtd", ,"ContractData",B13, "T_CVol",, "T") -> 0 | Q13: =IFERROR(O13/RTD("cqg.rtd",,"StudyData",B13, "MA", "InputChoice=Vol,MAType=Sim,Period=21", "MA","D","-1","all",,,,"T"),"") -> 0
B14: S.RTH | C14: =RTD("cqg.rtd", ,"ContractData",B14, "LongDescription",, "T") -> VanEck Retail ETF | H14: =RTD("cqg.rtd", ,"ContractData",B14, "LastTradeToday",, "T") ->  | I14: =RTD("cqg.rtd", ,"ContractData",B14, "NetLastTradeToday",, "T") ->  | J14: =IFERROR(RTD("cqg.rtd", ,"ContractData",B14, "PerCentNetLastTrade",, "T")/100,"") ->  | K14: =IFERROR(I14/RTD("cqg.rtd",,"StudyData",B14, "ATR", "MaType=Sim,Period=10", "ATR","D","-1","ALL",,,"FALSE","T")/100,"") ->  | L14: =RTD("cqg.rtd", ,"ContractData",B14, "OPen",, "T") ->  | M14: =RTD("cqg.rtd", ,"ContractData", B14, "HIgh",, "T") ->  | N14: =RTD("cqg.rtd", ,"ContractData",B14, "LOw",, "T") ->  | O14: =RTD("cqg.rtd", ,"ContractData",B14, "T_CVol",, "T") -> 1 | Q14: =IFERROR(O14/RTD("cqg.rtd",,"StudyData",B14, "MA", "InputChoice=Vol,MAType=Sim,Period=21", "MA","D","-1","all",,,,"T"),"") -> 0.0002596696013
B15: S.BJK | C15: =RTD("cqg.rtd", ,"ContractData",B15, "LongDescription",, "T") -> VanEck Gaming ETF | H15: =RTD("cqg.rtd", ,"ContractData",B15, "LastTradeToday",, "T") ->  | I15: =RTD("cqg.rtd", ,"ContractData",B15, "NetLastTradeToday",, "T") ->  | J15: =IFERROR(RTD("cqg.rtd", ,"ContractData",B15, "PerCentNetLastTrade",, "T")/100,"") ->  | K15: =IFERROR(I15/RTD("cqg.rtd",,"StudyData",B15, "ATR", "MaType=Sim,Period=10", "ATR","D","-1","ALL",,,"FALSE","T")/100,"") ->  | L15: =RTD("cqg.rtd", ,"ContractData",B15, "OPen",, "T") ->  | M15: =RTD("cqg.rtd", ,"ContractData", B15, "HIgh",, "T") ->  | N15: =RTD("cqg.rtd", ,"ContractData",B15, "LOw",, "T") ->  | O15: =RTD("cqg.rtd", ,"ContractData",B15, "T_CVol",, "T") -> 0 | Q15: =IFERROR(O15/RTD("cqg.rtd",,"StudyData",B15, "MA", "InputChoice=Vol,MAType=Sim,Period=21", "MA","D","-1","all",,,,"T"),"") -> 0
B16: S.QQQ | C16: =RTD("cqg.rtd", ,"ContractData",B16, "LongDescription",, "T") -> Invesco QQQ Trust Series 1 | H16: =RTD("cqg.rtd", ,"ContractData",B16, "LastTradeToday",, "T") ->  | I16: =RTD("cqg.rtd", ,"ContractData",B16, "NetLastTradeToday",, "T") ->  | J16: =IFERROR(RTD("cqg.rtd", ,"ContractData",B16, "PerCentNetLastTrade",, "T")/100,"") ->  | K16: =IFERROR(I16/RTD("cqg.rtd",,"StudyData",B16, "ATR", "MaType=Sim,Period=10", "ATR","D","-1","ALL",,,"FALSE","T")/100,"") ->  | L16: =RTD("cqg.rtd", ,"ContractData",B16, "OPen",, "T") ->  | M16: =RTD("cqg.rtd", ,"ContractData", B16, "HIgh",, "T") ->  | N16: =RTD("cqg.rtd", ,"ContractData",B16, "LOw",, "T") ->  | O16: =RTD("cqg.rtd", ,"ContractData",B16, "T_CVol",, "T") -> 679739 | Q16: =IFERROR(O16/RTD("cqg.rtd",,"StudyData",B16, "MA", "InputChoice=Vol,MAType=Sim,Period=21", "MA","D","-1","all",,,,"T"),"") -> 0.0125101171
C17: Today's Ranked Percentage Change | H17: Last | I17: NC | J17: %NC | K17: NC/ATR | L17: Open | M17: High | N17: Low | O17: Volume | Q17: Ratio
A18: =TRIM(NLR!O1) ->  | B18: News | C18: =IFERROR(RTD("cqg.rtd", ,"ContractData",A18, "LongDescription",, "T")&" ("&RIGHT(A18,LEN(A18)-5)&")","") ->  | H18: =IFERROR(RTD("cqg.rtd", ,"ContractData",A18, "LastTradeToday",, "T"),"") -> Obligatory parameter <contract>(position - 1) is not specified | I18: =IFERROR(RTD("cqg.rtd", ,"ContractData",A18, "NetLastTradeToday",, "T"),"") -> Obligatory parameter <contract>(position - 1) is not specified | J18: =IFERROR(RTD("cqg.rtd", ,"ContractData",A18, "PerCentNetLastTrade",, "T")/100,"") ->  | K18: =IFERROR(I18/RTD("cqg.rtd",,"StudyData",A18, "ATR", "MaType=Sim,Period=10", "ATR","D","-1","ALL",,,"FALSE","T")/100,"") ->  | L18: =IFERROR(RTD("cqg.rtd", ,"ContractData",A18, "OPen",, "T"),"") -> Obligatory parameter <contract>(position - 1) is not specified | M18: =IFERROR(RTD("cqg.rtd", ,"ContractData", A18, "HIgh",, "T"),"") -> Obligatory parameter <contract>(position - 1) is not specified | N18: =IFERROR(RTD("cqg.rtd", ,"ContractData",A18, "LOw",, "T"),"") -> Obligatory parameter <contract>(position - 1) is not specified | O18: =IFERROR(RTD("cqg.rtd", ,"ContractData",A18, "T_CVol",, "T"),"") -> Obligatory parameter <contract>(position - 1) is not specified | Q18: =IFERROR(O18/RTD("cqg.rtd",,"StudyData",A18, "MA", "InputChoice=Vol,MAType=Sim,Period=21", "MA","D","-1","all",,,,"T"),"") ->  | R18: =NLR!R1 -> 
A19: =TRIM(NLR!O2) ->  | B19: News | C19: =IFERROR(RTD("cqg.rtd", ,"ContractData",A19, "LongDescription",, "T")&" ("&RIGHT(A19,LEN(A19)-5)&")","") ->  | H19: =IFERROR(RTD("cqg.rtd", ,"ContractData",A19, "LastTradeToday",, "T"),"") -> Obligatory parameter <contract>(position - 1) is not specified | I19: =IFERROR(RTD("cqg.rtd", ,"ContractData",A19, "NetLastTradeToday",, "T"),"") -> Obligatory parameter <contract>(position - 1) is not specified | J19: =IFERROR(RTD("cqg.rtd", ,"ContractData",A19, "PerCentNetLastTrade",, "T")/100,"") ->  | K19: =IFERROR(I19/RTD("cqg.rtd",,"StudyData",A19, "ATR", "MaType=Sim,Period=10", "ATR","D","-1","ALL",,,"FALSE","T")/100,"") ->  | L19: =IFERROR(RTD("cqg.rtd", ,"ContractData",A19, "OPen",, "T"),"") -> Obligatory parameter <contract>(position - 1) is not specified | M19: =IFERROR(RTD("cqg.rtd", ,"ContractData", A19, "HIgh",, "T"),"") -> Obligatory parameter <contract>(position - 1) is not specified | N19: =IFERROR(RTD("cqg.rtd", ,"ContractData",A19, "LOw",, "T"),"") -> Obligatory parameter <contract>(position - 1) is not specified | O19: =IFERROR(RTD("cqg.rtd", ,"ContractData",A19, "T_CVol",, "T"),"") -> Obligatory parameter <contract>(position - 1) is not specified | Q19: =IFERROR(O19/RTD("cqg.rtd",,"StudyData",A19, "MA", "InputChoice=Vol,MAType=Sim,Period=21", "MA","D","-1","all",,,,"T"),"") ->  | R19: =NLR!R2 -> 
A20: =TRIM(NLR!O3) ->  | B20: News | C20: =IFERROR(RTD("cqg.rtd", ,"ContractData",A20, "LongDescription",, "T")&" ("&RIGHT(A20,LEN(A20)-5)&")","") ->  | H20: =IFERROR(RTD("cqg.rtd", ,"ContractData",A20, "LastTradeToday",, "T"),"") -> Obligatory parameter <contract>(position - 1) is not specified | I20: =IFERROR(RTD("cqg.rtd", ,"ContractData",A20, "NetLastTradeToday",, "T"),"") -> Obligatory parameter <contract>(position - 1) is not specified | J20: =IFERROR(RTD("cqg.rtd", ,"ContractData",A20, "PerCentNetLastTrade",, "T")/100,"") ->  | K20: =IFERROR(I20/RTD("cqg.rtd",,"StudyData",A20, "ATR", "MaType=Sim,Period=10", "ATR","D","-1","ALL",,,"FALSE","T")/100,"") ->  | L20: =IFERROR(RTD("cqg.rtd", ,"ContractData",A20, "OPen",, "T"),"") -> Obligatory parameter <contract>(position - 1) is not specified | M20: =IFERROR(RTD("cqg.rtd", ,"ContractData", A20, "HIgh",, "T"),"") -> Obligatory parameter <contract>(position - 1) is not specified | N20: =IFERROR(RTD("cqg.rtd", ,"ContractData",A20, "LOw",, "T"),"") -> Obligatory parameter <contract>(position - 1) is not specified | O20: =IFERROR(RTD("cqg.rtd", ,"ContractData",A20, "T_CVol",, "T"),"") -> Obligatory parameter <contract>(position - 1) is not specified | Q20: =IFERROR(O20/RTD("cqg.rtd",,"StudyData",A20, "MA", "InputChoice=Vol,MAType=Sim,Period=21", "MA","D","-1","all",,,,"T"),"") ->  | R20: =NLR!R3 -> 
A21: =TRIM(NLR!O4) ->  | B21: News | C21: =IFERROR(RTD("cqg.rtd", ,"ContractData",A21, "LongDescription",, "T")&" ("&RIGHT(A21,LEN(A21)-5)&")","") ->  | H21: =IFERROR(RTD("cqg.rtd", ,"ContractData",A21, "LastTradeToday",, "T"),"") -> Obligatory parameter <contract>(position - 1) is not specified | I21: =IFERROR(RTD("cqg.rtd", ,"ContractData",A21, "NetLastTradeToday",, "T"),"") -> Obligatory parameter <contract>(position - 1) is not specified | J21: =IFERROR(RTD("cqg.rtd", ,"ContractData",A21, "PerCentNetLastTrade",, "T")/100,"") ->  | K21: =IFERROR(I21/RTD("cqg.rtd",,"StudyData",A21, "ATR", "MaType=Sim,Period=10", "ATR","D","-1","ALL",,,"FALSE","T")/100,"") ->  | L21: =IFERROR(RTD("cqg.rtd", ,"ContractData",A21, "OPen",, "T"),"") -> Obligatory parameter <contract>(position - 1) is not specified | M21: =IFERROR(RTD("cqg.rtd", ,"ContractData", A21, "HIgh",, "T"),"") -> Obligatory parameter <contract>(position - 1) is not specified | N21: =IFERROR(RTD("cqg.rtd", ,"ContractData",A21, "LOw",, "T"),"") -> Obligatory parameter <contract>(position - 1) is not specified | O21: =IFERROR(RTD("cqg.rtd", ,"ContractData",A21, "T_CVol",, "T"),"") -> Obligatory parameter <contract>(position - 1) is not specified | Q21: =IFERROR(O21/RTD("cqg.rtd",,"StudyData",A21, "MA", "InputChoice=Vol,MAType=Sim,Period=21", "MA","D","-1","all",,,,"T"),"") ->  | R21: =NLR!R4 -> 
A22: =TRIM(NLR!O5) ->  | B22: News | C22: =IFERROR(RTD("cqg.rtd", ,"ContractData",A22, "LongDescription",, "T")&" ("&RIGHT(A22,LEN(A22)-5)&")","") ->  | H22: =IFERROR(RTD("cqg.rtd", ,"ContractData",A22, "LastTradeToday",, "T"),"") -> Obligatory parameter <contract>(position - 1) is not specified | I22: =IFERROR(RTD("cqg.rtd", ,"ContractData",A22, "NetLastTradeToday",, "T"),"") -> Obligatory parameter <contract>(position - 1) is not specified | J22: =IFERROR(RTD("cqg.rtd", ,"ContractData",A22, "PerCentNetLastTrade",, "T")/100,"") ->  | K22: =IFERROR(I22/RTD("cqg.rtd",,"StudyData",A22, "ATR", "MaType=Sim,Period=10", "ATR","D","-1","ALL",,,"FALSE","T")/100,"") ->  | L22: =IFERROR(RTD("cqg.rtd", ,"ContractData",A22, "OPen",, "T"),"") -> Obligatory parameter <contract>(position - 1) is not specified | M22: =IFERROR(RTD("cqg.rtd", ,"ContractData", A22, "HIgh",, "T"),"") -> Obligatory parameter <contract>(position - 1) is not specified | N22: =IFERROR(RTD("cqg.rtd", ,"ContractData",A22, "LOw",, "T"),"") -> Obligatory parameter <contract>(position - 1) is not specified | O22: =IFERROR(RTD("cqg.rtd", ,"ContractData",A22, "T_CVol",, "T"),"") -> Obligatory parameter <contract>(position - 1) is not specified | Q22: =IFERROR(O22/RTD("cqg.rtd",,"StudyData",A22, "MA", "InputChoice=Vol,MAType=Sim,Period=21", "MA","D","-1","all",,,,"T"),"") ->  | R22: =NLR!R5 -> 
A23: =TRIM(NLR!O6) ->  | B23: News | C23: =IFERROR(RTD("cqg.rtd", ,"ContractData",A23, "LongDescription",, "T")&" ("&RIGHT(A23,LEN(A23)-5)&")","") ->  | H23: =IFERROR(RTD("cqg.rtd", ,"ContractData",A23, "LastTradeToday",, "T"),"") -> Obligatory parameter <contract>(position - 1) is not specified | I23: =IFERROR(RTD("cqg.rtd", ,"ContractData",A23, "NetLastTradeToday",, "T"),"") -> Obligatory parameter <contract>(position - 1) is not specified | J23: =IFERROR(RTD("cqg.rtd", ,"ContractData",A23, "PerCentNetLastTrade",, "T")/100,"") ->  | K23: =IFERROR(I23/RTD("cqg.rtd",,"StudyData",A23, "ATR", "MaType=Sim,Period=10", "ATR","D","-1","ALL",,,"FALSE","T")/100,"") ->  | L23: =IFERROR(RTD("cqg.rtd", ,"ContractData",A23, "OPen",, "T"),"") -> Obligatory parameter <contract>(position - 1) is not specified | M23: =IFERROR(RTD("cqg.rtd", ,"ContractData", A23, "HIgh",, "T"),"") -> Obligatory parameter <contract>(position - 1) is not specified | N23: =IFERROR(RTD("cqg.rtd", ,"ContractData",A23, "LOw",, "T"),"") -> Obligatory parameter <contract>(position - 1) is not specified | O23: =IFERROR(RTD("cqg.rtd", ,"ContractData",A23, "T_CVol",, "T"),"") -> Obligatory parameter <contract>(position - 1) is not specified | Q23: =IFERROR(O23/RTD("cqg.rtd",,"StudyData",A23, "MA", "InputChoice=Vol,MAType=Sim,Period=21", "MA","D","-1","all",,,,"T"),"") ->  | R23: =NLR!R6 -> 
A24: =TRIM(NLR!O7) ->  | B24: News | C24: =IFERROR(RTD("cqg.rtd", ,"ContractData",A24, "LongDescription",, "T")&" ("&RIGHT(A24,LEN(A24)-5)&")","") ->  | H24: =IFERROR(RTD("cqg.rtd", ,"ContractData",A24, "LastTradeToday",, "T"),"") -> Obligatory parameter <contract>(position - 1) is not specified | I24: =IFERROR(RTD("cqg.rtd", ,"ContractData",A24, "NetLastTradeToday",, "T"),"") -> Obligatory parameter <contract>(position - 1) is not specified | J24: =IFERROR(RTD("cqg.rtd", ,"ContractData",A24, "PerCentNetLastTrade",, "T")/100,"") ->  | K24: =IFERROR(I24/RTD("cqg.rtd",,"StudyData",A24, "ATR", "MaType=Sim,Period=10", "ATR","D","-1","ALL",,,"FALSE","T")/100,"") ->  | L24: =IFERROR(RTD("cqg.rtd", ,"ContractData",A24, "OPen",, "T"),"") -> Obligatory parameter <contract>(position - 1) is not specified | M24: =IFERROR(RTD("cqg.rtd", ,"ContractData", A24, "HIgh",, "T"),"") -> Obligatory parameter <contract>(position - 1) is not specified | N24: =IFERROR(RTD("cqg.rtd", ,"ContractData",A24, "LOw",, "T"),"") -> Obligatory parameter <contract>(position - 1) is not specified | O24: =IFERROR(RTD("cqg.rtd", ,"ContractData",A24, "T_CVol",, "T"),"") -> Obligatory parameter <contract>(position - 1) is not specified | Q24: =IFERROR(O24/RTD("cqg.rtd",,"StudyData",A24, "MA", "InputChoice=Vol,MAType=Sim,Period=21", "MA","D","-1","all",,,,"T"),"") ->  | R24: =NLR!R7 -> 
A25: =TRIM(NLR!O8) ->  | B25: News | C25: =IFERROR(RTD("cqg.rtd", ,"ContractData",A25, "LongDescription",, "T")&" ("&RIGHT(A25,LEN(A25)-5)&")","") ->  | H25: =IFERROR(RTD("cqg.rtd", ,"ContractData",A25, "LastTradeToday",, "T"),"") -> Obligatory parameter <contract>(position - 1) is not specified | I25: =IFERROR(RTD("cqg.rtd", ,"ContractData",A25, "NetLastTradeToday",, "T"),"") -> Obligatory parameter <contract>(position - 1) is not specified | J25: =IFERROR(RTD("cqg.rtd", ,"ContractData",A25, "PerCentNetLastTrade",, "T")/100,"") ->  | K25: =IFERROR(I25/RTD("cqg.rtd",,"StudyData",A25, "ATR", "MaType=Sim,Period=10", "ATR","D","-1","ALL",,,"FALSE","T")/100,"") ->  | L25: =IFERROR(RTD("cqg.rtd", ,"ContractData",A25, "OPen",, "T"),"") -> Obligatory parameter <contract>(position - 1) is not specified | M25: =IFERROR(RTD("cqg.rtd", ,"ContractData", A25, "HIgh",, "T"),"") -> Obligatory parameter <contract>(position - 1) is not specified | N25: =IFERROR(RTD("cqg.rtd", ,"ContractData",A25, "LOw",, "T"),"") -> Obligatory parameter <contract>(position - 1) is not specified | O25: =IFERROR(RTD("cqg.rtd", ,"ContractData",A25, "T_CVol",, "T"),"") -> Obligatory parameter <contract>(position - 1) is not specified | Q25: =IFERROR(O25/RTD("cqg.rtd",,"StudyData",A25, "MA", "InputChoice=Vol,MAType=Sim,Period=21", "MA","D","-1","all",,,,"T"),"") ->  | R25: =NLR!R8 -> 
A26: =TRIM(NLR!O9) ->  | B26: News | C26: =IFERROR(RTD("cqg.rtd", ,"ContractData",A26, "LongDescription",, "T")&" ("&RIGHT(A26,LEN(A26)-5)&")","") ->  | H26: =IFERROR(RTD("cqg.rtd", ,"ContractData",A26, "LastTradeToday",, "T"),"") -> Obligatory parameter <contract>(position - 1) is not specified | I26: =IFERROR(RTD("cqg.rtd", ,"ContractData",A26, "NetLastTradeToday",, "T"),"") -> Obligatory parameter <contract>(position - 1) is not specified | J26: =IFERROR(RTD("cqg.rtd", ,"ContractData",A26, "PerCentNetLastTrade",, "T")/100,"") ->  | K26: =IFERROR(I26/RTD("cqg.rtd",,"StudyData",A26, "ATR", "MaType=Sim,Period=10", "ATR","D","-1","ALL",,,"FALSE","T")/100,"") ->  | L26: =IFERROR(RTD("cqg.rtd", ,"ContractData",A26, "OPen",, "T"),"") -> Obligatory parameter <contract>(position - 1) is not specified | M26: =IFERROR(RTD("cqg.rtd", ,"ContractData", A26, "HIgh",, "T"),"") -> Obligatory parameter <contract>(position - 1) is not specified | N26: =IFERROR(RTD("cqg.rtd", ,"ContractData",A26, "LOw",, "T"),"") -> Obligatory parameter <contract>(position - 1) is not specified | O26: =IFERROR(RTD("cqg.rtd", ,"ContractData",A26, "T_CVol",, "T"),"") -> Obligatory parameter <contract>(position - 1) is not specified | Q26: =IFERROR(O26/RTD("cqg.rtd",,"StudyData",A26, "MA", "InputChoice=Vol,MAType=Sim,Period=21", "MA","D","-1","all",,,,"T"),"") ->  | R26: =NLR!R9 -> 
A27: =TRIM(NLR!O10) ->  | B27: News | C27: =IFERROR(RTD("cqg.rtd", ,"ContractData",A27, "LongDescription",, "T")&" ("&RIGHT(A27,LEN(A27)-5)&")","") ->  | H27: =IFERROR(RTD("cqg.rtd", ,"ContractData",A27, "LastTradeToday",, "T"),"") -> Obligatory parameter <contract>(position - 1) is not specified | I27: =IFERROR(RTD("cqg.rtd", ,"ContractData",A27, "NetLastTradeToday",, "T"),"") -> Obligatory parameter <contract>(position - 1) is not specified | J27: =IFERROR(RTD("cqg.rtd", ,"ContractData",A27, "PerCentNetLastTrade",, "T")/100,"") ->  | K27: =IFERROR(I27/RTD("cqg.rtd",,"StudyData",A27, "ATR", "MaType=Sim,Period=10", "ATR","D","-1","ALL",,,"FALSE","T")/100,"") ->  | L27: =IFERROR(RTD("cqg.rtd", ,"ContractData",A27, "OPen",, "T"),"") -> Obligatory parameter <contract>(position - 1) is not specified | M27: =IFERROR(RTD("cqg.rtd", ,"ContractData", A27, "HIgh",, "T"),"") -> Obligatory parameter <contract>(position - 1) is not specified | N27: =IFERROR(RTD("cqg.rtd", ,"ContractData",A27, "LOw",, "T"),"") -> Obligatory parameter <contract>(position - 1) is not specified | O27: =IFERROR(RTD("cqg.rtd", ,"ContractData",A27, "T_CVol",, "T"),"") -> Obligatory parameter <contract>(position - 1) is not specified | Q27: =IFERROR(O27/RTD("cqg.rtd",,"StudyData",A27, "MA", "InputChoice=Vol,MAType=Sim,Period=21", "MA","D","-1","all",,,,"T"),"") ->  | R27: =NLR!R10 ->  | S27: Annual Ranked Percent Net Change
A28: =TRIM(NLR!O11) ->  | B28: News | C28: =IFERROR(RTD("cqg.rtd", ,"ContractData",A28, "LongDescription",, "T")&" ("&RIGHT(A28,LEN(A28)-5)&")","") ->  | H28: =IFERROR(RTD("cqg.rtd", ,"ContractData",A28, "LastTradeToday",, "T"),"") -> Obligatory parameter <contract>(position - 1) is not specified | I28: =IFERROR(RTD("cqg.rtd", ,"ContractData",A28, "NetLastTradeToday",, "T"),"") -> Obligatory parameter <contract>(position - 1) is not specified | J28: =IFERROR(RTD("cqg.rtd", ,"ContractData",A28, "PerCentNetLastTrade",, "T")/100,"") ->  | K28: =IFERROR(I28/RTD("cqg.rtd",,"StudyData",A28, "ATR", "MaType=Sim,Period=10", "ATR","D","-1","ALL",,,"FALSE","T")/100,"") ->  | L28: =IFERROR(RTD("cqg.rtd", ,"ContractData",A28, "OPen",, "T"),"") -> Obligatory parameter <contract>(position - 1) is not specified | M28: =IFERROR(RTD("cqg.rtd", ,"ContractData", A28, "HIgh",, "T"),"") -> Obligatory parameter <contract>(position - 1) is not specified | N28: =IFERROR(RTD("cqg.rtd", ,"ContractData",A28, "LOw",, "T"),"") -> Obligatory parameter <contract>(position - 1) is not specified | O28: =IFERROR(RTD("cqg.rtd", ,"ContractData",A28, "T_CVol",, "T"),"") -> Obligatory parameter <contract>(position - 1) is not specified | Q28: =IFERROR(O28/RTD("cqg.rtd",,"StudyData",A28, "MA", "InputChoice=Vol,MAType=Sim,Period=21", "MA","D","-1","all",,,,"T"),"") ->  | R28: =NLR!R11 -> 
A29: =TRIM(NLR!O12) ->  | B29: News | C29: =IFERROR(RTD("cqg.rtd", ,"ContractData",A29, "LongDescription",, "T")&" ("&RIGHT(A29,LEN(A29)-5)&")","") ->  | H29: =IFERROR(RTD("cqg.rtd", ,"ContractData",A29, "LastTradeToday",, "T"),"") -> Obligatory parameter <contract>(position - 1) is not specified | I29: =IFERROR(RTD("cqg.rtd", ,"ContractData",A29, "NetLastTradeToday",, "T"),"") -> Obligatory parameter <contract>(position - 1) is not specified | J29: =IFERROR(RTD("cqg.rtd", ,"ContractData",A29, "PerCentNetLastTrade",, "T")/100,"") ->  | K29: =IFERROR(I29/RTD("cqg.rtd",,"StudyData",A29, "ATR", "MaType=Sim,Period=10", "ATR","D","-1","ALL",,,"FALSE","T")/100,"") ->  | L29: =IFERROR(RTD("cqg.rtd", ,"ContractData",A29, "OPen",, "T"),"") -> Obligatory parameter <contract>(position - 1) is not specified | M29: =IFERROR(RTD("cqg.rtd", ,"ContractData", A29, "HIgh",, "T"),"") -> Obligatory parameter <contract>(position - 1) is not specified | N29: =IFERROR(RTD("cqg.rtd", ,"ContractData",A29, "LOw",, "T"),"") -> Obligatory parameter <contract>(position - 1) is not specified | O29: =IFERROR(RTD("cqg.rtd", ,"ContractData",A29, "T_CVol",, "T"),"") -> Obligatory parameter <contract>(position - 1) is not specified | Q29: =IFERROR(O29/RTD("cqg.rtd",,"StudyData",A29, "MA", "InputChoice=Vol,MAType=Sim,Period=21", "MA","D","-1","all",,,,"T"),"") ->  | R29: =NLR!R12 -> 
A30: =TRIM(NLR!O13) ->  | B30: News | C30: =IFERROR(RTD("cqg.rtd", ,"ContractData",A30, "LongDescription",, "T")&" ("&RIGHT(A30,LEN(A30)-5)&")","") ->  | H30: =IFERROR(RTD("cqg.rtd", ,"ContractData",A30, "LastTradeToday",, "T"),"") -> Obligatory parameter <contract>(position - 1) is not specified | I30: =IFERROR(RTD("cqg.rtd", ,"ContractData",A30, "NetLastTradeToday",, "T"),"") -> Obligatory parameter <contract>(position - 1) is not specified | J30: =IFERROR(RTD("cqg.rtd", ,"ContractData",A30, "PerCentNetLastTrade",, "T")/100,"") ->  | K30: =IFERROR(I30/RTD("cqg.rtd",,"StudyData",A30, "ATR", "MaType=Sim,Period=10", "ATR","D","-1","ALL",,,"FALSE","T")/100,"") ->  | L30: =IFERROR(RTD("cqg.rtd", ,"ContractData",A30, "OPen",, "T"),"") -> Obligatory parameter <contract>(position - 1) is not specified | M30: =IFERROR(RTD("cqg.rtd", ,"ContractData", A30, "HIgh",, "T"),"") -> Obligatory parameter <contract>(position - 1) is not specified | N30: =IFERROR(RTD("cqg.rtd", ,"ContractData",A30, "LOw",, "T"),"") -> Obligatory parameter <contract>(position - 1) is not specified | O30: =IFERROR(RTD("cqg.rtd", ,"ContractData",A30, "T_CVol",, "T"),"") -> Obligatory parameter <contract>(position - 1) is not specified | Q30: =IFERROR(O30/RTD("cqg.rtd",,"StudyData",A30, "MA", "InputChoice=Vol,MAType=Sim,Period=21", "MA","D","-1","all",,,,"T"),"") ->  | R30: =NLR!R13 -> 
A31: =TRIM(NLR!O14) ->  | B31: News | C31: =IFERROR(RTD("cqg.rtd", ,"ContractData",A31, "LongDescription",, "T")&" ("&RIGHT(A31,LEN(A31)-5)&")","") ->  | H31: =IFERROR(RTD("cqg.rtd", ,"ContractData",A31, "LastTradeToday",, "T"),"") -> Obligatory parameter <contract>(position - 1) is not specified | I31: =IFERROR(RTD("cqg.rtd", ,"ContractData",A31, "NetLastTradeToday",, "T"),"") -> Obligatory parameter <contract>(position - 1) is not specified | J31: =IFERROR(RTD("cqg.rtd", ,"ContractData",A31, "PerCentNetLastTrade",, "T")/100,"") ->  | K31: =IFERROR(I31/RTD("cqg.rtd",,"StudyData",A31, "ATR", "MaType=Sim,Period=10", "ATR","D","-1","ALL",,,"FALSE","T")/100,"") ->  | L31: =IFERROR(RTD("cqg.rtd", ,"ContractData",A31, "OPen",, "T"),"") -> Obligatory parameter <contract>(position - 1) is not specified | M31: =IFERROR(RTD("cqg.rtd", ,"ContractData", A31, "HIgh",, "T"),"") -> Obligatory parameter <contract>(position - 1) is not specified | N31: =IFERROR(RTD("cqg.rtd", ,"ContractData",A31, "LOw",, "T"),"") -> Obligatory parameter <contract>(position - 1) is not specified | O31: =IFERROR(RTD("cqg.rtd", ,"ContractData",A31, "T_CVol",, "T"),"") -> Obligatory parameter <contract>(position - 1) is not specified | Q31: =IFERROR(O31/RTD("cqg.rtd",,"StudyData",A31, "MA", "InputChoice=Vol,MAType=Sim,Period=21", "MA","D","-1","all",,,,"T"),"") ->  | R31: =NLR!R14 -> 
A32: =TRIM(NLR!O15) ->  | B32: News | C32: =IFERROR(RTD("cqg.rtd", ,"ContractData",A32, "LongDescription",, "T")&" ("&RIGHT(A32,LEN(A32)-5)&")","") ->  | H32: =IFERROR(RTD("cqg.rtd", ,"ContractData",A32, "LastTradeToday",, "T"),"") -> Obligatory parameter <contract>(position - 1) is not specified | I32: =IFERROR(RTD("cqg.rtd", ,"ContractData",A32, "NetLastTradeToday",, "T"),"") -> Obligatory parameter <contract>(position - 1) is not specified | J32: =IFERROR(RTD("cqg.rtd", ,"ContractData",A32, "PerCentNetLastTrade",, "T")/100,"") ->  | K32: =IFERROR(I32/RTD("cqg.rtd",,"StudyData",A32, "ATR", "MaType=Sim,Period=10", "ATR","D","-1","ALL",,,"FALSE","T")/100,"") ->  | L32: =IFERROR(RTD("cqg.rtd", ,"ContractData",A32, "OPen",, "T"),"") -> Obligatory parameter <contract>(position - 1) is not specified | M32: =IFERROR(RTD("cqg.rtd", ,"ContractData", A32, "HIgh",, "T"),"") -> Obligatory parameter <contract>(position - 1) is not specified | N32: =IFERROR(RTD("cqg.rtd", ,"ContractData",A32, "LOw",, "T"),"") -> Obligatory parameter <contract>(position - 1) is not specified | O32: =IFERROR(RTD("cqg.rtd", ,"ContractData",A32, "T_CVol",, "T"),"") -> Obligatory parameter <contract>(position - 1) is not specified | Q32: =IFERROR(O32/RTD("cqg.rtd",,"StudyData",A32, "MA", "InputChoice=Vol,MAType=Sim,Period=21", "MA","D","-1","all",,,,"T"),"") ->  | R32: =NLR!R15 -> 
C33: Annual Percentage Net Change | H33: Last | I33: NC | J33: %NC | K33: Annual %NC | M33: Open %NC | O33: High %NC | Q33: Low %NC
A34: =TRIM('NLR 2'!O1) -> S.US.OKLO | B34: News | C34: =IFERROR(RTD("cqg.rtd", ,"ContractData",A34, "LongDescription",, "T")&" ("&RIGHT(A34,LEN(A34)-5)&")","") -> Oklo Inc. (OKLO) | H34: =IFERROR(RTD("cqg.rtd", ,"ContractData",A34, "LastTradeToday",, "T"),"") ->  | I34: =IFERROR(RTD("cqg.rtd", ,"ContractData",A34, "NetLastTradeToday",, "T"),"") ->  | J34: =IFERROR(RTD("cqg.rtd", ,"ContractData",A34, "PerCentNetLastTrade",, "T")/100,"") ->  | K34: =IFERROR(RTD("cqg.rtd",,"StudyData",A34,"PCB","BaseType=Index,Index=1","Close","A",,"all",,,,"T")/100,"") -> 4.487988695 | M34: =IFERROR(RTD("cqg.rtd",,"StudyData",A34,"PCB","BaseType=Index,Index=1","Open","A",,"all",,,,"T")/100,"") -> 0 | O34: =IFERROR(RTD("cqg.rtd",,"StudyData",A34,"PCB","BaseType=Index,Index=1","High","A",,"all",,,,"T")/100,"") -> 5.805934998 | Q34: =IFERROR(RTD("cqg.rtd",,"StudyData",A34,"PCB","BaseType=Index,Index=1","Low","A",,"all",,,,"T")/100,"") -> -0.1615638248 | R34: ='NLR 2'!R1 -> https://finance.yahoo.com/quote/OKLO
A35: =TRIM('NLR 2'!O2) -> S.US.LEU | B35: News | C35: =IFERROR(RTD("cqg.rtd", ,"ContractData",A35, "LongDescription",, "T")&" ("&RIGHT(A35,LEN(A35)-5)&")","") -> Centrus Energy Corp. (LEU) | H35: =IFERROR(RTD("cqg.rtd", ,"ContractData",A35, "LastTradeToday",, "T"),"") ->  | I35: =IFERROR(RTD("cqg.rtd", ,"ContractData",A35, "NetLastTradeToday",, "T"),"") ->  | J35: =IFERROR(RTD("cqg.rtd",,"StudyData",A35, "PCB","BaseType=Index,Index=1", "Close", "A",,"all",,,,"T")/100,"") -> 3.738327578 | K35: =IFERROR(RTD("cqg.rtd",,"StudyData",A35,"PCB","BaseType=Index,Index=1","Close","A",,"all",,,,"T")/100,"") -> 3.738327578 | M35: =IFERROR(RTD("cqg.rtd",,"StudyData",A35,"PCB","BaseType=Index,Index=1","Open","A",,"all",,,,"T")/100,"") -> 0.01366161237 | O35: =IFERROR(RTD("cqg.rtd",,"StudyData",A35,"PCB","BaseType=Index,Index=1","High","A",,"all",,,,"T")/100,"") -> 4.074163039 | Q35: =IFERROR(RTD("cqg.rtd",,"StudyData",A35,"PCB","BaseType=Index,Index=1","Low","A",,"all",,,,"T")/100,"") -> -0.2583696142 | R35: ='NLR 2'!R2 -> https://finance.yahoo.com/quote/LEU
A36: =TRIM('NLR 2'!O3) -> S.US.UUUU | B36: News | C36: =IFERROR(RTD("cqg.rtd", ,"ContractData",A36, "LongDescription",, "T")&" ("&RIGHT(A36,LEN(A36)-5)&")","") -> Energy Fuels Inc. (UUUU) | H36: =IFERROR(RTD("cqg.rtd", ,"ContractData",A36, "LastTradeToday",, "T"),"") ->  | I36: =IFERROR(RTD("cqg.rtd", ,"ContractData",A36, "NetLastTradeToday",, "T"),"") ->  | J36: =IFERROR(RTD("cqg.rtd",,"StudyData",A36, "PCB","BaseType=Index,Index=1", "Close", "A",,"all",,,,"T")/100,"") -> 2.220272904 | K36: =IFERROR(RTD("cqg.rtd",,"StudyData",A36,"PCB","BaseType=Index,Index=1","Close","A",,"all",,,,"T")/100,"") -> 2.220272904 | M36: =IFERROR(RTD("cqg.rtd",,"StudyData",A36,"PCB","BaseType=Index,Index=1","Open","A",,"all",,,,"T")/100,"") -> 0.02339181287 | O36: =IFERROR(RTD("cqg.rtd",,"StudyData",A36,"PCB","BaseType=Index,Index=1","High","A",,"all",,,,"T")/100,"") -> 2.660818713 | Q36: =IFERROR(RTD("cqg.rtd",,"StudyData",A36,"PCB","BaseType=Index,Index=1","Low","A",,"all",,,,"T")/100,"") -> -0.3762183236 | R36: ='NLR 2'!R3 -> https://finance.yahoo.com/quote/UUUU
A37: =TRIM('NLR 2'!O4) -> S.US.SMR | B37: News | C37: =IFERROR(RTD("cqg.rtd", ,"ContractData",A37, "LongDescription",, "T")&" ("&RIGHT(A37,LEN(A37)-5)&")","") -> NuScale Power Corporation (SMR) | H37: =IFERROR(RTD("cqg.rtd", ,"ContractData",A37, "LastTradeToday",, "T"),"") ->  | I37: =IFERROR(RTD("cqg.rtd", ,"ContractData",A37, "NetLastTradeToday",, "T"),"") ->  | J37: =IFERROR(RTD("cqg.rtd",,"StudyData",A37, "PCB","BaseType=Index,Index=1", "Close", "A",,"all",,,,"T")/100,"") -> 1.128276631 | K37: =IFERROR(RTD("cqg.rtd",,"StudyData",A37,"PCB","BaseType=Index,Index=1","Close","A",,"all",,,,"T")/100,"") -> 1.128276631 | M37: =IFERROR(RTD("cqg.rtd",,"StudyData",A37,"PCB","BaseType=Index,Index=1","Open","A",,"all",,,,"T")/100,"") -> 0.03569436698 | O37: =IFERROR(RTD("cqg.rtd",,"StudyData",A37,"PCB","BaseType=Index,Index=1","High","A",,"all",,,,"T")/100,"") -> 1.98382599 | Q37: =IFERROR(RTD("cqg.rtd",,"StudyData",A37,"PCB","BaseType=Index,Index=1","Low","A",,"all",,,,"T")/100,"") -> -0.3820412716 | R37: ='NLR 2'!R4 -> https://finance.yahoo.com/quote/SMR
A38: =TRIM('NLR 2'!O5) -> S.US.UEC | B38: News | C38: =IFERROR(RTD("cqg.rtd", ,"ContractData",A38, "LongDescription",, "T")&" ("&RIGHT(A38,LEN(A38)-5)&")","") -> Uranium Energy Corp (UEC) | H38: =IFERROR(RTD("cqg.rtd", ,"ContractData",A38, "LastTradeToday",, "T"),"") ->  | I38: =IFERROR(RTD("cqg.rtd", ,"ContractData",A38, "NetLastTradeToday",, "T"),"") ->  | J38: =IFERROR(RTD("cqg.rtd",,"StudyData",A38, "PCB","BaseType=Index,Index=1", "Close", "A",,"all",,,,"T")/100,"") -> 1.076233184 | K38: =IFERROR(RTD("cqg.rtd",,"StudyData",A38,"PCB","BaseType=Index,Index=1","Close","A",,"all",,,,"T")/100,"") -> 1.076233184 | M38: =IFERROR(RTD("cqg.rtd",,"StudyData",A38,"PCB","BaseType=Index,Index=1","Open","A",,"all",,,,"T")/100,"") -> 0.03139013453 | O38: =IFERROR(RTD("cqg.rtd",,"StudyData",A38,"PCB","BaseType=Index,Index=1","High","A",,"all",,,,"T")/100,"") -> 1.249626308 | Q38: =IFERROR(RTD("cqg.rtd",,"StudyData",A38,"PCB","BaseType=Index,Index=1","Low","A",,"all",,,,"T")/100,"") -> -0.4245142003 | R38: ='NLR 2'!R5 -> https://finance.yahoo.com/quote/UEC
A39: =TRIM('NLR 2'!O6) -> S.US.NLR | B39: News | C39: =IFERROR(RTD("cqg.rtd", ,"ContractData",A39, "LongDescription",, "T")&" ("&RIGHT(A39,LEN(A39)-5)&")","") -> Market Vectors Uranium+Nuclear EnergyETF (NLR) | H39: =IFERROR(RTD("cqg.rtd", ,"ContractData",A39, "LastTradeToday",, "T"),"") ->  | I39: =IFERROR(RTD("cqg.rtd", ,"ContractData",A39, "NetLastTradeToday",, "T"),"") ->  | J39: =IFERROR(RTD("cqg.rtd",,"StudyData",A39, "PCB","BaseType=Index,Index=1", "Close", "A",,"all",,,,"T")/100,"") -> 0.6813375953 | K39: =IFERROR(RTD("cqg.rtd",,"StudyData",A39,"PCB","BaseType=Index,Index=1","Close","A",,"all",,,,"T")/100,"") -> 0.6813375953 | M39: =IFERROR(RTD("cqg.rtd",,"StudyData",A39,"PCB","BaseType=Index,Index=1","Open","A",,"all",,,,"T")/100,"") -> 0.01180231129 | O39: =IFERROR(RTD("cqg.rtd",,"StudyData",A39,"PCB","BaseType=Index,Index=1","High","A",,"all",,,,"T")/100,"") -> 0.7439144332 | Q39: =IFERROR(RTD("cqg.rtd",,"StudyData",A39,"PCB","BaseType=Index,Index=1","Low","A",,"all",,,,"T")/100,"") -> -0.2099827883 | R39: ='NLR 2'!R6 -> https://finance.yahoo.com/quote/NLR
A40: =TRIM('NLR 2'!O7) -> S.US.CCJ | B40: News | C40: =IFERROR(RTD("cqg.rtd", ,"ContractData",A40, "LongDescription",, "T")&" ("&RIGHT(A40,LEN(A40)-5)&")","") -> Cameco Corp (CCJ) | H40: =IFERROR(RTD("cqg.rtd", ,"ContractData",A40, "LastTradeToday",, "T"),"") ->  | I40: =IFERROR(RTD("cqg.rtd", ,"ContractData",A40, "NetLastTradeToday",, "T"),"") ->  | J40: =IFERROR(RTD("cqg.rtd",,"StudyData",A40, "PCB","BaseType=Index,Index=1", "Close", "A",,"all",,,,"T")/100,"") -> 0.6435104106 | K40: =IFERROR(RTD("cqg.rtd",,"StudyData",A40,"PCB","BaseType=Index,Index=1","Close","A",,"all",,,,"T")/100,"") -> 0.6435104106 | M40: =IFERROR(RTD("cqg.rtd",,"StudyData",A40,"PCB","BaseType=Index,Index=1","Open","A",,"all",,,,"T")/100,"") -> -0.002335084647 | O40: =IFERROR(RTD("cqg.rtd",,"StudyData",A40,"PCB","BaseType=Index,Index=1","High","A",,"all",,,,"T")/100,"") -> 0.7343841214 | Q40: =IFERROR(RTD("cqg.rtd",,"StudyData",A40,"PCB","BaseType=Index,Index=1","Low","A",,"all",,,,"T")/100,"") -> -0.3189336447 | R40: ='NLR 2'!R7 -> https://finance.yahoo.com/quote/CCJ
A41: =TRIM('NLR 2'!O8) -> S.US.BWXT | B41: News | C41: =IFERROR(RTD("cqg.rtd", ,"ContractData",A41, "LongDescription",, "T")&" ("&RIGHT(A41,LEN(A41)-5)&")","") -> BWX Technologies, Inc. (BWXT) | H41: =IFERROR(RTD("cqg.rtd", ,"ContractData",A41, "LastTradeToday",, "T"),"") ->  | I41: =IFERROR(RTD("cqg.rtd", ,"ContractData",A41, "NetLastTradeToday",, "T"),"") ->  | J41: =IFERROR(RTD("cqg.rtd",,"StudyData",A41, "PCB","BaseType=Index,Index=1", "Close", "A",,"all",,,,"T")/100,"") -> 0.6335398151 | K41: =IFERROR(RTD("cqg.rtd",,"StudyData",A41,"PCB","BaseType=Index,Index=1","Close","A",,"all",,,,"T")/100,"") -> 0.6335398151 | M41: =IFERROR(RTD("cqg.rtd",,"StudyData",A41,"PCB","BaseType=Index,Index=1","Open","A",,"all",,,,"T")/100,"") -> 0.005655803932 | O41: =IFERROR(RTD("cqg.rtd",,"StudyData",A41,"PCB","BaseType=Index,Index=1","High","A",,"all",,,,"T")/100,"") -> 0.6989855463 | Q41: =IFERROR(RTD("cqg.rtd",,"StudyData",A41,"PCB","BaseType=Index,Index=1","Low","A",,"all",,,,"T")/100,"") -> -0.2440973157 | R41: ='NLR 2'!R8 -> https://finance.yahoo.com/quote/BWXT
A42: =TRIM('NLR 2'!O9) -> S.US.NNE | B42: News | C42: =IFERROR(RTD("cqg.rtd", ,"ContractData",A42, "LongDescription",, "T")&" ("&RIGHT(A42,LEN(A42)-5)&")","") -> Nano Nuclear Energy Inc. (NNE) | H42: =IFERROR(RTD("cqg.rtd", ,"ContractData",A42, "LastTradeToday",, "T"),"") ->  | I42: =IFERROR(RTD("cqg.rtd", ,"ContractData",A42, "NetLastTradeToday",, "T"),"") ->  | J42: =IFERROR(RTD("cqg.rtd",,"StudyData",A42, "PCB","BaseType=Index,Index=1", "Close", "A",,"all",,,,"T")/100,"") -> 0.572519084 | K42: =IFERROR(RTD("cqg.rtd",,"StudyData",A42,"PCB","BaseType=Index,Index=1","Close","A",,"all",,,,"T")/100,"") -> 0.572519084 | M42: =IFERROR(RTD("cqg.rtd",,"StudyData",A42,"PCB","BaseType=Index,Index=1","Open","A",,"all",,,,"T")/100,"") -> 0.01245480112 | O42: =IFERROR(RTD("cqg.rtd",,"StudyData",A42,"PCB","BaseType=Index,Index=1","High","A",,"all",,,,"T")/100,"") -> 0.9304941744 | Q42: =IFERROR(RTD("cqg.rtd",,"StudyData",A42,"PCB","BaseType=Index,Index=1","Low","A",,"all",,,,"T")/100,"") -> -0.3065488148 | R42: ='NLR 2'!R9 -> https://finance.yahoo.com/quote/NNE
A43: =TRIM('NLR 2'!O10) -> S.US.DNN | B43: News | C43: =IFERROR(RTD("cqg.rtd", ,"ContractData",A43, "LongDescription",, "T")&" ("&RIGHT(A43,LEN(A43)-5)&")","") -> Denison Mines Corp (DNN) | H43: =IFERROR(RTD("cqg.rtd", ,"ContractData",A43, "LastTradeToday",, "T"),"") ->  | I43: =IFERROR(RTD("cqg.rtd", ,"ContractData",A43, "NetLastTradeToday",, "T"),"") ->  | J43: =IFERROR(RTD("cqg.rtd",,"StudyData",A43, "PCB","BaseType=Index,Index=1", "Close", "A",,"all",,,,"T")/100,"") -> 0.55 | K43: =IFERROR(RTD("cqg.rtd",,"StudyData",A43,"PCB","BaseType=Index,Index=1","Close","A",,"all",,,,"T")/100,"") -> 0.55 | M43: =IFERROR(RTD("cqg.rtd",,"StudyData",A43,"PCB","BaseType=Index,Index=1","Open","A",,"all",,,,"T")/100,"") -> 0.03333333333 | O43: =IFERROR(RTD("cqg.rtd",,"StudyData",A43,"PCB","BaseType=Index,Index=1","High","A",,"all",,,,"T")/100,"") -> 0.6388888889 | Q43: =IFERROR(RTD("cqg.rtd",,"StudyData",A43,"PCB","BaseType=Index,Index=1","Low","A",,"all",,,,"T")/100,"") -> -0.4 | R43: ='NLR 2'!R10 -> https://finance.yahoo.com/quote/DNN
A44: =TRIM('NLR 2'!O11) -> S.US.CEG | B44: News | C44: =IFERROR(RTD("cqg.rtd", ,"ContractData",A44, "LongDescription",, "T")&" ("&RIGHT(A44,LEN(A44)-5)&")","") -> Constellation Energy Corporation (CEG) | H44: =IFERROR(RTD("cqg.rtd", ,"ContractData",A44, "LastTradeToday",, "T"),"") ->  | I44: =IFERROR(RTD("cqg.rtd", ,"ContractData",A44, "NetLastTradeToday",, "T"),"") ->  | J44: =IFERROR(RTD("cqg.rtd",,"StudyData",A44, "PCB","BaseType=Index,Index=1", "Close", "A",,"all",,,,"T")/100,"") -> 0.4941665549 | K44: =IFERROR(RTD("cqg.rtd",,"StudyData",A44,"PCB","BaseType=Index,Index=1","Close","A",,"all",,,,"T")/100,"") -> 0.4941665549 | M44: =IFERROR(RTD("cqg.rtd",,"StudyData",A44,"PCB","BaseType=Index,Index=1","Open","A",,"all",,,,"T")/100,"") -> 0.01193509454 | O44: =IFERROR(RTD("cqg.rtd",,"StudyData",A44,"PCB","BaseType=Index,Index=1","High","A",,"all",,,,"T")/100,"") -> 0.5958160118 | Q44: =IFERROR(RTD("cqg.rtd",,"StudyData",A44,"PCB","BaseType=Index,Index=1","Low","A",,"all",,,,"T")/100,"") -> -0.2783961379 | R44: ='NLR 2'!R11 -> https://finance.yahoo.com/quote/CEG
A45: =TRIM('NLR 2'!O12) -> S.US.NXE | B45: News | C45: =IFERROR(RTD("cqg.rtd", ,"ContractData",A45, "LongDescription",, "T")&" ("&RIGHT(A45,LEN(A45)-5)&")","") -> Nexgen Energy Ltd. (NXE) | H45: =IFERROR(RTD("cqg.rtd", ,"ContractData",A45, "LastTradeToday",, "T"),"") ->  | I45: =IFERROR(RTD("cqg.rtd", ,"ContractData",A45, "NetLastTradeToday",, "T"),"") ->  | J45: =IFERROR(RTD("cqg.rtd",,"StudyData",A45, "PCB","BaseType=Index,Index=1", "Close", "A",,"all",,,,"T")/100,"") -> 0.3651515152 | K45: =IFERROR(RTD("cqg.rtd",,"StudyData",A45,"PCB","BaseType=Index,Index=1","Close","A",,"all",,,,"T")/100,"") -> 0.3651515152 | M45: =IFERROR(RTD("cqg.rtd",,"StudyData",A45,"PCB","BaseType=Index,Index=1","Open","A",,"all",,,,"T")/100,"") -> 0.02575757576 | O45: =IFERROR(RTD("cqg.rtd",,"StudyData",A45,"PCB","BaseType=Index,Index=1","High","A",,"all",,,,"T")/100,"") -> 0.4272727273 | Q45: =IFERROR(RTD("cqg.rtd",,"StudyData",A45,"PCB","BaseType=Index,Index=1","Low","A",,"all",,,,"T")/100,"") -> -0.4075757576 | R45: ='NLR 2'!R12 -> https://finance.yahoo.com/quote/NXE
A46: =TRIM('NLR 2'!O13) -> S.US.PEG | B46: News | C46: =IFERROR(RTD("cqg.rtd", ,"ContractData",A46, "LongDescription",, "T")&" ("&RIGHT(A46,LEN(A46)-5)&")","") -> Pub Svc Entrpr Grp Inc (PEG) | H46: =IFERROR(RTD("cqg.rtd", ,"ContractData",A46, "LastTradeToday",, "T"),"") ->  | I46: =IFERROR(RTD("cqg.rtd", ,"ContractData",A46, "NetLastTradeToday",, "T"),"") ->  | J46: =IFERROR(RTD("cqg.rtd",,"StudyData",A46, "PCB","BaseType=Index,Index=1", "Close", "A",,"all",,,,"T")/100,"") -> -0.0171617943 | K46: =IFERROR(RTD("cqg.rtd",,"StudyData",A46,"PCB","BaseType=Index,Index=1","Close","A",,"all",,,,"T")/100,"") -> -0.0171617943 | M46: =IFERROR(RTD("cqg.rtd",,"StudyData",A46,"PCB","BaseType=Index,Index=1","Open","A",,"all",,,,"T")/100,"") -> 0.007811575334 | O46: =IFERROR(RTD("cqg.rtd",,"StudyData",A46,"PCB","BaseType=Index,Index=1","High","A",,"all",,,,"T")/100,"") -> 0.08000946858 | Q46: =IFERROR(RTD("cqg.rtd",,"StudyData",A46,"PCB","BaseType=Index,Index=1","Low","A",,"all",,,,"T")/100,"") -> -0.1162267724 | R46: ='NLR 2'!R13 -> https://finance.yahoo.com/quote/PEG
A47: =TRIM('NLR 2'!O14) -> S.US.EU | B47: News | C47: =IFERROR(RTD("cqg.rtd", ,"ContractData",A47, "LongDescription",, "T")&" ("&RIGHT(A47,LEN(A47)-5)&")","") -> enCore Energy Corp. (EU) | H47: =IFERROR(RTD("cqg.rtd", ,"ContractData",A47, "LastTradeToday",, "T"),"") ->  | I47: =IFERROR(RTD("cqg.rtd", ,"ContractData",A47, "NetLastTradeToday",, "T"),"") ->  | J47: =IFERROR(RTD("cqg.rtd",,"StudyData",A47, "PCB","BaseType=Index,Index=1", "Close", "A",,"all",,,,"T")/100,"") -> -0.09384164223 | K47: =IFERROR(RTD("cqg.rtd",,"StudyData",A47,"PCB","BaseType=Index,Index=1","Close","A",,"all",,,,"T")/100,"") -> -0.09384164223 | M47: =IFERROR(RTD("cqg.rtd",,"StudyData",A47,"PCB","BaseType=Index,Index=1","Open","A",,"all",,,,"T")/100,"") -> 0.02052785924 | O47: =IFERROR(RTD("cqg.rtd",,"StudyData",A47,"PCB","BaseType=Index,Index=1","High","A",,"all",,,,"T")/100,"") -> 0.1202346041 | Q47: =IFERROR(RTD("cqg.rtd",,"StudyData",A47,"PCB","BaseType=Index,Index=1","Low","A",,"all",,,,"T")/100,"") -> -0.7038123167 | R47: ='NLR 2'!R14 -> https://finance.yahoo.com/quote/EU
A48: =TRIM('NLR 2'!O15) -> S.US.PCG | B48: News | C48: =IFERROR(RTD("cqg.rtd", ,"ContractData",A48, "LongDescription",, "T")&" ("&RIGHT(A48,LEN(A48)-5)&")","") -> PG&E Corp Hldg Co (PCG) | H48: =IFERROR(RTD("cqg.rtd", ,"ContractData",A48, "LastTradeToday",, "T"),"") ->  | I48: =IFERROR(RTD("cqg.rtd", ,"ContractData",A48, "NetLastTradeToday",, "T"),"") ->  | J48: =IFERROR(RTD("cqg.rtd",,"StudyData",A48, "PCB","BaseType=Index,Index=1", "Close", "A",,"all",,,,"T")/100,"") -> -0.253716551 | K48: =IFERROR(RTD("cqg.rtd",,"StudyData",A48,"PCB","BaseType=Index,Index=1","Close","A",,"all",,,,"T")/100,"") -> -0.253716551 | M48: =IFERROR(RTD("cqg.rtd",,"StudyData",A48,"PCB","BaseType=Index,Index=1","Open","A",,"all",,,,"T")/100,"") -> 0.004459861249 | O48: =IFERROR(RTD("cqg.rtd",,"StudyData",A48,"PCB","BaseType=Index,Index=1","High","A",,"all",,,,"T")/100,"") -> 0.01238850347 | Q48: =IFERROR(RTD("cqg.rtd",,"StudyData",A48,"PCB","BaseType=Index,Index=1","Low","A",,"all",,,,"T")/100,"") -> -0.35728444 | R48: ='NLR 2'!R15 -> https://finance.yahoo.com/quote/PCG
C49: CQG Inc., Copyright © 2025 | G49: Designed by Thom Hartle | J49: From their website: "NLR offers comprehensive exposure including utilities, uranium miners, and service providers." | Z49: =Z52 -> 100% of the stocks in the ETF are higher today
Z51: =NLR!B103 -> 1 | AA51: of the stocks in the ETF are higher today
Z52: =TEXT(Display!Z51,"0%")&" "&Display!AA51 -> 100% of the stocks in the ETF are higher today

Sheet NLR
A1: =IF(Symbols!A1="","",Symbols!A1) -> S.US.BWXT | B1: =IF(A1="","",IF(J1>0,1,0)) -> 1 | C1: =A1 -> S.US.BWXT | D1: =IF(A1="","",RTD("cqg.rtd", ,"ContractData",C1, "LongDescription",, "T")) -> BWX Technologies, Inc. | F1: =("$J$"&"1"&":$J$"&A103) -> $J$1:$J$15 | H1: =IF(A1="","",RTD("cqg.rtd", ,"ContractData",C1, "LastTradeToday",, "T")) ->  | I1: =IF(A1="","",RTD("cqg.rtd", ,"ContractData",C1, "NetLastTradeToday",, "T")) ->  | J1: =IF(A1="","",IFERROR(RTD("cqg.rtd", ,"ContractData",C1, "PerCentNetLastTrade",, "T")/100,"")) ->  | K1: =IF(A1="","",RTD("cqg.rtd", ,"ContractData", C1, "T_CVol",, "T")) -> 2377 | L1: 1 | M1: =IFERROR(RANK($J1,INDIRECT(("$J$"&"1"&":$J$"&$A$103)))+COUNTIF($J$1:J1,J1)-1,"") ->  | N1: =C1 -> S.US.BWXT | O1: =IFERROR(VLOOKUP($L1,$M$1:$N$101,2,FALSE),"") ->  | P1: =RTD("cqg.rtd", ,"ContractData",O1, "LongDescription",, "T") -> Obligatory parameter <contract>(position - 1) is not specified | Q1: =IFERROR(RTD("cqg.rtd", ,"ContractData",O1, "PerCentNetLastTrade",, "T")/100,"") ->  | R1: ="https://finance.yahoo.com/quote/"&RIGHT(O1,(LEN(O1)-5)) ->  | T1: =IF(Q1>=0,Q1,NA()) ->  | U1: =IF(Q1>=0,NA(),Q1) ->  | V1: =IF(ISERROR(T1),U1,T1) ->  | W1: =IF(Q1<0,"",IFERROR(RTD("cqg.rtd", ,"ContractData",O1, "LongDescription",, "T"),"")) -> Obligatory parameter <contract>(position - 1) is not specified | Z1: =IF(W1="","",IFERROR(T1,Q1)) ->  | AA1: =MIN(J1:J101) -> 0 | AB1: =VLOOKUP(AA1,J1:O98,4,FALSE) ->  | AC1: =VLOOKUP($AB1,$M$1:$N$101,2,FALSE) ->  | AD1: =IF(RTD("cqg.rtd", ,"ContractData",AC1, "PerCentNetLastTrade",, "T")>0,"",IFERROR(RTD("cqg.rtd", ,"ContractData",AC1, "PerCentNetLastTrade",, "T")/100,"")) ->  | AE1: =IF(AD1>0,"",IFERROR(RTD("cqg.rtd", ,"ContractData",AC1, "LongDescription",, "T"),"")) ->  | AF1: ="" ->  | AG1: =IF(AD1>0,"",IFERROR(AD1*-1,"")) ->  | AH1: ="https://finance.yahoo.com/quote/"&RIGHT(AC1,(LEN(AC1)-5)) -> 
A2: =IF(Symbols!A2="","",Symbols!A2) -> S.US.CCJ | B2: =IF(A2="","",IF(J2>0,1,0)) -> 1 | C2: =A2 -> S.US.CCJ | D2: =IF(A2="","",RTD("cqg.rtd", ,"ContractData",C2, "LongDescription",, "T")) -> Cameco Corp | H2: =IF(A2="","",RTD("cqg.rtd", ,"ContractData",C2, "LastTradeToday",, "T")) ->  | I2: =IF(A2="","",RTD("cqg.rtd", ,"ContractData",C2, "NetLastTradeToday",, "T")) ->  | J2: =IF(A2="","",IFERROR(RTD("cqg.rtd", ,"ContractData",C2, "PerCentNetLastTrade",, "T")/100,"")) ->  | K2: =IF(A2="","",RTD("cqg.rtd", ,"ContractData", C2, "T_CVol",, "T")) -> 18454 | L2: =L1+1 -> 2 | M2: =IFERROR(RANK($J2,INDIRECT(("$J$"&"1"&":$J$"&$A$103)))+COUNTIF($J$1:J2,J2)-1,"") ->  | N2: =C2 -> S.US.CCJ | O2: =IFERROR(VLOOKUP($L2,$M$1:$N$101,2,FALSE),"") ->  | P2: =RTD("cqg.rtd", ,"ContractData",O2, "LongDescription",, "T") -> Obligatory parameter <contract>(position - 1) is not specified | Q2: =IFERROR(RTD("cqg.rtd", ,"ContractData",O2, "PerCentNetLastTrade",, "T")/100,"") ->  | R2: ="https://finance.yahoo.com/quote/"&RIGHT(O2,(LEN(O2)-5)) ->  | T2: =IF(Q2>=0,Q2,NA()) ->  | U2: =IF(Q2>=0,NA(),Q2) ->  | V2: =IF(ISERROR(T2),U2,T2) ->  | W2: =IF(Q2<0,"",IFERROR(RTD("cqg.rtd", ,"ContractData",O2, "LongDescription",, "T"),"")) -> Obligatory parameter <contract>(position - 1) is not specified | Z2: =IF(W2="","",IFERROR(T2,Q2)) ->  | AB2: =AB1-1 ->  | AC2: =VLOOKUP($AB2,$M$1:$N$101,2,FALSE) ->  | AD2: =IF(RTD("cqg.rtd", ,"ContractData",AC2, "PerCentNetLastTrade",, "T")>0,"",IFERROR(RTD("cqg.rtd", ,"ContractData",AC2, "PerCentNetLastTrade",, "T")/100,"")) ->  | AE2: =IF(AD2>0,"",IFERROR(RTD("cqg.rtd", ,"ContractData",AC2, "LongDescription",, "T"),"")) ->  | AF2: ="" ->  | AG2: =IF(AD2>0,"",IFERROR(AD2*-1,"")) ->  | AH2: ="https://finance.yahoo.com/quote/"&RIGHT(AC2,(LEN(AC2)-5)) -> 
A3: =IF(Symbols!A3="","",Symbols!A3) -> S.US.CEG | B3: 1 | C3: S.US.CEG | D3: =IF(A3="","",RTD("cqg.rtd", ,"ContractData",C3, "LongDescription",, "T")) -> Constellation Energy Corporation | H3: =IF(A3="","",RTD("cqg.rtd", ,"ContractData",C3, "LastTradeToday",, "T")) ->  | I3: =IF(A3="","",RTD("cqg.rtd", ,"ContractData",C3, "NetLastTradeToday",, "T")) ->  | J3: =IF(A3="","",IFERROR(RTD("cqg.rtd", ,"ContractData",C3, "PerCentNetLastTrade",, "T")/100,"")) ->  | K3: =IF(A3="","",RTD("cqg.rtd", ,"ContractData", C3, "T_CVol",, "T")) -> 4682 | L3: =L2+1 -> 3 | M3: =IFERROR(RANK($J3,INDIRECT(("$J$"&"1"&":$J$"&$A$103)))+COUNTIF($J$1:J3,J3)-1,"") ->  | N3: S.US.CEG | P3: =RTD("cqg.rtd", ,"ContractData",O3, "LongDescription",, "T") -> Obligatory parameter <contract>(position - 1) is not specified | Q3: =IFERROR(RTD("cqg.rtd", ,"ContractData",O3, "PerCentNetLastTrade",, "T")/100,"") ->  | W3: =IF(Q3<0,"",IFERROR(RTD("cqg.rtd", ,"ContractData",O3, "LongDescription",, "T"),"")) -> Obligatory parameter <contract>(position - 1) is not specified | AB3: =AB2-1 ->  | AD3: =IF(RTD("cqg.rtd", ,"ContractData",AC3, "PerCentNetLastTrade",, "T")>0,"",IFERROR(RTD("cqg.rtd", ,"ContractData",AC3, "PerCentNetLastTrade",, "T")/100,"")) ->  | AE3: =IF(AD3>0,"",IFERROR(RTD("cqg.rtd", ,"ContractData",AC3, "LongDescription",, "T"),"")) ->  | AF3: ="" -> 
A4: =IF(Symbols!A4="","",Symbols!A4) -> S.US.DNN | B4: 1 | C4: S.US.DNN | D4: =IF(A4="","",RTD("cqg.rtd", ,"ContractData",C4, "LongDescription",, "T")) -> Denison Mines Corp | H4: =IF(A4="","",RTD("cqg.rtd", ,"ContractData",C4, "LastTradeToday",, "T")) ->  | I4: =IF(A4="","",RTD("cqg.rtd", ,"ContractData",C4, "NetLastTradeToday",, "T")) ->  | J4: =IF(A4="","",IFERROR(RTD("cqg.rtd", ,"ContractData",C4, "PerCentNetLastTrade",, "T")/100,"")) ->  | K4: =IF(A4="","",RTD("cqg.rtd", ,"ContractData", C4, "T_CVol",, "T")) -> 68693 | L4: 4 | M4: =IFERROR(RANK($J4,INDIRECT(("$J$"&"1"&":$J$"&$A$103)))+COUNTIF($J$1:J4,J4)-1,"") ->  | N4: S.US.DNN | P4: =RTD("cqg.rtd", ,"ContractData",O4, "LongDescription",, "T") -> Obligatory parameter <contract>(position - 1) is not specified | Q4: =IFERROR(RTD("cqg.rtd", ,"ContractData",O4, "PerCentNetLastTrade",, "T")/100,"") ->  | W4: =IF(Q4<0,"",IFERROR(RTD("cqg.rtd", ,"ContractData",O4, "LongDescription",, "T"),"")) -> Obligatory parameter <contract>(position - 1) is not specified | AD4: =IF(RTD("cqg.rtd", ,"ContractData",AC4, "PerCentNetLastTrade",, "T")>0,"",IFERROR(RTD("cqg.rtd", ,"ContractData",AC4, "PerCentNetLastTrade",, "T")/100,"")) ->  | AE4: =IF(AD4>0,"",IFERROR(RTD("cqg.rtd", ,"ContractData",AC4, "LongDescription",, "T"),"")) ->  | AF4: ="" -> 
A5: =IF(Symbols!A5="","",Symbols!A5) -> S.US.EU | B5: 1 | C5: S.US.EU | D5: =IF(A5="","",RTD("cqg.rtd", ,"ContractData",C5, "LongDescription",, "T")) -> enCore Energy Corp. | H5: =IF(A5="","",RTD("cqg.rtd", ,"ContractData",C5, "LastTradeToday",, "T")) ->  | I5: =IF(A5="","",RTD("cqg.rtd", ,"ContractData",C5, "NetLastTradeToday",, "T")) ->  | J5: =IF(A5="","",IFERROR(RTD("cqg.rtd", ,"ContractData",C5, "PerCentNetLastTrade",, "T")/100,"")) ->  | K5: =IF(A5="","",RTD("cqg.rtd", ,"ContractData", C5, "T_CVol",, "T")) -> 5264 | L5: 5 | M5: =IFERROR(RANK($J5,INDIRECT(("$J$"&"1"&":$J$"&$A$103)))+COUNTIF($J$1:J5,J5)-1,"") ->  | N5: S.US.EU | P5: =RTD("cqg.rtd", ,"ContractData",O5, "LongDescription",, "T") -> Obligatory parameter <contract>(position - 1) is not specified | Q5: =IFERROR(RTD("cqg.rtd", ,"ContractData",O5, "PerCentNetLastTrade",, "T")/100,"") ->  | W5: =IF(Q5<0,"",IFERROR(RTD("cqg.rtd", ,"ContractData",O5, "LongDescription",, "T"),"")) -> Obligatory parameter <contract>(position - 1) is not specified | AD5: =IF(RTD("cqg.rtd", ,"ContractData",AC5, "PerCentNetLastTrade",, "T")>0,"",IFERROR(RTD("cqg.rtd", ,"ContractData",AC5, "PerCentNetLastTrade",, "T")/100,"")) ->  | AE5: =IF(AD5>0,"",IFERROR(RTD("cqg.rtd", ,"ContractData",AC5, "LongDescription",, "T"),"")) ->  | AF5: ="" -> 
A6: =IF(Symbols!A6="","",Symbols!A6) -> S.US.LEU | B6: 1 | C6: S.US.LEU | D6: =IF(A6="","",RTD("cqg.rtd", ,"ContractData",C6, "LongDescription",, "T")) -> Centrus Energy Corp. | H6: =IF(A6="","",RTD("cqg.rtd", ,"ContractData",C6, "LastTradeToday",, "T")) ->  | I6: =IF(A6="","",RTD("cqg.rtd", ,"ContractData",C6, "NetLastTradeToday",, "T")) ->  | J6: =IF(A6="","",IFERROR(RTD("cqg.rtd", ,"ContractData",C6, "PerCentNetLastTrade",, "T")/100,"")) ->  | K6: =IF(A6="","",RTD("cqg.rtd", ,"ContractData", C6, "T_CVol",, "T")) -> 12936 | L6: 6 | M6: =IFERROR(RANK($J6,INDIRECT(("$J$"&"1"&":$J$"&$A$103)))+COUNTIF($J$1:J6,J6)-1,"") ->  | N6: S.US.LEU | P6: =RTD("cqg.rtd", ,"ContractData",O6, "LongDescription",, "T") -> Obligatory parameter <contract>(position - 1) is not specified | Q6: =IFERROR(RTD("cqg.rtd", ,"ContractData",O6, "PerCentNetLastTrade",, "T")/100,"") ->  | W6: =IF(Q6<0,"",IFERROR(RTD("cqg.rtd", ,"ContractData",O6, "LongDescription",, "T"),"")) -> Obligatory parameter <contract>(position - 1) is not specified | AD6: =IF(RTD("cqg.rtd", ,"ContractData",AC6, "PerCentNetLastTrade",, "T")>0,"",IFERROR(RTD("cqg.rtd", ,"ContractData",AC6, "PerCentNetLastTrade",, "T")/100,"")) ->  | AE6: =IF(AD6>0,"",IFERROR(RTD("cqg.rtd", ,"ContractData",AC6, "LongDescription",, "T"),"")) ->  | AF6: ="" -> 
A7: =IF(Symbols!A7="","",Symbols!A7) -> S.US.NNE | B7: 1 | C7: S.US.NNE | D7: =IF(A7="","",RTD("cqg.rtd", ,"ContractData",C7, "LongDescription",, "T")) -> Nano Nuclear Energy Inc. | H7: =IF(A7="","",RTD("cqg.rtd", ,"ContractData",C7, "LastTradeToday",, "T")) ->  | I7: =IF(A7="","",RTD("cqg.rtd", ,"ContractData",C7, "NetLastTradeToday",, "T")) ->  | J7: =IF(A7="","",IFERROR(RTD("cqg.rtd", ,"ContractData",C7, "PerCentNetLastTrade",, "T")/100,"")) ->  | K7: =IF(A7="","",RTD("cqg.rtd", ,"ContractData", C7, "T_CVol",, "T")) -> 52655 | L7: 7 | M7: =IFERROR(RANK($J7,INDIRECT(("$J$"&"1"&":$J$"&$A$103)))+COUNTIF($J$1:J7,J7)-1,"") ->  | N7: S.US.NNE | P7: =RTD("cqg.rtd", ,"ContractData",O7, "LongDescription",, "T") -> Obligatory parameter <contract>(position - 1) is not specified | Q7: =IFERROR(RTD("cqg.rtd", ,"ContractData",O7, "PerCentNetLastTrade",, "T")/100,"") ->  | W7: =IF(Q7<0,"",IFERROR(RTD("cqg.rtd", ,"ContractData",O7, "LongDescription",, "T"),"")) -> Obligatory parameter <contract>(position - 1) is not specified | AD7: =IF(RTD("cqg.rtd", ,"ContractData",AC7, "PerCentNetLastTrade",, "T")>0,"",IFERROR(RTD("cqg.rtd", ,"ContractData",AC7, "PerCentNetLastTrade",, "T")/100,"")) ->  | AE7: =IF(AD7>0,"",IFERROR(RTD("cqg.rtd", ,"ContractData",AC7, "LongDescription",, "T"),"")) ->  | AF7: ="" -> 
A8: =IF(Symbols!A8="","",Symbols!A8) -> S.US.NXE | B8: 1 | C8: S.US.NXE | D8: =IF(A8="","",RTD("cqg.rtd", ,"ContractData",C8, "LongDescription",, "T")) -> Nexgen Energy Ltd. | H8: =IF(A8="","",RTD("cqg.rtd", ,"ContractData",C8, "LastTradeToday",, "T")) ->  | I8: =IF(A8="","",RTD("cqg.rtd", ,"ContractData",C8, "NetLastTradeToday",, "T")) ->  | J8: =IF(A8="","",IFERROR(RTD("cqg.rtd", ,"ContractData",C8, "PerCentNetLastTrade",, "T")/100,"")) ->  | K8: =IF(A8="","",RTD("cqg.rtd", ,"ContractData", C8, "T_CVol",, "T")) -> 13593 | L8: 8 | M8: =IFERROR(RANK($J8,INDIRECT(("$J$"&"1"&":$J$"&$A$103)))+COUNTIF($J$1:J8,J8)-1,"") ->  | N8: S.US.NXE | P8: =RTD("cqg.rtd", ,"ContractData",O8, "LongDescription",, "T") -> Obligatory parameter <contract>(position - 1) is not specified | Q8: =IFERROR(RTD("cqg.rtd", ,"ContractData",O8, "PerCentNetLastTrade",, "T")/100,"") ->  | W8: =IF(Q8<0,"",IFERROR(RTD("cqg.rtd", ,"ContractData",O8, "LongDescription",, "T"),"")) -> Obligatory parameter <contract>(position - 1) is not specified | AD8: =IF(RTD("cqg.rtd", ,"ContractData",AC8, "PerCentNetLastTrade",, "T")>0,"",IFERROR(RTD("cqg.rtd", ,"ContractData",AC8, "PerCentNetLastTrade",, "T")/100,"")) ->  | AE8: =IF(AD8>0,"",IFERROR(RTD("cqg.rtd", ,"ContractData",AC8, "LongDescription",, "T"),"")) ->  | AF8: ="" -> 
A9: =IF(Symbols!A9="","",Symbols!A9) -> S.US.OKLO | B9: 1 | C9: S.US.OKLO | D9: =IF(A9="","",RTD("cqg.rtd", ,"ContractData",C9, "LongDescription",, "T")) -> Oklo Inc. | H9: =IF(A9="","",RTD("cqg.rtd", ,"ContractData",C9, "LastTradeToday",, "T")) ->  | I9: =IF(A9="","",RTD("cqg.rtd", ,"ContractData",C9, "NetLastTradeToday",, "T")) ->  | J9: =IF(A9="","",IFERROR(RTD("cqg.rtd", ,"ContractData",C9, "PerCentNetLastTrade",, "T")/100,"")) ->  | K9: =IF(A9="","",RTD("cqg.rtd", ,"ContractData", C9, "T_CVol",, "T")) -> 634365 | L9: 9 | M9: =IFERROR(RANK($J9,INDIRECT(("$J$"&"1"&":$J$"&$A$103)))+COUNTIF($J$1:J9,J9)-1,"") ->  | N9: S.US.OKLO | P9: =RTD("cqg.rtd", ,"ContractData",O9, "LongDescription",, "T") -> Obligatory parameter <contract>(position - 1) is not specified | Q9: =IFERROR(RTD("cqg.rtd", ,"ContractData",O9, "PerCentNetLastTrade",, "T")/100,"") ->  | W9: =IF(Q9<0,"",IFERROR(RTD("cqg.rtd", ,"ContractData",O9, "LongDescription",, "T"),"")) -> Obligatory parameter <contract>(position - 1) is not specified | AD9: =IF(RTD("cqg.rtd", ,"ContractData",AC9, "PerCentNetLastTrade",, "T")>0,"",IFERROR(RTD("cqg.rtd", ,"ContractData",AC9, "PerCentNetLastTrade",, "T")/100,"")) ->  | AE9: =IF(AD9>0,"",IFERROR(RTD("cqg.rtd", ,"ContractData",AC9, "LongDescription",, "T"),"")) ->  | AF9: ="" -> 
A10: =IF(Symbols!A10="","",Symbols!A10) -> S.US.PCG | B10: 1 | C10: S.US.PCG | D10: =IF(A10="","",RTD("cqg.rtd", ,"ContractData",C10, "LongDescription",, "T")) -> PG&E Corp Hldg Co | H10: =IF(A10="","",RTD("cqg.rtd", ,"ContractData",C10, "LastTradeToday",, "T")) ->  | I10: =IF(A10="","",RTD("cqg.rtd", ,"ContractData",C10, "NetLastTradeToday",, "T")) ->  | J10: =IF(A10="","",IFERROR(RTD("cqg.rtd", ,"ContractData",C10, "PerCentNetLastTrade",, "T")/100,"")) ->  | K10: =IF(A10="","",RTD("cqg.rtd", ,"ContractData", C10, "T_CVol",, "T")) -> 5160 | L10: 10 | M10: =IFERROR(RANK($J10,INDIRECT(("$J$"&"1"&":$J$"&$A$103)))+COUNTIF($J$1:J10,J10)-1,"") ->  | N10: S.US.PCG | P10: =RTD("cqg.rtd", ,"ContractData",O10, "LongDescription",, "T") -> Obligatory parameter <contract>(position - 1) is not specified | Q10: =IFERROR(RTD("cqg.rtd", ,"ContractData",O10, "PerCentNetLastTrade",, "T")/100,"") ->  | W10: =IF(Q10<0,"",IFERROR(RTD("cqg.rtd", ,"ContractData",O10, "LongDescription",, "T"),"")) -> Obligatory parameter <contract>(position - 1) is not specified | AD10: =IF(RTD("cqg.rtd", ,"ContractData",AC10, "PerCentNetLastTrade",, "T")>0,"",IFERROR(RTD("cqg.rtd", ,"ContractData",AC10, "PerCentNetLastTrade",, "T")/100,"")) ->  | AE10: =IF(AD10>0,"",IFERROR(RTD("cqg.rtd", ,"ContractData",AC10, "LongDescription",, "T"),"")) ->  | AF10: ="" -> 
A11: =IF(Symbols!A11="","",Symbols!A11) -> S.US.PEG | B11: 1 | C11: S.US.PEG | D11: =IF(A11="","",RTD("cqg.rtd", ,"ContractData",C11, "LongDescription",, "T")) -> Pub Svc Entrpr Grp Inc | H11: =IF(A11="","",RTD("cqg.rtd", ,"ContractData",C11, "LastTradeToday",, "T")) ->  | I11: =IF(A11="","",RTD("cqg.rtd", ,"ContractData",C11, "NetLastTradeToday",, "T")) ->  | J11: =IF(A11="","",IFERROR(RTD("cqg.rtd", ,"ContractData",C11, "PerCentNetLastTrade",, "T")/100,"")) ->  | K11: =IF(A11="","",RTD("cqg.rtd", ,"ContractData", C11, "T_CVol",, "T")) -> 3 | L11: 11 | M11: =IFERROR(RANK($J11,INDIRECT(("$J$"&"1"&":$J$"&$A$103)))+COUNTIF($J$1:J11,J11)-1,"") ->  | N11: S.US.PEG | P11: =RTD("cqg.rtd", ,"ContractData",O11, "LongDescription",, "T") -> Obligatory parameter <contract>(position - 1) is not specified | Q11: =IFERROR(RTD("cqg.rtd", ,"ContractData",O11, "PerCentNetLastTrade",, "T")/100,"") ->  | W11: =IF(Q11<0,"",IFERROR(RTD("cqg.rtd", ,"ContractData",O11, "LongDescription",, "T"),"")) -> Obligatory parameter <contract>(position - 1) is not specified | AD11: =IF(RTD("cqg.rtd", ,"ContractData",AC11, "PerCentNetLastTrade",, "T")>0,"",IFERROR(RTD("cqg.rtd", ,"ContractData",AC11, "PerCentNetLastTrade",, "T")/100,"")) ->  | AE11: =IF(AD11>0,"",IFERROR(RTD("cqg.rtd", ,"ContractData",AC11, "LongDescription",, "T"),"")) ->  | AF11: ="" -> 
A12: =IF(Symbols!A12="","",Symbols!A12) -> S.US.SMR | B12: 1 | C12: S.US.SMR | D12: =IF(A12="","",RTD("cqg.rtd", ,"ContractData",C12, "LongDescription",, "T")) -> NuScale Power Corporation | H12: =IF(A12="","",RTD("cqg.rtd", ,"ContractData",C12, "LastTradeToday",, "T")) ->  | I12: =IF(A12="","",RTD("cqg.rtd", ,"ContractData",C12, "NetLastTradeToday",, "T")) ->  | J12: =IF(A12="","",IFERROR(RTD("cqg.rtd", ,"ContractData",C12, "PerCentNetLastTrade",, "T")/100,"")) ->  | K12: =IF(A12="","",RTD("cqg.rtd", ,"ContractData", C12, "T_CVol",, "T")) -> 1487260 | L12: 12 | M12: =IFERROR(RANK($J12,INDIRECT(("$J$"&"1"&":$J$"&$A$103)))+COUNTIF($J$1:J12,J12)-1,"") ->  | N12: S.US.SMR | P12: =RTD("cqg.rtd", ,"ContractData",O12, "LongDescription",, "T") -> Obligatory parameter <contract>(position - 1) is not specified | Q12: =IFERROR(RTD("cqg.rtd", ,"ContractData",O12, "PerCentNetLastTrade",, "T")/100,"") ->  | W12: =IF(Q12<0,"",IFERROR(RTD("cqg.rtd", ,"ContractData",O12, "LongDescription",, "T"),"")) -> Obligatory parameter <contract>(position - 1) is not specified | AD12: =IF(RTD("cqg.rtd", ,"ContractData",AC12, "PerCentNetLastTrade",, "T")>0,"",IFERROR(RTD("cqg.rtd", ,"ContractData",AC12, "PerCentNetLastTrade",, "T")/100,"")) ->  | AE12: =IF(AD12>0,"",IFERROR(RTD("cqg.rtd", ,"ContractData",AC12, "LongDescription",, "T"),"")) ->  | AF12: ="" -> 
A13: =IF(Symbols!A13="","",Symbols!A13) -> S.US.UEC | B13: 1 | C13: S.US.UEC | D13: =IF(A13="","",RTD("cqg.rtd", ,"ContractData",C13, "LongDescription",, "T")) -> Uranium Energy Corp | H13: =IF(A13="","",RTD("cqg.rtd", ,"ContractData",C13, "LastTradeToday",, "T")) ->  | I13: =IF(A13="","",RTD("cqg.rtd", ,"ContractData",C13, "NetLastTradeToday",, "T")) ->  | J13: =IF(A13="","",IFERROR(RTD("cqg.rtd", ,"ContractData",C13, "PerCentNetLastTrade",, "T")/100,"")) ->  | K13: =IF(A13="","",RTD("cqg.rtd", ,"ContractData", C13, "T_CVol",, "T")) -> 130153 | L13: 13 | M13: =IFERROR(RANK($J13,INDIRECT(("$J$"&"1"&":$J$"&$A$103)))+COUNTIF($J$1:J13,J13)-1,"") ->  | N13: S.US.UEC | P13: =RTD("cqg.rtd", ,"ContractData",O13, "LongDescription",, "T") -> Obligatory parameter <contract>(position - 1) is not specified | Q13: =IFERROR(RTD("cqg.rtd", ,"ContractData",O13, "PerCentNetLastTrade",, "T")/100,"") ->  | W13: =IF(Q13<0,"",IFERROR(RTD("cqg.rtd", ,"ContractData",O13, "LongDescription",, "T"),"")) -> Obligatory parameter <contract>(position - 1) is not specified | AD13: =IF(RTD("cqg.rtd", ,"ContractData",AC13, "PerCentNetLastTrade",, "T")>0,"",IFERROR(RTD("cqg.rtd", ,"ContractData",AC13, "PerCentNetLastTrade",, "T")/100,"")) ->  | AE13: =IF(AD13>0,"",IFERROR(RTD("cqg.rtd", ,"ContractData",AC13, "LongDescription",, "T"),"")) ->  | AF13: ="" -> 
A14: =IF(Symbols!A14="","",Symbols!A14) -> S.US.UUUU | B14: 1 | C14: S.US.UUUU | D14: =IF(A14="","",RTD("cqg.rtd", ,"ContractData",C14, "LongDescription",, "T")) -> Energy Fuels Inc. | H14: =IF(A14="","",RTD("cqg.rtd", ,"ContractData",C14, "LastTradeToday",, "T")) ->  | I14: =IF(A14="","",RTD("cqg.rtd", ,"ContractData",C14, "NetLastTradeToday",, "T")) ->  | J14: =IF(A14="","",IFERROR(RTD("cqg.rtd", ,"ContractData",C14, "PerCentNetLastTrade",, "T")/100,"")) ->  | K14: =IF(A14="","",RTD("cqg.rtd", ,"ContractData", C14, "T_CVol",, "T")) -> 318065 | L14: 14 | M14: =IFERROR(RANK($J14,INDIRECT(("$J$"&"1"&":$J$"&$A$103)))+COUNTIF($J$1:J14,J14)-1,"") ->  | N14: S.US.UUUU | P14: =RTD("cqg.rtd", ,"ContractData",O14, "LongDescription",, "T") -> Obligatory parameter <contract>(position - 1) is not specified | Q14: =IFERROR(RTD("cqg.rtd", ,"ContractData",O14, "PerCentNetLastTrade",, "T")/100,"") ->  | W14: =IF(Q14<0,"",IFERROR(RTD("cqg.rtd", ,"ContractData",O14, "LongDescription",, "T"),"")) -> Obligatory parameter <contract>(position - 1) is not specified | AD14: =IF(RTD("cqg.rtd", ,"ContractData",AC14, "PerCentNetLastTrade",, "T")>0,"",IFERROR(RTD("cqg.rtd", ,"ContractData",AC14, "PerCentNetLastTrade",, "T")/100,"")) ->  | AE14: =IF(AD14>0,"",IFERROR(RTD("cqg.rtd", ,"ContractData",AC14, "LongDescription",, "T"),"")) ->  | AF14: ="" -> 
A15: =IF(Symbols!A15="","",Symbols!A15) -> S.US.NLR | B15: 1 | C15: S.US.NLR | D15: =IF(A15="","",RTD("cqg.rtd", ,"ContractData",C15, "LongDescription",, "T")) -> Market Vectors Uranium+Nuclear EnergyETF | H15: =IF(A15="","",RTD("cqg.rtd", ,"ContractData",C15, "LastTradeToday",, "T")) ->  | I15: =IF(A15="","",RTD("cqg.rtd", ,"ContractData",C15, "NetLastTradeToday",, "T")) ->  | J15: =IF(A15="","",IFERROR(RTD("cqg.rtd", ,"ContractData",C15, "PerCentNetLastTrade",, "T")/100,"")) ->  | K15: =IF(A15="","",RTD("cqg.rtd", ,"ContractData", C15, "T_CVol",, "T")) -> 2311 | L15: 15 | M15: =IFERROR(RANK($J15,INDIRECT(("$J$"&"1"&":$J$"&$A$103)))+COUNTIF($J$1:J15,J15)-1,"") ->  | N15: S.US.NLR | P15: =RTD("cqg.rtd", ,"ContractData",O15, "LongDescription",, "T") -> Obligatory parameter <contract>(position - 1) is not specified | Q15: =IFERROR(RTD("cqg.rtd", ,"ContractData",O15, "PerCentNetLastTrade",, "T")/100,"") ->  | U15: =IF(Q15>=0,NA(),-1*Q15) ->  | W15: =IF(Q15<0,"",IFERROR(RTD("cqg.rtd", ,"ContractData",O15, "LongDescription",, "T"),"")) -> Obligatory parameter <contract>(position - 1) is not specified | AD15: =IF(RTD("cqg.rtd", ,"ContractData",AC15, "PerCentNetLastTrade",, "T")>0,"",IFERROR(RTD("cqg.rtd", ,"ContractData",AC15, "PerCentNetLastTrade",, "T")/100,"")) ->  | AE15: =IF(AD15>0,"",IFERROR(RTD("cqg.rtd", ,"ContractData",AC15, "LongDescription",, "T"),"")) ->  | AF15: ="" -> 
A16: =IF(Symbols!A16="","",Symbols!A16) ->  | D16: =IF(A16="","",RTD("cqg.rtd", ,"ContractData",C16, "LongDescription",, "T")) ->  | H16: =IF(A16="","",RTD("cqg.rtd", ,"ContractData",C16, "LastTradeToday",, "T")) ->  | I16: =IF(A16="","",RTD("cqg.rtd", ,"ContractData",C16, "NetLastTradeToday",, "T")) ->  | J16: =IF(A16="","",IFERROR(RTD("cqg.rtd", ,"ContractData",C16, "PerCentNetLastTrade",, "T")/100,"")) ->  | K16: =IF(A16="","",RTD("cqg.rtd", ,"ContractData", C16, "T_CVol",, "T")) ->  | L16: 16 | M16: =IFERROR(RANK($J16,INDIRECT(("$J$"&"1"&":$J$"&$A$103)))+COUNTIF($J$1:J16,J16)-1,"") -> 
A17: =IF(Symbols!A17="","",Symbols!A17) ->  | D17: =IF(A17="","",RTD("cqg.rtd", ,"ContractData",C17, "LongDescription",, "T")) ->  | H17: =IF(A17="","",RTD("cqg.rtd", ,"ContractData",C17, "LastTradeToday",, "T")) ->  | I17: =IF(A17="","",RTD("cqg.rtd", ,"ContractData",C17, "NetLastTradeToday",, "T")) ->  | J17: =IF(A17="","",IFERROR(RTD("cqg.rtd", ,"ContractData",C17, "PerCentNetLastTrade",, "T")/100,"")) ->  | K17: =IF(A17="","",RTD("cqg.rtd", ,"ContractData", C17, "T_CVol",, "T")) ->  | L17: 17 | M17: =IFERROR(RANK($J17,INDIRECT(("$J$"&"1"&":$J$"&$A$103)))+COUNTIF($J$1:J17,J17)-1,"") -> 
A18: =IF(Symbols!A18="","",Symbols!A18) ->  | D18: =IF(A18="","",RTD("cqg.rtd", ,"ContractData",C18, "LongDescription",, "T")) ->  | H18: =IF(A18="","",RTD("cqg.rtd", ,"ContractData",C18, "LastTradeToday",, "T")) ->  | I18: =IF(A18="","",RTD("cqg.rtd", ,"ContractData",C18, "NetLastTradeToday",, "T")) ->  | J18: =IF(A18="","",IFERROR(RTD("cqg.rtd", ,"ContractData",C18, "PerCentNetLastTrade",, "T")/100,"")) ->  | K18: =IF(A18="","",RTD("cqg.rtd", ,"ContractData", C18, "T_CVol",, "T")) ->  | L18: 18 | M18: =IFERROR(RANK($J18,INDIRECT(("$J$"&"1"&":$J$"&$A$103)))+COUNTIF($J$1:J18,J18)-1,"") -> 
A19: =IF(Symbols!A19="","",Symbols!A19) ->  | D19: =IF(A19="","",RTD("cqg.rtd", ,"ContractData",C19, "LongDescription",, "T")) ->  | H19: =IF(A19="","",RTD("cqg.rtd", ,"ContractData",C19, "LastTradeToday",, "T")) ->  | I19: =IF(A19="","",RTD("cqg.rtd", ,"ContractData",C19, "NetLastTradeToday",, "T")) ->  | J19: =IF(A19="","",IFERROR(RTD("cqg.rtd", ,"ContractData",C19, "PerCentNetLastTrade",, "T")/100,"")) ->  | K19: =IF(A19="","",RTD("cqg.rtd", ,"ContractData", C19, "T_CVol",, "T")) ->  | L19: 19 | M19: =IFERROR(RANK($J19,INDIRECT(("$J$"&"1"&":$J$"&$A$103)))+COUNTIF($J$1:J19,J19)-1,"") -> 
A20: =IF(Symbols!A20="","",Symbols!A20) ->  | D20: =IF(A20="","",RTD("cqg.rtd", ,"ContractData",C20, "LongDescription",, "T")) ->  | H20: =IF(A20="","",RTD("cqg.rtd", ,"ContractData",C20, "LastTradeToday",, "T")) ->  | I20: =IF(A20="","",RTD("cqg.rtd", ,"ContractData",C20, "NetLastTradeToday",, "T")) ->  | J20: =IF(A20="","",IFERROR(RTD("cqg.rtd", ,"ContractData",C20, "PerCentNetLastTrade",, "T")/100,"")) ->  | K20: =IF(A20="","",RTD("cqg.rtd", ,"ContractData", C20, "T_CVol",, "T")) ->  | L20: 20 | M20: =IFERROR(RANK($J20,INDIRECT(("$J$"&"1"&":$J$"&$A$103)))+COUNTIF($J$1:J20,J20)-1,"") -> 
A21: =IF(Symbols!A21="","",Symbols!A21) ->  | D21: =IF(A21="","",RTD("cqg.rtd", ,"ContractData",C21, "LongDescription",, "T")) ->  | H21: =IF(A21="","",RTD("cqg.rtd", ,"ContractData",C21, "LastTradeToday",, "T")) ->  | I21: =IF(A21="","",RTD("cqg.rtd", ,"ContractData",C21, "NetLastTradeToday",, "T")) ->  | J21: =IF(A21="","",IFERROR(RTD("cqg.rtd", ,"ContractData",C21, "PerCentNetLastTrade",, "T")/100,"")) ->  | K21: =IF(A21="","",RTD("cqg.rtd", ,"ContractData", C21, "T_CVol",, "T")) ->  | L21: 21 | M21: =IFERROR(RANK($J21,INDIRECT(("$J$"&"1"&":$J$"&$A$103)))+COUNTIF($J$1:J21,J21)-1,"") -> 
A22: =IF(Symbols!A22="","",Symbols!A22) ->  | D22: =IF(A22="","",RTD("cqg.rtd", ,"ContractData",C22, "LongDescription",, "T")) ->  | H22: =IF(A22="","",RTD("cqg.rtd", ,"ContractData",C22, "LastTradeToday",, "T")) ->  | I22: =IF(A22="","",RTD("cqg.rtd", ,"ContractData",C22, "NetLastTradeToday",, "T")) ->  | J22: =IF(A22="","",IFERROR(RTD("cqg.rtd", ,"ContractData",C22, "PerCentNetLastTrade",, "T")/100,"")) ->  | K22: =IF(A22="","",RTD("cqg.rtd", ,"ContractData", C22, "T_CVol",, "T")) ->  | L22: 22 | M22: =IFERROR(RANK($J22,INDIRECT(("$J$"&"1"&":$J$"&$A$103)))+COUNTIF($J$1:J22,J22)-1,"") -> 
A23: =IF(Symbols!A23="","",Symbols!A23) ->  | D23: =IF(A23="","",RTD("cqg.rtd", ,"ContractData",C23, "LongDescription",, "T")) ->  | H23: =IF(A23="","",RTD("cqg.rtd", ,"ContractData",C23, "LastTradeToday",, "T")) ->  | I23: =IF(A23="","",RTD("cqg.rtd", ,"ContractData",C23, "NetLastTradeToday",, "T")) ->  | J23: =IF(A23="","",IFERROR(RTD("cqg.rtd", ,"ContractData",C23, "PerCentNetLastTrade",, "T")/100,"")) ->  | K23: =IF(A23="","",RTD("cqg.rtd", ,"ContractData", C23, "T_CVol",, "T")) ->  | L23: 23 | M23: =IFERROR(RANK($J23,INDIRECT(("$J$"&"1"&":$J$"&$A$103)))+COUNTIF($J$1:J23,J23)-1,"") -> 
A24: =IF(Symbols!A24="","",Symbols!A24) ->  | D24: =IF(A24="","",RTD("cqg.rtd", ,"ContractData",C24, "LongDescription",, "T")) ->  | H24: =IF(A24="","",RTD("cqg.rtd", ,"ContractData",C24, "LastTradeToday",, "T")) ->  | I24: =IF(A24="","",RTD("cqg.rtd", ,"ContractData",C24, "NetLastTradeToday",, "T")) ->  | J24: =IF(A24="","",IFERROR(RTD("cqg.rtd", ,"ContractData",C24, "PerCentNetLastTrade",, "T")/100,"")) ->  | K24: =IF(A24="","",RTD("cqg.rtd", ,"ContractData", C24, "T_CVol",, "T")) ->  | L24: 24 | M24: =IFERROR(RANK($J24,INDIRECT(("$J$"&"1"&":$J$"&$A$103)))+COUNTIF($J$1:J24,J24)-1,"") -> 
A25: =IF(Symbols!A25="","",Symbols!A25) ->  | D25: =IF(A25="","",RTD("cqg.rtd", ,"ContractData",C25, "LongDescription",, "T")) ->  | H25: =IF(A25="","",RTD("cqg.rtd", ,"ContractData",C25, "LastTradeToday",, "T")) ->  | I25: =IF(A25="","",RTD("cqg.rtd", ,"ContractData",C25, "NetLastTradeToday",, "T")) ->  | J25: =IF(A25="","",IFERROR(RTD("cqg.rtd", ,"ContractData",C25, "PerCentNetLastTrade",, "T")/100,"")) ->  | K25: =IF(A25="","",RTD("cqg.rtd", ,"ContractData", C25, "T_CVol",, "T")) ->  | L25: 25 | M25: =IFERROR(RANK($J25,INDIRECT(("$J$"&"1"&":$J$"&$A$103)))+COUNTIF($J$1:J25,J25)-1,"") -> 
A26: =IF(Symbols!A26="","",Symbols!A26) ->  | D26: =IF(A26="","",RTD("cqg.rtd", ,"ContractData",C26, "LongDescription",, "T")) ->  | H26: =IF(A26="","",RTD("cqg.rtd", ,"ContractData",C26, "LastTradeToday",, "T")) ->  | I26: =IF(A26="","",RTD("cqg.rtd", ,"ContractData",C26, "NetLastTradeToday",, "T")) ->  | J26: =IF(A26="","",IFERROR(RTD("cqg.rtd", ,"ContractData",C26, "PerCentNetLastTrade",, "T")/100,"")) ->  | K26: =IF(A26="","",RTD("cqg.rtd", ,"ContractData", C26, "T_CVol",, "T")) ->  | L26: 26 | M26: =IFERROR(RANK($J26,INDIRECT(("$J$"&"1"&":$J$"&$A$103)))+COUNTIF($J$1:J26,J26)-1,"") -> 
A27: =IF(Symbols!A27="","",Symbols!A27) ->  | D27: =IF(A27="","",RTD("cqg.rtd", ,"ContractData",C27, "LongDescription",, "T")) ->  | H27: =IF(A27="","",RTD("cqg.rtd", ,"ContractData",C27, "LastTradeToday",, "T")) ->  | I27: =IF(A27="","",RTD("cqg.rtd", ,"ContractData",C27, "NetLastTradeToday",, "T")) ->  | J27: =IF(A27="","",IFERROR(RTD("cqg.rtd", ,"ContractData",C27, "PerCentNetLastTrade",, "T")/100,"")) ->  | K27: =IF(A27="","",RTD("cqg.rtd", ,"ContractData", C27, "T_CVol",, "T")) ->  | L27: 27 | M27: =IFERROR(RANK($J27,INDIRECT(("$J$"&"1"&":$J$"&$A$103)))+COUNTIF($J$1:J27,J27)-1,"") -> 
A28: =IF(Symbols!A28="","",Symbols!A28) ->  | D28: =IF(A28="","",RTD("cqg.rtd", ,"ContractData",C28, "LongDescription",, "T")) ->  | H28: =IF(A28="","",RTD("cqg.rtd", ,"ContractData",C28, "LastTradeToday",, "T")) ->  | I28: =IF(A28="","",RTD("cqg.rtd", ,"ContractData",C28, "NetLastTradeToday",, "T")) ->  | J28: =IF(A28="","",IFERROR(RTD("cqg.rtd", ,"ContractData",C28, "PerCentNetLastTrade",, "T")/100,"")) ->  | K28: =IF(A28="","",RTD("cqg.rtd", ,"ContractData", C28, "T_CVol",, "T")) ->  | L28: 28 | M28: =IFERROR(RANK($J28,INDIRECT(("$J$"&"1"&":$J$"&$A$103)))+COUNTIF($J$1:J28,J28)-1,"") -> 
A29: =IF(Symbols!A29="","",Symbols!A29) ->  | D29: =IF(A29="","",RTD("cqg.rtd", ,"ContractData",C29, "LongDescription",, "T")) ->  | H29: =IF(A29="","",RTD("cqg.rtd", ,"ContractData",C29, "LastTradeToday",, "T")) ->  | I29: =IF(A29="","",RTD("cqg.rtd", ,"ContractData",C29, "NetLastTradeToday",, "T")) ->  | J29: =IF(A29="","",IFERROR(RTD("cqg.rtd", ,"ContractData",C29, "PerCentNetLastTrade",, "T")/100,"")) ->  | K29: =IF(A29="","",RTD("cqg.rtd", ,"ContractData", C29, "T_CVol",, "T")) ->  | L29: 29 | M29: =IFERROR(RANK($J29,INDIRECT(("$J$"&"1"&":$J$"&$A$103)))+COUNTIF($J$1:J29,J29)-1,"") -> 
A30: =IF(Symbols!A30="","",Symbols!A30) ->  | D30: =IF(A30="","",RTD("cqg.rtd", ,"ContractData",C30, "LongDescription",, "T")) ->  | H30: =IF(A30="","",RTD("cqg.rtd", ,"ContractData",C30, "LastTradeToday",, "T")) ->  | I30: =IF(A30="","",RTD("cqg.rtd", ,"ContractData",C30, "NetLastTradeToday",, "T")) ->  | J30: =IF(A30="","",IFERROR(RTD("cqg.rtd", ,"ContractData",C30, "PerCentNetLastTrade",, "T")/100,"")) ->  | K30: =IF(A30="","",RTD("cqg.rtd", ,"ContractData", C30, "T_CVol",, "T")) ->  | L30: 30 | M30: =IFERROR(RANK($J30,INDIRECT(("$J$"&"1"&":$J$"&$A$103)))+COUNTIF($J$1:J30,J30)-1,"") -> 
A31: =IF(Symbols!A31="","",Symbols!A31) ->  | D31: =IF(A31="","",RTD("cqg.rtd", ,"ContractData",C31, "LongDescription",, "T")) ->  | H31: =IF(A31="","",RTD("cqg.rtd", ,"ContractData",C31, "LastTradeToday",, "T")) ->  | I31: =IF(A31="","",RTD("cqg.rtd", ,"ContractData",C31, "NetLastTradeToday",, "T")) ->  | J31: =IF(A31="","",IFERROR(RTD("cqg.rtd", ,"ContractData",C31, "PerCentNetLastTrade",, "T")/100,"")) ->  | K31: =IF(A31="","",RTD("cqg.rtd", ,"ContractData", C31, "T_CVol",, "T")) ->  | L31: 31 | M31: =IFERROR(RANK($J31,INDIRECT(("$J$"&"1"&":$J$"&$A$103)))+COUNTIF($J$1:J31,J31)-1,"") -> 
A32: =IF(Symbols!A32="","",Symbols!A32) ->  | D32: =IF(A32="","",RTD("cqg.rtd", ,"ContractData",C32, "LongDescription",, "T")) ->  | H32: =IF(A32="","",RTD("cqg.rtd", ,"ContractData",C32, "LastTradeToday",, "T")) ->  | I32: =IF(A32="","",RTD("cqg.rtd", ,"ContractData",C32, "NetLastTradeToday",, "T")) ->  | J32: =IF(A32="","",IFERROR(RTD("cqg.rtd", ,"ContractData",C32, "PerCentNetLastTrade",, "T")/100,"")) ->  | K32: =IF(A32="","",RTD("cqg.rtd", ,"ContractData", C32, "T_CVol",, "T")) ->  | L32: 32 | M32: =IFERROR(RANK($J32,INDIRECT(("$J$"&"1"&":$J$"&$A$103)))+COUNTIF($J$1:J32,J32)-1,"") -> 
A33: =IF(Symbols!A33="","",Symbols!A33) ->  | D33: =IF(A33="","",RTD("cqg.rtd", ,"ContractData",C33, "LongDescription",, "T")) ->  | H33: =IF(A33="","",RTD("cqg.rtd", ,"ContractData",C33, "LastTradeToday",, "T")) ->  | I33: =IF(A33="","",RTD("cqg.rtd", ,"ContractData",C33, "NetLastTradeToday",, "T")) ->  | J33: =IF(A33="","",IFERROR(RTD("cqg.rtd", ,"ContractData",C33, "PerCentNetLastTrade",, "T")/100,"")) ->  | K33: =IF(A33="","",RTD("cqg.rtd", ,"ContractData", C33, "T_CVol",, "T")) ->  | L33: 33 | M33: =IFERROR(RANK($J33,INDIRECT(("$J$"&"1"&":$J$"&$A$103)))+COUNTIF($J$1:J33,J33)-1,"") -> 
A34: =IF(Symbols!A34="","",Symbols!A34) ->  | D34: =IF(A34="","",RTD("cqg.rtd", ,"ContractData",C34, "LongDescription",, "T")) ->  | H34: =IF(A34="","",RTD("cqg.rtd", ,"ContractData",C34, "LastTradeToday",, "T")) ->  | I34: =IF(A34="","",RTD("cqg.rtd", ,"ContractData",C34, "NetLastTradeToday",, "T")) ->  | J34: =IF(A34="","",IFERROR(RTD("cqg.rtd", ,"ContractData",C34, "PerCentNetLastTrade",, "T")/100,"")) ->  | K34: =IF(A34="","",RTD("cqg.rtd", ,"ContractData", C34, "T_CVol",, "T")) ->  | L34: 34 | M34: =IFERROR(RANK($J34,INDIRECT(("$J$"&"1"&":$J$"&$A$103)))+COUNTIF($J$1:J34,J34)-1,"") -> 
A35: =IF(Symbols!A35="","",Symbols!A35) ->  | D35: =IF(A35="","",RTD("cqg.rtd", ,"ContractData",C35, "LongDescription",, "T")) ->  | H35: =IF(A35="","",RTD("cqg.rtd", ,"ContractData",C35, "LastTradeToday",, "T")) ->  | I35: =IF(A35="","",RTD("cqg.rtd", ,"ContractData",C35, "NetLastTradeToday",, "T")) ->  | J35: =IF(A35="","",IFERROR(RTD("cqg.rtd", ,"ContractData",C35, "PerCentNetLastTrade",, "T")/100,"")) ->  | K35: =IF(A35="","",RTD("cqg.rtd", ,"ContractData", C35, "T_CVol",, "T")) ->  | L35: 35 | M35: =IFERROR(RANK($J35,INDIRECT(("$J$"&"1"&":$J$"&$A$103)))+COUNTIF($J$1:J35,J35)-1,"") -> 
A36: =IF(Symbols!A36="","",Symbols!A36) ->  | D36: =IF(A36="","",RTD("cqg.rtd", ,"ContractData",C36, "LongDescription",, "T")) ->  | H36: =IF(A36="","",RTD("cqg.rtd", ,"ContractData",C36, "LastTradeToday",, "T")) ->  | I36: =IF(A36="","",RTD("cqg.rtd", ,"ContractData",C36, "NetLastTradeToday",, "T")) ->  | J36: =IF(A36="","",IFERROR(RTD("cqg.rtd", ,"ContractData",C36, "PerCentNetLastTrade",, "T")/100,"")) ->  | K36: =IF(A36="","",RTD("cqg.rtd", ,"ContractData", C36, "T_CVol",, "T")) ->  | L36: 36 | M36: =IFERROR(RANK($J36,INDIRECT(("$J$"&"1"&":$J$"&$A$103)))+COUNTIF($J$1:J36,J36)-1,"") -> 
A37: =IF(Symbols!A37="","",Symbols!A37) ->  | D37: =IF(A37="","",RTD("cqg.rtd", ,"ContractData",C37, "LongDescription",, "T")) ->  | H37: =IF(A37="","",RTD("cqg.rtd", ,"ContractData",C37, "LastTradeToday",, "T")) ->  | I37: =IF(A37="","",RTD("cqg.rtd", ,"ContractData",C37, "NetLastTradeToday",, "T")) ->  | J37: =IF(A37="","",IFERROR(RTD("cqg.rtd", ,"ContractData",C37, "PerCentNetLastTrade",, "T")/100,"")) ->  | K37: =IF(A37="","",RTD("cqg.rtd", ,"ContractData", C37, "T_CVol",, "T")) ->  | L37: 37 | M37: =IFERROR(RANK($J37,INDIRECT(("$J$"&"1"&":$J$"&$A$103)))+COUNTIF($J$1:J37,J37)-1,"") -> 
A38: =IF(Symbols!A38="","",Symbols!A38) ->  | D38: =IF(A38="","",RTD("cqg.rtd", ,"ContractData",C38, "LongDescription",, "T")) ->  | H38: =IF(A38="","",RTD("cqg.rtd", ,"ContractData",C38, "LastTradeToday",, "T")) ->  | I38: =IF(A38="","",RTD("cqg.rtd", ,"ContractData",C38, "NetLastTradeToday",, "T")) ->  | J38: =IF(A38="","",IFERROR(RTD("cqg.rtd", ,"ContractData",C38, "PerCentNetLastTrade",, "T")/100,"")) ->  | K38: =IF(A38="","",RTD("cqg.rtd", ,"ContractData", C38, "T_CVol",, "T")) ->  | L38: 38 | M38: =IFERROR(RANK($J38,INDIRECT(("$J$"&"1"&":$J$"&$A$103)))+COUNTIF($J$1:J38,J38)-1,"") -> 
A39: =IF(Symbols!A39="","",Symbols!A39) ->  | D39: =IF(A39="","",RTD("cqg.rtd", ,"ContractData",C39, "LongDescription",, "T")) ->  | H39: =IF(A39="","",RTD("cqg.rtd", ,"ContractData",C39, "LastTradeToday",, "T")) ->  | I39: =IF(A39="","",RTD("cqg.rtd", ,"ContractData",C39, "NetLastTradeToday",, "T")) ->  | J39: =IF(A39="","",IFERROR(RTD("cqg.rtd", ,"ContractData",C39, "PerCentNetLastTrade",, "T")/100,"")) ->  | K39: =IF(A39="","",RTD("cqg.rtd", ,"ContractData", C39, "T_CVol",, "T")) ->  | L39: 39 | M39: =IFERROR(RANK($J39,INDIRECT(("$J$"&"1"&":$J$"&$A$103)))+COUNTIF($J$1:J39,J39)-1,"") -> 
A40: =IF(Symbols!A40="","",Symbols!A40) ->  | D40: =IF(A40="","",RTD("cqg.rtd", ,"ContractData",C40, "LongDescription",, "T")) ->  | H40: =IF(A40="","",RTD("cqg.rtd", ,"ContractData",C40, "LastTradeToday",, "T")) ->  | I40: =IF(A40="","",RTD("cqg.rtd", ,"ContractData",C40, "NetLastTradeToday",, "T")) ->  | J40: =IF(A40="","",IFERROR(RTD("cqg.rtd", ,"ContractData",C40, "PerCentNetLastTrade",, "T")/100,"")) ->  | K40: =IF(A40="","",RTD("cqg.rtd", ,"ContractData", C40, "T_CVol",, "T")) ->  | L40: 40 | M40: =IFERROR(RANK($J40,INDIRECT(("$J$"&"1"&":$J$"&$A$103)))+COUNTIF($J$1:J40,J40)-1,"") -> 
A41: =IF(Symbols!A41="","",Symbols!A41) ->  | D41: =IF(A41="","",RTD("cqg.rtd", ,"ContractData",C41, "LongDescription",, "T")) ->  | H41: =IF(A41="","",RTD("cqg.rtd", ,"ContractData",C41, "LastTradeToday",, "T")) ->  | I41: =IF(A41="","",RTD("cqg.rtd", ,"ContractData",C41, "NetLastTradeToday",, "T")) ->  | J41: =IF(A41="","",IFERROR(RTD("cqg.rtd", ,"ContractData",C41, "PerCentNetLastTrade",, "T")/100,"")) ->  | K41: =IF(A41="","",RTD("cqg.rtd", ,"ContractData", C41, "T_CVol",, "T")) ->  | L41: 41 | M41: =IFERROR(RANK($J41,INDIRECT(("$J$"&"1"&":$J$"&$A$103)))+COUNTIF($J$1:J41,J41)-1,"") -> 
A42: =IF(Symbols!A42="","",Symbols!A42) ->  | D42: =IF(A42="","",RTD("cqg.rtd", ,"ContractData",C42, "LongDescription",, "T")) ->  | H42: =IF(A42="","",RTD("cqg.rtd", ,"ContractData",C42, "LastTradeToday",, "T")) ->  | I42: =IF(A42="","",RTD("cqg.rtd", ,"ContractData",C42, "NetLastTradeToday",, "T")) ->  | J42: =IF(A42="","",IFERROR(RTD("cqg.rtd", ,"ContractData",C42, "PerCentNetLastTrade",, "T")/100,"")) ->  | K42: =IF(A42="","",RTD("cqg.rtd", ,"ContractData", C42, "T_CVol",, "T")) ->  | L42: 42 | M42: =IFERROR(RANK($J42,INDIRECT(("$J$"&"1"&":$J$"&$A$103)))+COUNTIF($J$1:J42,J42)-1,"") -> 
A43: =IF(Symbols!A43="","",Symbols!A43) ->  | D43: =IF(A43="","",RTD("cqg.rtd", ,"ContractData",C43, "LongDescription",, "T")) ->  | H43: =IF(A43="","",RTD("cqg.rtd", ,"ContractData",C43, "LastTradeToday",, "T")) ->  | I43: =IF(A43="","",RTD("cqg.rtd", ,"ContractData",C43, "NetLastTradeToday",, "T")) ->  | J43: =IF(A43="","",IFERROR(RTD("cqg.rtd", ,"ContractData",C43, "PerCentNetLastTrade",, "T")/100,"")) ->  | K43: =IF(A43="","",RTD("cqg.rtd", ,"ContractData", C43, "T_CVol",, "T")) ->  | L43: 43 | M43: =IFERROR(RANK($J43,INDIRECT(("$J$"&"1"&":$J$"&$A$103)))+COUNTIF($J$1:J43,J43)-1,"") -> 
A44: =IF(Symbols!A44="","",Symbols!A44) ->  | D44: =IF(A44="","",RTD("cqg.rtd", ,"ContractData",C44, "LongDescription",, "T")) ->  | H44: =IF(A44="","",RTD("cqg.rtd", ,"ContractData",C44, "LastTradeToday",, "T")) ->  | I44: =IF(A44="","",RTD("cqg.rtd", ,"ContractData",C44, "NetLastTradeToday",, "T")) ->  | J44: =IF(A44="","",IFERROR(RTD("cqg.rtd", ,"ContractData",C44, "PerCentNetLastTrade",, "T")/100,"")) ->  | K44: =IF(A44="","",RTD("cqg.rtd", ,"ContractData", C44, "T_CVol",, "T")) ->  | L44: 44 | M44: =IFERROR(RANK($J44,INDIRECT(("$J$"&"1"&":$J$"&$A$103)))+COUNTIF($J$1:J44,J44)-1,"") -> 
A45: =IF(Symbols!A45="","",Symbols!A45) ->  | D45: =IF(A45="","",RTD("cqg.rtd", ,"ContractData",C45, "LongDescription",, "T")) ->  | H45: =IF(A45="","",RTD("cqg.rtd", ,"ContractData",C45, "LastTradeToday",, "T")) ->  | I45: =IF(A45="","",RTD("cqg.rtd", ,"ContractData",C45, "NetLastTradeToday",, "T")) ->  | J45: =IF(A45="","",IFERROR(RTD("cqg.rtd", ,"ContractData",C45, "PerCentNetLastTrade",, "T")/100,"")) ->  | K45: =IF(A45="","",RTD("cqg.rtd", ,"ContractData", C45, "T_CVol",, "T")) ->  | L45: 45 | M45: =IFERROR(RANK($J45,INDIRECT(("$J$"&"1"&":$J$"&$A$103)))+COUNTIF($J$1:J45,J45)-1,"") -> 
A46: =IF(Symbols!A46="","",Symbols!A46) ->  | D46: =IF(A46="","",RTD("cqg.rtd", ,"ContractData",C46, "LongDescription",, "T")) ->  | H46: =IF(A46="","",RTD("cqg.rtd", ,"ContractData",C46, "LastTradeToday",, "T")) ->  | I46: =IF(A46="","",RTD("cqg.rtd", ,"ContractData",C46, "NetLastTradeToday",, "T")) ->  | J46: =IF(A46="","",IFERROR(RTD("cqg.rtd", ,"ContractData",C46, "PerCentNetLastTrade",, "T")/100,"")) ->  | K46: =IF(A46="","",RTD("cqg.rtd", ,"ContractData", C46, "T_CVol",, "T")) ->  | L46: 46 | M46: =IFERROR(RANK($J46,INDIRECT(("$J$"&"1"&":$J$"&$A$103)))+COUNTIF($J$1:J46,J46)-1,"") -> 
A47: =IF(Symbols!A47="","",Symbols!A47) ->  | D47: =IF(A47="","",RTD("cqg.rtd", ,"ContractData",C47, "LongDescription",, "T")) ->  | H47: =IF(A47="","",RTD("cqg.rtd", ,"ContractData",C47, "LastTradeToday",, "T")) ->  | I47: =IF(A47="","",RTD("cqg.rtd", ,"ContractData",C47, "NetLastTradeToday",, "T")) ->  | J47: =IF(A47="","",IFERROR(RTD("cqg.rtd", ,"ContractData",C47, "PerCentNetLastTrade",, "T")/100,"")) ->  | K47: =IF(A47="","",RTD("cqg.rtd", ,"ContractData", C47, "T_CVol",, "T")) ->  | L47: 47 | M47: =IFERROR(RANK($J47,INDIRECT(("$J$"&"1"&":$J$"&$A$103)))+COUNTIF($J$1:J47,J47)-1,"") -> 
A48: =IF(Symbols!A48="","",Symbols!A48) ->  | D48: =IF(A48="","",RTD("cqg.rtd", ,"ContractData",C48, "LongDescription",, "T")) ->  | H48: =IF(A48="","",RTD("cqg.rtd", ,"ContractData",C48, "LastTradeToday",, "T")) ->  | I48: =IF(A48="","",RTD("cqg.rtd", ,"ContractData",C48, "NetLastTradeToday",, "T")) ->  | J48: =IF(A48="","",IFERROR(RTD("cqg.rtd", ,"ContractData",C48, "PerCentNetLastTrade",, "T")/100,"")) ->  | K48: =IF(A48="","",RTD("cqg.rtd", ,"ContractData", C48, "T_CVol",, "T")) ->  | L48: 48 | M48: =IFERROR(RANK($J48,INDIRECT(("$J$"&"1"&":$J$"&$A$103)))+COUNTIF($J$1:J48,J48)-1,"") -> 
A49: =IF(Symbols!A49="","",Symbols!A49) ->  | D49: =IF(A49="","",RTD("cqg.rtd", ,"ContractData",C49, "LongDescription",, "T")) ->  | H49: =IF(A49="","",RTD("cqg.rtd", ,"ContractData",C49, "LastTradeToday",, "T")) ->  | I49: =IF(A49="","",RTD("cqg.rtd", ,"ContractData",C49, "NetLastTradeToday",, "T")) ->  | J49: =IF(A49="","",IFERROR(RTD("cqg.rtd", ,"ContractData",C49, "PerCentNetLastTrade",, "T")/100,"")) ->  | K49: =IF(A49="","",RTD("cqg.rtd", ,"ContractData", C49, "T_CVol",, "T")) ->  | L49: 49 | M49: =IFERROR(RANK($J49,INDIRECT(("$J$"&"1"&":$J$"&$A$103)))+COUNTIF($J$1:J49,J49)-1,"") -> 
A50: =IF(Symbols!A50="","",Symbols!A50) ->  | D50: =IF(A50="","",RTD("cqg.rtd", ,"ContractData",C50, "LongDescription",, "T")) ->  | H50: =IF(A50="","",RTD("cqg.rtd", ,"ContractData",C50, "LastTradeToday",, "T")) ->  | I50: =IF(A50="","",RTD("cqg.rtd", ,"ContractData",C50, "NetLastTradeToday",, "T")) ->  | J50: =IF(A50="","",IFERROR(RTD("cqg.rtd", ,"ContractData",C50, "PerCentNetLastTrade",, "T")/100,"")) ->  | K50: =IF(A50="","",RTD("cqg.rtd", ,"ContractData", C50, "T_CVol",, "T")) ->  | L50: 50 | M50: =IFERROR(RANK($J50,INDIRECT(("$J$"&"1"&":$J$"&$A$103)))+COUNTIF($J$1:J50,J50)-1,"") -> 
A51: =IF(Symbols!A51="","",Symbols!A51) ->  | D51: =IF(A51="","",RTD("cqg.rtd", ,"ContractData",C51, "LongDescription",, "T")) ->  | H51: =IF(A51="","",RTD("cqg.rtd", ,"ContractData",C51, "LastTradeToday",, "T")) ->  | I51: =IF(A51="","",RTD("cqg.rtd", ,"ContractData",C51, "NetLastTradeToday",, "T")) ->  | J51: =IF(A51="","",IFERROR(RTD("cqg.rtd", ,"ContractData",C51, "PerCentNetLastTrade",, "T")/100,"")) ->  | K51: =IF(A51="","",RTD("cqg.rtd", ,"ContractData", C51, "T_CVol",, "T")) ->  | L51: 51 | M51: =IFERROR(RANK($J51,INDIRECT(("$J$"&"1"&":$J$"&$A$103)))+COUNTIF($J$1:J51,J51)-1,"") -> 
A52: =IF(Symbols!A52="","",Symbols!A52) ->  | D52: =IF(A52="","",RTD("cqg.rtd", ,"ContractData",C52, "LongDescription",, "T")) ->  | H52: =IF(A52="","",RTD("cqg.rtd", ,"ContractData",C52, "LastTradeToday",, "T")) ->  | I52: =IF(A52="","",RTD("cqg.rtd", ,"ContractData",C52, "NetLastTradeToday",, "T")) ->  | J52: =IF(A52="","",IFERROR(RTD("cqg.rtd", ,"ContractData",C52, "PerCentNetLastTrade",, "T")/100,"")) ->  | K52: =IF(A52="","",RTD("cqg.rtd", ,"ContractData", C52, "T_CVol",, "T")) ->  | L52: 52 | M52: =IFERROR(RANK($J52,INDIRECT(("$J$"&"1"&":$J$"&$A$103)))+COUNTIF($J$1:J52,J52)-1,"") -> 
A53: =IF(Symbols!A53="","",Symbols!A53) ->  | D53: =IF(A53="","",RTD("cqg.rtd", ,"ContractData",C53, "LongDescription",, "T")) ->  | H53: =IF(A53="","",RTD("cqg.rtd", ,"ContractData",C53, "LastTradeToday",, "T")) ->  | I53: =IF(A53="","",RTD("cqg.rtd", ,"ContractData",C53, "NetLastTradeToday",, "T")) ->  | J53: =IF(A53="","",IFERROR(RTD("cqg.rtd", ,"ContractData",C53, "PerCentNetLastTrade",, "T")/100,"")) ->  | K53: =IF(A53="","",RTD("cqg.rtd", ,"ContractData", C53, "T_CVol",, "T")) ->  | L53: 53 | M53: =IFERROR(RANK($J53,INDIRECT(("$J$"&"1"&":$J$"&$A$103)))+COUNTIF($J$1:J53,J53)-1,"") -> 
A54: =IF(Symbols!A54="","",Symbols!A54) ->  | D54: =IF(A54="","",RTD("cqg.rtd", ,"ContractData",C54, "LongDescription",, "T")) ->  | H54: =IF(A54="","",RTD("cqg.rtd", ,"ContractData",C54, "LastTradeToday",, "T")) ->  | I54: =IF(A54="","",RTD("cqg.rtd", ,"ContractData",C54, "NetLastTradeToday",, "T")) ->  | J54: =IF(A54="","",IFERROR(RTD("cqg.rtd", ,"ContractData",C54, "PerCentNetLastTrade",, "T")/100,"")) ->  | K54: =IF(A54="","",RTD("cqg.rtd", ,"ContractData", C54, "T_CVol",, "T")) ->  | L54: 54 | M54: =IFERROR(RANK($J54,INDIRECT(("$J$"&"1"&":$J$"&$A$103)))+COUNTIF($J$1:J54,J54)-1,"") -> 
A55: =IF(Symbols!A55="","",Symbols!A55) ->  | D55: =IF(A55="","",RTD("cqg.rtd", ,"ContractData",C55, "LongDescription",, "T")) ->  | H55: =IF(A55="","",RTD("cqg.rtd", ,"ContractData",C55, "LastTradeToday",, "T")) ->  | I55: =IF(A55="","",RTD("cqg.rtd", ,"ContractData",C55, "NetLastTradeToday",, "T")) ->  | J55: =IF(A55="","",IFERROR(RTD("cqg.rtd", ,"ContractData",C55, "PerCentNetLastTrade",, "T")/100,"")) ->  | K55: =IF(A55="","",RTD("cqg.rtd", ,"ContractData", C55, "T_CVol",, "T")) ->  | L55: 55 | M55: =IFERROR(RANK($J55,INDIRECT(("$J$"&"1"&":$J$"&$A$103)))+COUNTIF($J$1:J55,J55)-1,"") -> 
A56: =IF(Symbols!A56="","",Symbols!A56) ->  | D56: =IF(A56="","",RTD("cqg.rtd", ,"ContractData",C56, "LongDescription",, "T")) ->  | H56: =IF(A56="","",RTD("cqg.rtd", ,"ContractData",C56, "LastTradeToday",, "T")) ->  | I56: =IF(A56="","",RTD("cqg.rtd", ,"ContractData",C56, "NetLastTradeToday",, "T")) ->  | J56: =IF(A56="","",IFERROR(RTD("cqg.rtd", ,"ContractData",C56, "PerCentNetLastTrade",, "T")/100,"")) ->  | K56: =IF(A56="","",RTD("cqg.rtd", ,"ContractData", C56, "T_CVol",, "T")) ->  | L56: 56 | M56: =IFERROR(RANK($J56,INDIRECT(("$J$"&"1"&":$J$"&$A$103)))+COUNTIF($J$1:J56,J56)-1,"") -> 
A57: =IF(Symbols!A57="","",Symbols!A57) ->  | D57: =IF(A57="","",RTD("cqg.rtd", ,"ContractData",C57, "LongDescription",, "T")) ->  | H57: =IF(A57="","",RTD("cqg.rtd", ,"ContractData",C57, "LastTradeToday",, "T")) ->  | I57: =IF(A57="","",RTD("cqg.rtd", ,"ContractData",C57, "NetLastTradeToday",, "T")) ->  | J57: =IF(A57="","",IFERROR(RTD("cqg.rtd", ,"ContractData",C57, "PerCentNetLastTrade",, "T")/100,"")) ->  | K57: =IF(A57="","",RTD("cqg.rtd", ,"ContractData", C57, "T_CVol",, "T")) ->  | L57: 57 | M57: =IFERROR(RANK($J57,INDIRECT(("$J$"&"1"&":$J$"&$A$103)))+COUNTIF($J$1:J57,J57)-1,"") -> 
A58: =IF(Symbols!A58="","",Symbols!A58) ->  | D58: =IF(A58="","",RTD("cqg.rtd", ,"ContractData",C58, "LongDescription",, "T")) ->  | H58: =IF(A58="","",RTD("cqg.rtd", ,"ContractData",C58, "LastTradeToday",, "T")) ->  | I58: =IF(A58="","",RTD("cqg.rtd", ,"ContractData",C58, "NetLastTradeToday",, "T")) ->  | J58: =IF(A58="","",IFERROR(RTD("cqg.rtd", ,"ContractData",C58, "PerCentNetLastTrade",, "T")/100,"")) ->  | K58: =IF(A58="","",RTD("cqg.rtd", ,"ContractData", C58, "T_CVol",, "T")) ->  | L58: 58 | M58: =IFERROR(RANK($J58,INDIRECT(("$J$"&"1"&":$J$"&$A$103)))+COUNTIF($J$1:J58,J58)-1,"") -> 
A59: =IF(Symbols!A59="","",Symbols!A59) ->  | D59: =IF(A59="","",RTD("cqg.rtd", ,"ContractData",C59, "LongDescription",, "T")) ->  | H59: =IF(A59="","",RTD("cqg.rtd", ,"ContractData",C59, "LastTradeToday",, "T")) ->  | I59: =IF(A59="","",RTD("cqg.rtd", ,"ContractData",C59, "NetLastTradeToday",, "T")) ->  | J59: =IF(A59="","",IFERROR(RTD("cqg.rtd", ,"ContractData",C59, "PerCentNetLastTrade",, "T")/100,"")) ->  | K59: =IF(A59="","",RTD("cqg.rtd", ,"ContractData", C59, "T_CVol",, "T")) ->  | L59: 59 | M59: =IFERROR(RANK($J59,INDIRECT(("$J$"&"1"&":$J$"&$A$103)))+COUNTIF($J$1:J59,J59)-1,"") -> 
A60: =IF(Symbols!A60="","",Symbols!A60) ->  | D60: =IF(A60="","",RTD("cqg.rtd", ,"ContractData",C60, "LongDescription",, "T")) ->  | H60: =IF(A60="","",RTD("cqg.rtd", ,"ContractData",C60, "LastTradeToday",, "T")) ->  | I60: =IF(A60="","",RTD("cqg.rtd", ,"ContractData",C60, "NetLastTradeToday",, "T")) ->  | J60: =IF(A60="","",IFERROR(RTD("cqg.rtd", ,"ContractData",C60, "PerCentNetLastTrade",, "T")/100,"")) ->  | K60: =IF(A60="","",RTD("cqg.rtd", ,"ContractData", C60, "T_CVol",, "T")) ->  | L60: 60 | M60: =IFERROR(RANK($J60,INDIRECT(("$J$"&"1"&":$J$"&$A$103)))+COUNTIF($J$1:J60,J60)-1,"") -> 
A103: =60-COUNTIF(A1:A60,"") -> 15 | B103: =SUM(B1:B101)/A103 -> 1
A104: ="$J$1:$J$"&A103 -> $J$1:$J$15

Sheet NLR 2
A1: =IF(Symbols!A1="","",Symbols!A1) -> S.US.BWXT | B1: =IF(A1="","",IF(J1>0,1,0)) -> 1 | C1: =A1 -> S.US.BWXT | D1: =IF(A1="","",RTD("cqg.rtd", ,"ContractData",C1, "LongDescription",, "T")) -> BWX Technologies, Inc. | F1: =("$J$"&"1"&":$J$"&A103) -> $J$1:$J$15 | H1: =IF(A1="","",RTD("cqg.rtd", ,"ContractData",C1, "LastTradeToday",, "T")) ->  | I1: =IF(A1="","",RTD("cqg.rtd", ,"ContractData",C1, "NetLastTradeToday",, "T")) ->  | J1: =IF(A1="","",IFERROR(RTD("cqg.rtd",,"StudyData",A1, "PCB","BaseType=Index,Index=1", "Close", "A",,"all",,,,"T")/100,"")) -> 0.6335398151 | K1: =IF(A1="","",RTD("cqg.rtd", ,"ContractData", C1, "T_CVol",, "T")) -> 2377 | L1: 1 | M1: =IFERROR(RANK($J1,INDIRECT(("$J$"&"1"&":$J$"&$A$103)))+COUNTIF($J$1:J1,J1)-1,"") -> 8 | N1: =C1 -> S.US.BWXT | O1: =IFERROR(VLOOKUP($L1,$M$1:$N$101,2,FALSE),"") -> S.US.OKLO | P1: =RTD("cqg.rtd", ,"ContractData",O1, "LongDescription",, "T") -> Oklo Inc. | Q1: =IFERROR(RTD("cqg.rtd",,"StudyData",O1, "PCB","BaseType=Index,Index=1", "Close", "A",,"all",,,,"T")/100,"") -> 4.487988695 | R1: ="https://finance.yahoo.com/quote/"&RIGHT(O1,(LEN(O1)-5)) -> https://finance.yahoo.com/quote/OKLO | T1: =IF(Q1>=0,Q1,NA()) -> 4.487988695 | U1: =IF(Q1>=0,NA(),Q1) ->  | V1: =IF(ISERROR(T1),U1,T1) -> 4.487988695 | W1: =IF(Q1<0,"",IFERROR(RTD("cqg.rtd", ,"ContractData",O1, "LongDescription",, "T"),"")) -> Oklo Inc. | Z1: =IF(W1="","",IFERROR(T1,Q1)) -> 4.487988695 | AA1: =MIN(J1:J101) -> -0.253716551 | AB1: =VLOOKUP(AA1,J1:O98,4,FALSE) -> 15 | AC1: =VLOOKUP($AB1,$M$1:$N$101,2,FALSE) -> S.US.PCG | AD1: =IF(RTD("cqg.rtd", ,"ContractData",AC1, "PerCentNetLastTrade",, "T")>0,"",IFERROR(RTD("cqg.rtd", ,"ContractData",AC1, "PerCentNetLastTrade",, "T")/100,"")) ->  | AE1: =IF(AD1>0,"",IFERROR(RTD("cqg.rtd", ,"ContractData",AC1, "LongDescription",, "T"),"")) ->  | AF1: ="" ->  | AG1: =IF(AD1>0,"",IFERROR(AD1*-1,"")) ->  | AH1: ="https://finance.yahoo.com/quote/"&RIGHT(AC1,(LEN(AC1)-5)) -> https://finance.yahoo.com/quote/PCG
A2: =IF(Symbols!A2="","",Symbols!A2) -> S.US.CCJ | B2: =IF(A2="","",IF(J2>0,1,0)) -> 1 | C2: =A2 -> S.US.CCJ | D2: =IF(A2="","",RTD("cqg.rtd", ,"ContractData",C2, "LongDescription",, "T")) -> Cameco Corp | H2: =IF(A2="","",RTD("cqg.rtd", ,"ContractData",C2, "LastTradeToday",, "T")) ->  | I2: =IF(A2="","",RTD("cqg.rtd", ,"ContractData",C2, "NetLastTradeToday",, "T")) ->  | J2: =IF(A2="","",IFERROR(RTD("cqg.rtd",,"StudyData",A2, "PCB","BaseType=Index,Index=1", "Close", "A",,"all",,,,"T")/100,"")) -> 0.6435104106 | K2: =IF(A2="","",RTD("cqg.rtd", ,"ContractData", C2, "T_CVol",, "T")) -> 18454 | L2: =L1+1 -> 2 | M2: =IFERROR(RANK($J2,INDIRECT(("$J$"&"1"&":$J$"&$A$103)))+COUNTIF($J$1:J2,J2)-1,"") -> 7 | N2: =C2 -> S.US.CCJ | O2: =IFERROR(VLOOKUP($L2,$M$1:$N$101,2,FALSE),"") -> S.US.LEU | P2: =RTD("cqg.rtd", ,"ContractData",O2, "LongDescription",, "T") -> Centrus Energy Corp. | Q2: =IFERROR(RTD("cqg.rtd",,"StudyData",O2, "PCB","BaseType=Index,Index=1", "Close", "A",,"all",,,,"T")/100,"") -> 3.738327578 | R2: ="https://finance.yahoo.com/quote/"&RIGHT(O2,(LEN(O2)-5)) -> https://finance.yahoo.com/quote/LEU | T2: =IF(Q2>=0,Q2,NA()) -> 3.738327578 | U2: =IF(Q2>=0,NA(),Q2) ->  | V2: =IF(ISERROR(T2),U2,T2) -> 3.738327578 | W2: =IF(Q2<0,"",IFERROR(RTD("cqg.rtd", ,"ContractData",O2, "LongDescription",, "T"),"")) -> Centrus Energy Corp. | Z2: =IF(W2="","",IFERROR(T2,Q2)) -> 3.738327578 | AB2: =AB1-1 -> 14 | AC2: =VLOOKUP($AB2,$M$1:$N$101,2,FALSE) -> S.US.EU | AD2: =IF(RTD("cqg.rtd", ,"ContractData",AC2, "PerCentNetLastTrade",, "T")>0,"",IFERROR(RTD("cqg.rtd", ,"ContractData",AC2, "PerCentNetLastTrade",, "T")/100,"")) ->  | AE2: =IF(AD2>0,"",IFERROR(RTD("cqg.rtd", ,"ContractData",AC2, "LongDescription",, "T"),"")) ->  | AF2: ="" ->  | AG2: =IF(AD2>0,"",IFERROR(AD2*-1,"")) ->  | AH2: ="https://finance.yahoo.com/quote/"&RIGHT(AC2,(LEN(AC2)-5)) -> https://finance.yahoo.com/quote/EU
A3: =IF(Symbols!A3="","",Symbols!A3) -> S.US.CEG | B3: 1 | C3: S.US.CEG | D3: =IF(A3="","",RTD("cqg.rtd", ,"ContractData",C3, "LongDescription",, "T")) -> Constellation Energy Corporation | H3: =IF(A3="","",RTD("cqg.rtd", ,"ContractData",C3, "LastTradeToday",, "T")) ->  | I3: =IF(A3="","",RTD("cqg.rtd", ,"ContractData",C3, "NetLastTradeToday",, "T")) ->  | J3: =IF(A3="","",IFERROR(RTD("cqg.rtd",,"StudyData",A3, "PCB","BaseType=Index,Index=1", "Close", "A",,"all",,,,"T")/100,"")) -> 0.4941665549 | K3: =IF(A3="","",RTD("cqg.rtd", ,"ContractData", C3, "T_CVol",, "T")) -> 4682 | L3: =L2+1 -> 3 | M3: =IFERROR(RANK($J3,INDIRECT(("$J$"&"1"&":$J$"&$A$103)))+COUNTIF($J$1:J3,J3)-1,"") -> 11 | N3: S.US.CEG | O3: S.US.UUUU | P3: =RTD("cqg.rtd", ,"ContractData",O3, "LongDescription",, "T") -> Energy Fuels Inc. | Q3: =IFERROR(RTD("cqg.rtd",,"StudyData",O3, "PCB","BaseType=Index,Index=1", "Close", "A",,"all",,,,"T")/100,"") -> 2.220272904 | R3: https://finance.yahoo.com/quote/UUUU | T3: 2.220272904 | V3: 2.220272904 | W3: =IF(Q3<0,"",IFERROR(RTD("cqg.rtd", ,"ContractData",O3, "LongDescription",, "T"),"")) -> Energy Fuels Inc. | Z3: 2.220272904 | AB3: =AB2-1 -> 13 | AC3: S.US.PEG | AD3: =IF(RTD("cqg.rtd", ,"ContractData",AC3, "PerCentNetLastTrade",, "T")>0,"",IFERROR(RTD("cqg.rtd", ,"ContractData",AC3, "PerCentNetLastTrade",, "T")/100,"")) ->  | AE3: =IF(AD3>0,"",IFERROR(RTD("cqg.rtd", ,"ContractData",AC3, "LongDescription",, "T"),"")) ->  | AF3: ="" ->  | AH3: https://finance.yahoo.com/quote/PEG
A4: =IF(Symbols!A4="","",Symbols!A4) -> S.US.DNN | B4: 1 | C4: S.US.DNN | D4: =IF(A4="","",RTD("cqg.rtd", ,"ContractData",C4, "LongDescription",, "T")) -> Denison Mines Corp | H4: =IF(A4="","",RTD("cqg.rtd", ,"ContractData",C4, "LastTradeToday",, "T")) ->  | I4: =IF(A4="","",RTD("cqg.rtd", ,"ContractData",C4, "NetLastTradeToday",, "T")) ->  | J4: =IF(A4="","",IFERROR(RTD("cqg.rtd",,"StudyData",A4, "PCB","BaseType=Index,Index=1", "Close", "A",,"all",,,,"T")/100,"")) -> 0.55 | K4: =IF(A4="","",RTD("cqg.rtd", ,"ContractData", C4, "T_CVol",, "T")) -> 68693 | L4: 4 | M4: =IFERROR(RANK($J4,INDIRECT(("$J$"&"1"&":$J$"&$A$103)))+COUNTIF($J$1:J4,J4)-1,"") -> 10 | N4: S.US.DNN | O4: S.US.SMR | P4: =RTD("cqg.rtd", ,"ContractData",O4, "LongDescription",, "T") -> NuScale Power Corporation | Q4: =IFERROR(RTD("cqg.rtd",,"StudyData",O4, "PCB","BaseType=Index,Index=1", "Close", "A",,"all",,,,"T")/100,"") -> 1.128276631 | R4: https://finance.yahoo.com/quote/SMR | T4: 1.128276631 | V4: 1.128276631 | W4: =IF(Q4<0,"",IFERROR(RTD("cqg.rtd", ,"ContractData",O4, "LongDescription",, "T"),"")) -> NuScale Power Corporation | Z4: 1.128276631 | AB4: 12 | AC4: S.US.NXE | AD4: =IF(RTD("cqg.rtd", ,"ContractData",AC4, "PerCentNetLastTrade",, "T")>0,"",IFERROR(RTD("cqg.rtd", ,"ContractData",AC4, "PerCentNetLastTrade",, "T")/100,"")) ->  | AE4: =IF(AD4>0,"",IFERROR(RTD("cqg.rtd", ,"ContractData",AC4, "LongDescription",, "T"),"")) ->  | AF4: ="" ->  | AH4: https://finance.yahoo.com/quote/NXE
A5: =IF(Symbols!A5="","",Symbols!A5) -> S.US.EU | B5: 0 | C5: S.US.EU | D5: =IF(A5="","",RTD("cqg.rtd", ,"ContractData",C5, "LongDescription",, "T")) -> enCore Energy Corp. | H5: =IF(A5="","",RTD("cqg.rtd", ,"ContractData",C5, "LastTradeToday",, "T")) ->  | I5: =IF(A5="","",RTD("cqg.rtd", ,"ContractData",C5, "NetLastTradeToday",, "T")) ->  | J5: =IF(A5="","",IFERROR(RTD("cqg.rtd",,"StudyData",A5, "PCB","BaseType=Index,Index=1", "Close", "A",,"all",,,,"T")/100,"")) -> -0.09384164223 | K5: =IF(A5="","",RTD("cqg.rtd", ,"ContractData", C5, "T_CVol",, "T")) -> 5264 | L5: 5 | M5: =IFERROR(RANK($J5,INDIRECT(("$J$"&"1"&":$J$"&$A$103)))+COUNTIF($J$1:J5,J5)-1,"") -> 14 | N5: S.US.EU | O5: S.US.UEC | P5: =RTD("cqg.rtd", ,"ContractData",O5, "LongDescription",, "T") -> Uranium Energy Corp | Q5: =IFERROR(RTD("cqg.rtd",,"StudyData",O5, "PCB","BaseType=Index,Index=1", "Close", "A",,"all",,,,"T")/100,"") -> 1.076233184 | R5: https://finance.yahoo.com/quote/UEC | T5: 1.076233184 | V5: 1.076233184 | W5: =IF(Q5<0,"",IFERROR(RTD("cqg.rtd", ,"ContractData",O5, "LongDescription",, "T"),"")) -> Uranium Energy Corp | Z5: 1.076233184 | AB5: 11 | AC5: S.US.CEG | AD5: =IF(RTD("cqg.rtd", ,"ContractData",AC5, "PerCentNetLastTrade",, "T")>0,"",IFERROR(RTD("cqg.rtd", ,"ContractData",AC5, "PerCentNetLastTrade",, "T")/100,"")) ->  | AE5: =IF(AD5>0,"",IFERROR(RTD("cqg.rtd", ,"ContractData",AC5, "LongDescription",, "T"),"")) ->  | AF5: ="" ->  | AH5: https://finance.yahoo.com/quote/CEG
A6: =IF(Symbols!A6="","",Symbols!A6) -> S.US.LEU | B6: 1 | C6: S.US.LEU | D6: =IF(A6="","",RTD("cqg.rtd", ,"ContractData",C6, "LongDescription",, "T")) -> Centrus Energy Corp. | H6: =IF(A6="","",RTD("cqg.rtd", ,"ContractData",C6, "LastTradeToday",, "T")) ->  | I6: =IF(A6="","",RTD("cqg.rtd", ,"ContractData",C6, "NetLastTradeToday",, "T")) ->  | J6: =IF(A6="","",IFERROR(RTD("cqg.rtd",,"StudyData",A6, "PCB","BaseType=Index,Index=1", "Close", "A",,"all",,,,"T")/100,"")) -> 3.738327578 | K6: =IF(A6="","",RTD("cqg.rtd", ,"ContractData", C6, "T_CVol",, "T")) -> 12936 | L6: 6 | M6: =IFERROR(RANK($J6,INDIRECT(("$J$"&"1"&":$J$"&$A$103)))+COUNTIF($J$1:J6,J6)-1,"") -> 2 | N6: S.US.LEU | O6: S.US.NLR | P6: =RTD("cqg.rtd", ,"ContractData",O6, "LongDescription",, "T") -> Market Vectors Uranium+Nuclear EnergyETF | Q6: =IFERROR(RTD("cqg.rtd",,"StudyData",O6, "PCB","BaseType=Index,Index=1", "Close", "A",,"all",,,,"T")/100,"") -> 0.6813375953 | R6: https://finance.yahoo.com/quote/NLR | T6: 0.6813375953 | V6: 0.6813375953 | W6: =IF(Q6<0,"",IFERROR(RTD("cqg.rtd", ,"ContractData",O6, "LongDescription",, "T"),"")) -> Market Vectors Uranium+Nuclear EnergyETF | Z6: 0.6813375953 | AB6: 10 | AC6: S.US.DNN | AD6: =IF(RTD("cqg.rtd", ,"ContractData",AC6, "PerCentNetLastTrade",, "T")>0,"",IFERROR(RTD("cqg.rtd", ,"ContractData",AC6, "PerCentNetLastTrade",, "T")/100,"")) ->  | AE6: =IF(AD6>0,"",IFERROR(RTD("cqg.rtd", ,"ContractData",AC6, "LongDescription",, "T"),"")) ->  | AF6: ="" ->  | AH6: https://finance.yahoo.com/quote/DNN
A7: =IF(Symbols!A7="","",Symbols!A7) -> S.US.NNE | B7: 1 | C7: S.US.NNE | D7: =IF(A7="","",RTD("cqg.rtd", ,"ContractData",C7, "LongDescription",, "T")) -> Nano Nuclear Energy Inc. | H7: =IF(A7="","",RTD("cqg.rtd", ,"ContractData",C7, "LastTradeToday",, "T")) ->  | I7: =IF(A7="","",RTD("cqg.rtd", ,"ContractData",C7, "NetLastTradeToday",, "T")) ->  | J7: =IF(A7="","",IFERROR(RTD("cqg.rtd",,"StudyData",A7, "PCB","BaseType=Index,Index=1", "Close", "A",,"all",,,,"T")/100,"")) -> 0.572519084 | K7: =IF(A7="","",RTD("cqg.rtd", ,"ContractData", C7, "T_CVol",, "T")) -> 52655 | L7: 7 | M7: =IFERROR(RANK($J7,INDIRECT(("$J$"&"1"&":$J$"&$A$103)))+COUNTIF($J$1:J7,J7)-1,"") -> 9 | N7: S.US.NNE | O7: S.US.CCJ | P7: =RTD("cqg.rtd", ,"ContractData",O7, "LongDescription",, "T") -> Cameco Corp | Q7: =IFERROR(RTD("cqg.rtd",,"StudyData",O7, "PCB","BaseType=Index,Index=1", "Close", "A",,"all",,,,"T")/100,"") -> 0.6435104106 | R7: https://finance.yahoo.com/quote/CCJ | T7: 0.6435104106 | V7: 0.6435104106 | W7: =IF(Q7<0,"",IFERROR(RTD("cqg.rtd", ,"ContractData",O7, "LongDescription",, "T"),"")) -> Cameco Corp | Z7: 0.6435104106 | AB7: 9 | AC7: S.US.NNE | AD7: =IF(RTD("cqg.rtd", ,"ContractData",AC7, "PerCentNetLastTrade",, "T")>0,"",IFERROR(RTD("cqg.rtd", ,"ContractData",AC7, "PerCentNetLastTrade",, "T")/100,"")) ->  | AE7: =IF(AD7>0,"",IFERROR(RTD("cqg.rtd", ,"ContractData",AC7, "LongDescription",, "T"),"")) ->  | AF7: ="" ->  | AH7: https://finance.yahoo.com/quote/NNE
A8: =IF(Symbols!A8="","",Symbols!A8) -> S.US.NXE | B8: 1 | C8: S.US.NXE | D8: =IF(A8="","",RTD("cqg.rtd", ,"ContractData",C8, "LongDescription",, "T")) -> Nexgen Energy Ltd. | H8: =IF(A8="","",RTD("cqg.rtd", ,"ContractData",C8, "LastTradeToday",, "T")) ->  | I8: =IF(A8="","",RTD("cqg.rtd", ,"ContractData",C8, "NetLastTradeToday",, "T")) ->  | J8: =IF(A8="","",IFERROR(RTD("cqg.rtd",,"StudyData",A8, "PCB","BaseType=Index,Index=1", "Close", "A",,"all",,,,"T")/100,"")) -> 0.3651515152 | K8: =IF(A8="","",RTD("cqg.rtd", ,"ContractData", C8, "T_CVol",, "T")) -> 13593 | L8: 8 | M8: =IFERROR(RANK($J8,INDIRECT(("$J$"&"1"&":$J$"&$A$103)))+COUNTIF($J$1:J8,J8)-1,"") -> 12 | N8: S.US.NXE | O8: S.US.BWXT | P8: =RTD("cqg.rtd", ,"ContractData",O8, "LongDescription",, "T") -> BWX Technologies, Inc. | Q8: =IFERROR(RTD("cqg.rtd",,"StudyData",O8, "PCB","BaseType=Index,Index=1", "Close", "A",,"all",,,,"T")/100,"") -> 0.6335398151 | R8: https://finance.yahoo.com/quote/BWXT | T8: 0.6335398151 | V8: 0.6335398151 | W8: =IF(Q8<0,"",IFERROR(RTD("cqg.rtd", ,"ContractData",O8, "LongDescription",, "T"),"")) -> BWX Technologies, Inc. | Z8: 0.6335398151 | AB8: 8 | AC8: S.US.BWXT | AD8: =IF(RTD("cqg.rtd", ,"ContractData",AC8, "PerCentNetLastTrade",, "T")>0,"",IFERROR(RTD("cqg.rtd", ,"ContractData",AC8, "PerCentNetLastTrade",, "T")/100,"")) ->  | AE8: =IF(AD8>0,"",IFERROR(RTD("cqg.rtd", ,"ContractData",AC8, "LongDescription",, "T"),"")) ->  | AF8: ="" ->  | AH8: https://finance.yahoo.com/quote/BWXT
A9: =IF(Symbols!A9="","",Symbols!A9) -> S.US.OKLO | B9: 1 | C9: S.US.OKLO | D9: =IF(A9="","",RTD("cqg.rtd", ,"ContractData",C9, "LongDescription",, "T")) -> Oklo Inc. | H9: =IF(A9="","",RTD("cqg.rtd", ,"ContractData",C9, "LastTradeToday",, "T")) ->  | I9: =IF(A9="","",RTD("cqg.rtd", ,"ContractData",C9, "NetLastTradeToday",, "T")) ->  | J9: =IF(A9="","",IFERROR(RTD("cqg.rtd",,"StudyData",A9, "PCB","BaseType=Index,Index=1", "Close", "A",,"all",,,,"T")/100,"")) -> 4.487988695 | K9: =IF(A9="","",RTD("cqg.rtd", ,"ContractData", C9, "T_CVol",, "T")) -> 634365 | L9: 9 | M9: =IFERROR(RANK($J9,INDIRECT(("$J$"&"1"&":$J$"&$A$103)))+COUNTIF($J$1:J9,J9)-1,"") -> 1 | N9: S.US.OKLO | O9: S.US.NNE | P9: =RTD("cqg.rtd", ,"ContractData",O9, "LongDescription",, "T") -> Nano Nuclear Energy Inc. | Q9: =IFERROR(RTD("cqg.rtd",,"StudyData",O9, "PCB","BaseType=Index,Index=1", "Close", "A",,"all",,,,"T")/100,"") -> 0.572519084 | R9: https://finance.yahoo.com/quote/NNE | T9: 0.572519084 | V9: 0.572519084 | W9: =IF(Q9<0,"",IFERROR(RTD("cqg.rtd", ,"ContractData",O9, "LongDescription",, "T"),"")) -> Nano Nuclear Energy Inc. | Z9: 0.572519084 | AB9: 7 | AC9: S.US.CCJ | AD9: =IF(RTD("cqg.rtd", ,"ContractData",AC9, "PerCentNetLastTrade",, "T")>0,"",IFERROR(RTD("cqg.rtd", ,"ContractData",AC9, "PerCentNetLastTrade",, "T")/100,"")) ->  | AE9: =IF(AD9>0,"",IFERROR(RTD("cqg.rtd", ,"ContractData",AC9, "LongDescription",, "T"),"")) ->  | AF9: ="" ->  | AH9: https://finance.yahoo.com/quote/CCJ
A10: =IF(Symbols!A10="","",Symbols!A10) -> S.US.PCG | B10: 0 | C10: S.US.PCG | D10: =IF(A10="","",RTD("cqg.rtd", ,"ContractData",C10, "LongDescription",, "T")) -> PG&E Corp Hldg Co | H10: =IF(A10="","",RTD("cqg.rtd", ,"ContractData",C10, "LastTradeToday",, "T")) ->  | I10: =IF(A10="","",RTD("cqg.rtd", ,"ContractData",C10, "NetLastTradeToday",, "T")) ->  | J10: =IF(A10="","",IFERROR(RTD("cqg.rtd",,"StudyData",A10, "PCB","BaseType=Index,Index=1", "Close", "A",,"all",,,,"T")/100,"")) -> -0.253716551 | K10: =IF(A10="","",RTD("cqg.rtd", ,"ContractData", C10, "T_CVol",, "T")) -> 5160 | L10: 10 | M10: =IFERROR(RANK($J10,INDIRECT(("$J$"&"1"&":$J$"&$A$103)))+COUNTIF($J$1:J10,J10)-1,"") -> 15 | N10: S.US.PCG | O10: S.US.DNN | P10: =RTD("cqg.rtd", ,"ContractData",O10, "LongDescription",, "T") -> Denison Mines Corp | Q10: =IFERROR(RTD("cqg.rtd",,"StudyData",O10, "PCB","BaseType=Index,Index=1", "Close", "A",,"all",,,,"T")/100,"") -> 0.55 | R10: https://finance.yahoo.com/quote/DNN | T10: 0.55 | V10: 0.55 | W10: =IF(Q10<0,"",IFERROR(RTD("cqg.rtd", ,"ContractData",O10, "LongDescription",, "T"),"")) -> Denison Mines Corp | Z10: 0.55 | AB10: 6 | AC10: S.US.NLR | AD10: =IF(RTD("cqg.rtd", ,"ContractData",AC10, "PerCentNetLastTrade",, "T")>0,"",IFERROR(RTD("cqg.rtd", ,"ContractData",AC10, "PerCentNetLastTrade",, "T")/100,"")) ->  | AE10: =IF(AD10>0,"",IFERROR(RTD("cqg.rtd", ,"ContractData",AC10, "LongDescription",, "T"),"")) ->  | AF10: ="" ->  | AH10: https://finance.yahoo.com/quote/NLR
A11: =IF(Symbols!A11="","",Symbols!A11) -> S.US.PEG | B11: 0 | C11: S.US.PEG | D11: =IF(A11="","",RTD("cqg.rtd", ,"ContractData",C11, "LongDescription",, "T")) -> Pub Svc Entrpr Grp Inc | H11: =IF(A11="","",RTD("cqg.rtd", ,"ContractData",C11, "LastTradeToday",, "T")) ->  | I11: =IF(A11="","",RTD("cqg.rtd", ,"ContractData",C11, "NetLastTradeToday",, "T")) ->  | J11: =IF(A11="","",IFERROR(RTD("cqg.rtd",,"StudyData",A11, "PCB","BaseType=Index,Index=1", "Close", "A",,"all",,,,"T")/100,"")) -> -0.0171617943 | K11: =IF(A11="","",RTD("cqg.rtd", ,"ContractData", C11, "T_CVol",, "T")) -> 3 | L11: 11 | M11: =IFERROR(RANK($J11,INDIRECT(("$J$"&"1"&":$J$"&$A$103)))+COUNTIF($J$1:J11,J11)-1,"") -> 13 | N11: S.US.PEG | O11: S.US.CEG | P11: =RTD("cqg.rtd", ,"ContractData",O11, "LongDescription",, "T") -> Constellation Energy Corporation | Q11: =IFERROR(RTD("cqg.rtd",,"StudyData",O11, "PCB","BaseType=Index,Index=1", "Close", "A",,"all",,,,"T")/100,"") -> 0.4941665549 | R11: https://finance.yahoo.com/quote/CEG | T11: 0.4941665549 | V11: 0.4941665549 | W11: =IF(Q11<0,"",IFERROR(RTD("cqg.rtd", ,"ContractData",O11, "LongDescription",, "T"),"")) -> Constellation Energy Corporation | Z11: 0.4941665549 | AB11: 5 | AC11: S.US.UEC | AD11: =IF(RTD("cqg.rtd", ,"ContractData",AC11, "PerCentNetLastTrade",, "T")>0,"",IFERROR(RTD("cqg.rtd", ,"ContractData",AC11, "PerCentNetLastTrade",, "T")/100,"")) ->  | AE11: =IF(AD11>0,"",IFERROR(RTD("cqg.rtd", ,"ContractData",AC11, "LongDescription",, "T"),"")) ->  | AF11: ="" ->  | AH11: https://finance.yahoo.com/quote/UEC
A12: =IF(Symbols!A12="","",Symbols!A12) -> S.US.SMR | B12: 1 | C12: S.US.SMR | D12: =IF(A12="","",RTD("cqg.rtd", ,"ContractData",C12, "LongDescription",, "T")) -> NuScale Power Corporation | H12: =IF(A12="","",RTD("cqg.rtd", ,"ContractData",C12, "LastTradeToday",, "T")) ->  | I12: =IF(A12="","",RTD("cqg.rtd", ,"ContractData",C12, "NetLastTradeToday",, "T")) ->  | J12: =IF(A12="","",IFERROR(RTD("cqg.rtd",,"StudyData",A12, "PCB","BaseType=Index,Index=1", "Close", "A",,"all",,,,"T")/100,"")) -> 1.128276631 | K12: =IF(A12="","",RTD("cqg.rtd", ,"ContractData", C12, "T_CVol",, "T")) -> 1487260 | L12: 12 | M12: =IFERROR(RANK($J12,INDIRECT(("$J$"&"1"&":$J$"&$A$103)))+COUNTIF($J$1:J12,J12)-1,"") -> 4 | N12: S.US.SMR | O12: S.US.NXE | P12: =RTD("cqg.rtd", ,"ContractData",O12, "LongDescription",, "T") -> Nexgen Energy Ltd. | Q12: =IFERROR(RTD("cqg.rtd",,"StudyData",O12, "PCB","BaseType=Index,Index=1", "Close", "A",,"all",,,,"T")/100,"") -> 0.3651515152 | R12: https://finance.yahoo.com/quote/NXE | T12: 0.3651515152 | V12: 0.3651515152 | W12: =IF(Q12<0,"",IFERROR(RTD("cqg.rtd", ,"ContractData",O12, "LongDescription",, "T"),"")) -> Nexgen Energy Ltd. | Z12: 0.3651515152 | AB12: 4 | AC12: S.US.SMR | AD12: =IF(RTD("cqg.rtd", ,"ContractData",AC12, "PerCentNetLastTrade",, "T")>0,"",IFERROR(RTD("cqg.rtd", ,"ContractData",AC12, "PerCentNetLastTrade",, "T")/100,"")) ->  | AE12: =IF(AD12>0,"",IFERROR(RTD("cqg.rtd", ,"ContractData",AC12, "LongDescription",, "T"),"")) ->  | AF12: ="" ->  | AH12: https://finance.yahoo.com/quote/SMR
A13: =IF(Symbols!A13="","",Symbols!A13) -> S.US.UEC | B13: 1 | C13: S.US.UEC | D13: =IF(A13="","",RTD("cqg.rtd", ,"ContractData",C13, "LongDescription",, "T")) -> Uranium Energy Corp | H13: =IF(A13="","",RTD("cqg.rtd", ,"ContractData",C13, "LastTradeToday",, "T")) ->  | I13: =IF(A13="","",RTD("cqg.rtd", ,"ContractData",C13, "NetLastTradeToday",, "T")) ->  | J13: =IF(A13="","",IFERROR(RTD("cqg.rtd",,"StudyData",A13, "PCB","BaseType=Index,Index=1", "Close", "A",,"all",,,,"T")/100,"")) -> 1.076233184 | K13: =IF(A13="","",RTD("cqg.rtd", ,"ContractData", C13, "T_CVol",, "T")) -> 130153 | L13: 13 | M13: =IFERROR(RANK($J13,INDIRECT(("$J$"&"1"&":$J$"&$A$103)))+COUNTIF($J$1:J13,J13)-1,"") -> 5 | N13: S.US.UEC | O13: S.US.PEG | P13: =RTD("cqg.rtd", ,"ContractData",O13, "LongDescription",, "T") -> Pub Svc Entrpr Grp Inc | Q13: =IFERROR(RTD("cqg.rtd",,"StudyData",O13, "PCB","BaseType=Index,Index=1", "Close", "A",,"all",,,,"T")/100,"") -> -0.0171617943 | R13: https://finance.yahoo.com/quote/PEG | U13: -0.0171617943 | V13: -0.0171617943 | W13: =IF(Q13<0,"",IFERROR(RTD("cqg.rtd", ,"ContractData",O13, "LongDescription",, "T"),"")) ->  | AB13: 3 | AC13: S.US.UUUU | AD13: =IF(RTD("cqg.rtd", ,"ContractData",AC13, "PerCentNetLastTrade",, "T")>0,"",IFERROR(RTD("cqg.rtd", ,"ContractData",AC13, "PerCentNetLastTrade",, "T")/100,"")) ->  | AE13: =IF(AD13>0,"",IFERROR(RTD("cqg.rtd", ,"ContractData",AC13, "LongDescription",, "T"),"")) ->  | AF13: ="" ->  | AH13: https://finance.yahoo.com/quote/UUUU
A14: =IF(Symbols!A14="","",Symbols!A14) -> S.US.UUUU | B14: 1 | C14: S.US.UUUU | D14: =IF(A14="","",RTD("cqg.rtd", ,"ContractData",C14, "LongDescription",, "T")) -> Energy Fuels Inc. | H14: =IF(A14="","",RTD("cqg.rtd", ,"ContractData",C14, "LastTradeToday",, "T")) ->  | I14: =IF(A14="","",RTD("cqg.rtd", ,"ContractData",C14, "NetLastTradeToday",, "T")) ->  | J14: =IF(A14="","",IFERROR(RTD("cqg.rtd",,"StudyData",A14, "PCB","BaseType=Index,Index=1", "Close", "A",,"all",,,,"T")/100,"")) -> 2.220272904 | K14: =IF(A14="","",RTD("cqg.rtd", ,"ContractData", C14, "T_CVol",, "T")) -> 318065 | L14: 14 | M14: =IFERROR(RANK($J14,INDIRECT(("$J$"&"1"&":$J$"&$A$103)))+COUNTIF($J$1:J14,J14)-1,"") -> 3 | N14: S.US.UUUU | O14: S.US.EU | P14: =RTD("cqg.rtd", ,"ContractData",O14, "LongDescription",, "T") -> enCore Energy Corp. | Q14: =IFERROR(RTD("cqg.rtd",,"StudyData",O14, "PCB","BaseType=Index,Index=1", "Close", "A",,"all",,,,"T")/100,"") -> -0.09384164223 | R14: https://finance.yahoo.com/quote/EU | U14: -0.09384164223 | V14: -0.09384164223 | W14: =IF(Q14<0,"",IFERROR(RTD("cqg.rtd", ,"ContractData",O14, "LongDescription",, "T"),"")) ->  | AB14: 2 | AC14: S.US.LEU | AD14: =IF(RTD("cqg.rtd", ,"ContractData",AC14, "PerCentNetLastTrade",, "T")>0,"",IFERROR(RTD("cqg.rtd", ,"ContractData",AC14, "PerCentNetLastTrade",, "T")/100,"")) ->  | AE14: =IF(AD14>0,"",IFERROR(RTD("cqg.rtd", ,"ContractData",AC14, "LongDescription",, "T"),"")) ->  | AF14: ="" ->  | AH14: https://finance.yahoo.com/quote/LEU
A15: =IF(Symbols!A15="","",Symbols!A15) -> S.US.NLR | B15: 1 | C15: S.US.NLR | D15: =IF(A15="","",RTD("cqg.rtd", ,"ContractData",C15, "LongDescription",, "T")) -> Market Vectors Uranium+Nuclear EnergyETF | H15: =IF(A15="","",RTD("cqg.rtd", ,"ContractData",C15, "LastTradeToday",, "T")) ->  | I15: =IF(A15="","",RTD("cqg.rtd", ,"ContractData",C15, "NetLastTradeToday",, "T")) ->  | J15: =IF(A15="","",IFERROR(RTD("cqg.rtd",,"StudyData",A15, "PCB","BaseType=Index,Index=1", "Close", "A",,"all",,,,"T")/100,"")) -> 0.6813375953 | K15: =IF(A15="","",RTD("cqg.rtd", ,"ContractData", C15, "T_CVol",, "T")) -> 2311 | L15: 15 | M15: =IFERROR(RANK($J15,INDIRECT(("$J$"&"1"&":$J$"&$A$103)))+COUNTIF($J$1:J15,J15)-1,"") -> 6 | N15: S.US.NLR | O15: S.US.PCG | P15: =RTD("cqg.rtd", ,"ContractData",O15, "LongDescription",, "T") -> PG&E Corp Hldg Co | Q15: =IFERROR(RTD("cqg.rtd",,"StudyData",O15, "PCB","BaseType=Index,Index=1", "Close", "A",,"all",,,,"T")/100,"") -> -0.253716551 | R15: https://finance.yahoo.com/quote/PCG | U15: -0.253716551 | V15: -0.253716551 | W15: =IF(Q15<0,"",IFERROR(RTD("cqg.rtd", ,"ContractData",O15, "LongDescription",, "T"),"")) ->  | AB15: 1 | AC15: S.US.OKLO | AD15: =IF(RTD("cqg.rtd", ,"ContractData",AC15, "PerCentNetLastTrade",, "T")>0,"",IFERROR(RTD("cqg.rtd", ,"ContractData",AC15, "PerCentNetLastTrade",, "T")/100,"")) ->  | AE15: =IF(AD15>0,"",IFERROR(RTD("cqg.rtd", ,"ContractData",AC15, "LongDescription",, "T"),"")) ->  | AF15: ="" ->  | AH15: https://finance.yahoo.com/quote/OKLO
A16: =IF(Symbols!A16="","",Symbols!A16) ->  | D16: =IF(A16="","",RTD("cqg.rtd", ,"ContractData",C16, "LongDescription",, "T")) ->  | H16: =IF(A16="","",RTD("cqg.rtd", ,"ContractData",C16, "LastTradeToday",, "T")) ->  | I16: =IF(A16="","",RTD("cqg.rtd", ,"ContractData",C16, "NetLastTradeToday",, "T")) ->  | J16: =IF(A16="","",IFERROR(RTD("cqg.rtd",,"StudyData",A16, "PCB","BaseType=Index,Index=1", "Close", "A",,"all",,,,"T")/100,"")) ->  | K16: =IF(A16="","",RTD("cqg.rtd", ,"ContractData", C16, "T_CVol",, "T")) ->  | L16: 16 | M16: =IFERROR(RANK($J16,INDIRECT(("$J$"&"1"&":$J$"&$A$103)))+COUNTIF($J$1:J16,J16)-1,"") -> 
A17: =IF(Symbols!A17="","",Symbols!A17) ->  | D17: =IF(A17="","",RTD("cqg.rtd", ,"ContractData",C17, "LongDescription",, "T")) ->  | H17: =IF(A17="","",RTD("cqg.rtd", ,"ContractData",C17, "LastTradeToday",, "T")) ->  | I17: =IF(A17="","",RTD("cqg.rtd", ,"ContractData",C17, "NetLastTradeToday",, "T")) ->  | J17: =IF(A17="","",IFERROR(RTD("cqg.rtd",,"StudyData",A17, "PCB","BaseType=Index,Index=1", "Close", "A",,"all",,,,"T")/100,"")) ->  | K17: =IF(A17="","",RTD("cqg.rtd", ,"ContractData", C17, "T_CVol",, "T")) ->  | L17: 17 | M17: =IFERROR(RANK($J17,INDIRECT(("$J$"&"1"&":$J$"&$A$103)))+COUNTIF($J$1:J17,J17)-1,"") -> 
A18: =IF(Symbols!A18="","",Symbols!A18) ->  | D18: =IF(A18="","",RTD("cqg.rtd", ,"ContractData",C18, "LongDescription",, "T")) ->  | H18: =IF(A18="","",RTD("cqg.rtd", ,"ContractData",C18, "LastTradeToday",, "T")) ->  | I18: =IF(A18="","",RTD("cqg.rtd", ,"ContractData",C18, "NetLastTradeToday",, "T")) ->  | J18: =IF(A18="","",IFERROR(RTD("cqg.rtd",,"StudyData",A18, "PCB","BaseType=Index,Index=1", "Close", "A",,"all",,,,"T")/100,"")) ->  | K18: =IF(A18="","",RTD("cqg.rtd", ,"ContractData", C18, "T_CVol",, "T")) ->  | L18: 18 | M18: =IFERROR(RANK($J18,INDIRECT(("$J$"&"1"&":$J$"&$A$103)))+COUNTIF($J$1:J18,J18)-1,"") -> 
A19: =IF(Symbols!A19="","",Symbols!A19) ->  | D19: =IF(A19="","",RTD("cqg.rtd", ,"ContractData",C19, "LongDescription",, "T")) ->  | H19: =IF(A19="","",RTD("cqg.rtd", ,"ContractData",C19, "LastTradeToday",, "T")) ->  | I19: =IF(A19="","",RTD("cqg.rtd", ,"ContractData",C19, "NetLastTradeToday",, "T")) ->  | J19: =IF(A19="","",IFERROR(RTD("cqg.rtd",,"StudyData",A19, "PCB","BaseType=Index,Index=1", "Close", "A",,"all",,,,"T")/100,"")) ->  | K19: =IF(A19="","",RTD("cqg.rtd", ,"ContractData", C19, "T_CVol",, "T")) ->  | L19: 19 | M19: =IFERROR(RANK($J19,INDIRECT(("$J$"&"1"&":$J$"&$A$103)))+COUNTIF($J$1:J19,J19)-1,"") -> 
A20: =IF(Symbols!A20="","",Symbols!A20) ->  | D20: =IF(A20="","",RTD("cqg.rtd", ,"ContractData",C20, "LongDescription",, "T")) ->  | H20: =IF(A20="","",RTD("cqg.rtd", ,"ContractData",C20, "LastTradeToday",, "T")) ->  | I20: =IF(A20="","",RTD("cqg.rtd", ,"ContractData",C20, "NetLastTradeToday",, "T")) ->  | J20: =IF(A20="","",IFERROR(RTD("cqg.rtd",,"StudyData",A20, "PCB","BaseType=Index,Index=1", "Close", "A",,"all",,,,"T")/100,"")) ->  | K20: =IF(A20="","",RTD("cqg.rtd", ,"ContractData", C20, "T_CVol",, "T")) ->  | L20: 20 | M20: =IFERROR(RANK($J20,INDIRECT(("$J$"&"1"&":$J$"&$A$103)))+COUNTIF($J$1:J20,J20)-1,"") -> 
A21: =IF(Symbols!A21="","",Symbols!A21) ->  | D21: =IF(A21="","",RTD("cqg.rtd", ,"ContractData",C21, "LongDescription",, "T")) ->  | H21: =IF(A21="","",RTD("cqg.rtd", ,"ContractData",C21, "LastTradeToday",, "T")) ->  | I21: =IF(A21="","",RTD("cqg.rtd", ,"ContractData",C21, "NetLastTradeToday",, "T")) ->  | J21: =IF(A21="","",IFERROR(RTD("cqg.rtd",,"StudyData",A21, "PCB","BaseType=Index,Index=1", "Close", "A",,"all",,,,"T")/100,"")) ->  | K21: =IF(A21="","",RTD("cqg.rtd", ,"ContractData", C21, "T_CVol",, "T")) ->  | L21: 21 | M21: =IFERROR(RANK($J21,INDIRECT(("$J$"&"1"&":$J$"&$A$103)))+COUNTIF($J$1:J21,J21)-1,"") -> 
A22: =IF(Symbols!A22="","",Symbols!A22) ->  | D22: =IF(A22="","",RTD("cqg.rtd", ,"ContractData",C22, "LongDescription",, "T")) ->  | H22: =IF(A22="","",RTD("cqg.rtd", ,"ContractData",C22, "LastTradeToday",, "T")) ->  | I22: =IF(A22="","",RTD("cqg.rtd", ,"ContractData",C22, "NetLastTradeToday",, "T")) ->  | J22: =IF(A22="","",IFERROR(RTD("cqg.rtd",,"StudyData",A22, "PCB","BaseType=Index,Index=1", "Close", "A",,"all",,,,"T")/100,"")) ->  | K22: =IF(A22="","",RTD("cqg.rtd", ,"ContractData", C22, "T_CVol",, "T")) ->  | L22: 22 | M22: =IFERROR(RANK($J22,INDIRECT(("$J$"&"1"&":$J$"&$A$103)))+COUNTIF($J$1:J22,J22)-1,"") -> 
A23: =IF(Symbols!A23="","",Symbols!A23) ->  | D23: =IF(A23="","",RTD("cqg.rtd", ,"ContractData",C23, "LongDescription",, "T")) ->  | H23: =IF(A23="","",RTD("cqg.rtd", ,"ContractData",C23, "LastTradeToday",, "T")) ->  | I23: =IF(A23="","",RTD("cqg.rtd", ,"ContractData",C23, "NetLastTradeToday",, "T")) ->  | J23: =IF(A23="","",IFERROR(RTD("cqg.rtd",,"StudyData",A23, "PCB","BaseType=Index,Index=1", "Close", "A",,"all",,,,"T")/100,"")) ->  | K23: =IF(A23="","",RTD("cqg.rtd", ,"ContractData", C23, "T_CVol",, "T")) ->  | L23: 23 | M23: =IFERROR(RANK($J23,INDIRECT(("$J$"&"1"&":$J$"&$A$103)))+COUNTIF($J$1:J23,J23)-1,"") -> 
A24: =IF(Symbols!A24="","",Symbols!A24) ->  | D24: =IF(A24="","",RTD("cqg.rtd", ,"ContractData",C24, "LongDescription",, "T")) ->  | H24: =IF(A24="","",RTD("cqg.rtd", ,"ContractData",C24, "LastTradeToday",, "T")) ->  | I24: =IF(A24="","",RTD("cqg.rtd", ,"ContractData",C24, "NetLastTradeToday",, "T")) ->  | J24: =IF(A24="","",IFERROR(RTD("cqg.rtd",,"StudyData",A24, "PCB","BaseType=Index,Index=1", "Close", "A",,"all",,,,"T")/100,"")) ->  | K24: =IF(A24="","",RTD("cqg.rtd", ,"ContractData", C24, "T_CVol",, "T")) ->  | L24: 24 | M24: =IFERROR(RANK($J24,INDIRECT(("$J$"&"1"&":$J$"&$A$103)))+COUNTIF($J$1:J24,J24)-1,"") -> 
A25: =IF(Symbols!A25="","",Symbols!A25) ->  | D25: =IF(A25="","",RTD("cqg.rtd", ,"ContractData",C25, "LongDescription",, "T")) ->  | H25: =IF(A25="","",RTD("cqg.rtd", ,"ContractData",C25, "LastTradeToday",, "T")) ->  | I25: =IF(A25="","",RTD("cqg.rtd", ,"ContractData",C25, "NetLastTradeToday",, "T")) ->  | J25: =IF(A25="","",IFERROR(RTD("cqg.rtd",,"StudyData",A25, "PCB","BaseType=Index,Index=1", "Close", "A",,"all",,,,"T")/100,"")) ->  | K25: =IF(A25="","",RTD("cqg.rtd", ,"ContractData", C25, "T_CVol",, "T")) ->  | L25: 25 | M25: =IFERROR(RANK($J25,INDIRECT(("$J$"&"1"&":$J$"&$A$103)))+COUNTIF($J$1:J25,J25)-1,"") -> 
A26: =IF(Symbols!A26="","",Symbols!A26) ->  | D26: =IF(A26="","",RTD("cqg.rtd", ,"ContractData",C26, "LongDescription",, "T")) ->  | H26: =IF(A26="","",RTD("cqg.rtd", ,"ContractData",C26, "LastTradeToday",, "T")) ->  | I26: =IF(A26="","",RTD("cqg.rtd", ,"ContractData",C26, "NetLastTradeToday",, "T")) ->  | J26: =IF(A26="","",IFERROR(RTD("cqg.rtd",,"StudyData",A26, "PCB","BaseType=Index,Index=1", "Close", "A",,"all",,,,"T")/100,"")) ->  | K26: =IF(A26="","",RTD("cqg.rtd", ,"ContractData", C26, "T_CVol",, "T")) ->  | L26: 26 | M26: =IFERROR(RANK($J26,INDIRECT(("$J$"&"1"&":$J$"&$A$103)))+COUNTIF($J$1:J26,J26)-1,"") -> 
A27: =IF(Symbols!A27="","",Symbols!A27) ->  | D27: =IF(A27="","",RTD("cqg.rtd", ,"ContractData",C27, "LongDescription",, "T")) ->  | H27: =IF(A27="","",RTD("cqg.rtd", ,"ContractData",C27, "LastTradeToday",, "T")) ->  | I27: =IF(A27="","",RTD("cqg.rtd", ,"ContractData",C27, "NetLastTradeToday",, "T")) ->  | J27: =IF(A27="","",IFERROR(RTD("cqg.rtd",,"StudyData",A27, "PCB","BaseType=Index,Index=1", "Close", "A",,"all",,,,"T")/100,"")) ->  | K27: =IF(A27="","",RTD("cqg.rtd", ,"ContractData", C27, "T_CVol",, "T")) ->  | L27: 27 | M27: =IFERROR(RANK($J27,INDIRECT(("$J$"&"1"&":$J$"&$A$103)))+COUNTIF($J$1:J27,J27)-1,"") -> 
A28: =IF(Symbols!A28="","",Symbols!A28) ->  | D28: =IF(A28="","",RTD("cqg.rtd", ,"ContractData",C28, "LongDescription",, "T")) ->  | H28: =IF(A28="","",RTD("cqg.rtd", ,"ContractData",C28, "LastTradeToday",, "T")) ->  | I28: =IF(A28="","",RTD("cqg.rtd", ,"ContractData",C28, "NetLastTradeToday",, "T")) ->  | J28: =IF(A28="","",IFERROR(RTD("cqg.rtd",,"StudyData",A28, "PCB","BaseType=Index,Index=1", "Close", "A",,"all",,,,"T")/100,"")) ->  | K28: =IF(A28="","",RTD("cqg.rtd", ,"ContractData", C28, "T_CVol",, "T")) ->  | L28: 28 | M28: =IFERROR(RANK($J28,INDIRECT(("$J$"&"1"&":$J$"&$A$103)))+COUNTIF($J$1:J28,J28)-1,"") -> 
A29: =IF(Symbols!A29="","",Symbols!A29) ->  | D29: =IF(A29="","",RTD("cqg.rtd", ,"ContractData",C29, "LongDescription",, "T")) ->  | H29: =IF(A29="","",RTD("cqg.rtd", ,"ContractData",C29, "LastTradeToday",, "T")) ->  | I29: =IF(A29="","",RTD("cqg.rtd", ,"ContractData",C29, "NetLastTradeToday",, "T")) ->  | J29: =IF(A29="","",IFERROR(RTD("cqg.rtd",,"StudyData",A29, "PCB","BaseType=Index,Index=1", "Close", "A",,"all",,,,"T")/100,"")) ->  | K29: =IF(A29="","",RTD("cqg.rtd", ,"ContractData", C29, "T_CVol",, "T")) ->  | L29: 29 | M29: =IFERROR(RANK($J29,INDIRECT(("$J$"&"1"&":$J$"&$A$103)))+COUNTIF($J$1:J29,J29)-1,"") -> 
A30: =IF(Symbols!A30="","",Symbols!A30) ->  | D30: =IF(A30="","",RTD("cqg.rtd", ,"ContractData",C30, "LongDescription",, "T")) ->  | H30: =IF(A30="","",RTD("cqg.rtd", ,"ContractData",C30, "LastTradeToday",, "T")) ->  | I30: =IF(A30="","",RTD("cqg.rtd", ,"ContractData",C30, "NetLastTradeToday",, "T")) ->  | J30: =IF(A30="","",IFERROR(RTD("cqg.rtd",,"StudyData",A30, "PCB","BaseType=Index,Index=1", "Close", "A",,"all",,,,"T")/100,"")) ->  | K30: =IF(A30="","",RTD("cqg.rtd", ,"ContractData", C30, "T_CVol",, "T")) ->  | L30: 30 | M30: =IFERROR(RANK($J30,INDIRECT(("$J$"&"1"&":$J$"&$A$103)))+COUNTIF($J$1:J30,J30)-1,"") -> 
A31: =IF(Symbols!A31="","",Symbols!A31) ->  | D31: =IF(A31="","",RTD("cqg.rtd", ,"ContractData",C31, "LongDescription",, "T")) ->  | H31: =IF(A31="","",RTD("cqg.rtd", ,"ContractData",C31, "LastTradeToday",, "T")) ->  | I31: =IF(A31="","",RTD("cqg.rtd", ,"ContractData",C31, "NetLastTradeToday",, "T")) ->  | J31: =IF(A31="","",IFERROR(RTD("cqg.rtd",,"StudyData",A31, "PCB","BaseType=Index,Index=1", "Close", "A",,"all",,,,"T")/100,"")) ->  | K31: =IF(A31="","",RTD("cqg.rtd", ,"ContractData", C31, "T_CVol",, "T")) ->  | L31: 31 | M31: =IFERROR(RANK($J31,INDIRECT(("$J$"&"1"&":$J$"&$A$103)))+COUNTIF($J$1:J31,J31)-1,"") -> 
A32: =IF(Symbols!A32="","",Symbols!A32) ->  | D32: =IF(A32="","",RTD("cqg.rtd", ,"ContractData",C32, "LongDescription",, "T")) ->  | H32: =IF(A32="","",RTD("cqg.rtd", ,"ContractData",C32, "LastTradeToday",, "T")) ->  | I32: =IF(A32="","",RTD("cqg.rtd", ,"ContractData",C32, "NetLastTradeToday",, "T")) ->  | J32: =IF(A32="","",IFERROR(RTD("cqg.rtd",,"StudyData",A32, "PCB","BaseType=Index,Index=1", "Close", "A",,"all",,,,"T")/100,"")) ->  | K32: =IF(A32="","",RTD("cqg.rtd", ,"ContractData", C32, "T_CVol",, "T")) ->  | L32: 32 | M32: =IFERROR(RANK($J32,INDIRECT(("$J$"&"1"&":$J$"&$A$103)))+COUNTIF($J$1:J32,J32)-1,"") -> 
A33: =IF(Symbols!A33="","",Symbols!A33) ->  | D33: =IF(A33="","",RTD("cqg.rtd", ,"ContractData",C33, "LongDescription",, "T")) ->  | H33: =IF(A33="","",RTD("cqg.rtd", ,"ContractData",C33, "LastTradeToday",, "T")) ->  | I33: =IF(A33="","",RTD("cqg.rtd", ,"ContractData",C33, "NetLastTradeToday",, "T")) ->  | J33: =IF(A33="","",IFERROR(RTD("cqg.rtd",,"StudyData",A33, "PCB","BaseType=Index,Index=1", "Close", "A",,"all",,,,"T")/100,"")) ->  | K33: =IF(A33="","",RTD("cqg.rtd", ,"ContractData", C33, "T_CVol",, "T")) ->  | L33: 33 | M33: =IFERROR(RANK($J33,INDIRECT(("$J$"&"1"&":$J$"&$A$103)))+COUNTIF($J$1:J33,J33)-1,"") -> 
A34: =IF(Symbols!A34="","",Symbols!A34) ->  | D34: =IF(A34="","",RTD("cqg.rtd", ,"ContractData",C34, "LongDescription",, "T")) ->  | H34: =IF(A34="","",RTD("cqg.rtd", ,"ContractData",C34, "LastTradeToday",, "T")) ->  | I34: =IF(A34="","",RTD("cqg.rtd", ,"ContractData",C34, "NetLastTradeToday",, "T")) ->  | J34: =IF(A34="","",IFERROR(RTD("cqg.rtd",,"StudyData",A34, "PCB","BaseType=Index,Index=1", "Close", "A",,"all",,,,"T")/100,"")) ->  | K34: =IF(A34="","",RTD("cqg.rtd", ,"ContractData", C34, "T_CVol",, "T")) ->  | L34: 34 | M34: =IFERROR(RANK($J34,INDIRECT(("$J$"&"1"&":$J$"&$A$103)))+COUNTIF($J$1:J34,J34)-1,"") -> 
A35: =IF(Symbols!A35="","",Symbols!A35) ->  | D35: =IF(A35="","",RTD("cqg.rtd", ,"ContractData",C35, "LongDescription",, "T")) ->  | H35: =IF(A35="","",RTD("cqg.rtd", ,"ContractData",C35, "LastTradeToday",, "T")) ->  | I35: =IF(A35="","",RTD("cqg.rtd", ,"ContractData",C35, "NetLastTradeToday",, "T")) ->  | J35: =IF(A35="","",IFERROR(RTD("cqg.rtd",,"StudyData",A35, "PCB","BaseType=Index,Index=1", "Close", "A",,"all",,,,"T")/100,"")) ->  | K35: =IF(A35="","",RTD("cqg.rtd", ,"ContractData", C35, "T_CVol",, "T")) ->  | L35: 35 | M35: =IFERROR(RANK($J35,INDIRECT(("$J$"&"1"&":$J$"&$A$103)))+COUNTIF($J$1:J35,J35)-1,"") -> 
A36: =IF(Symbols!A36="","",Symbols!A36) ->  | D36: =IF(A36="","",RTD("cqg.rtd", ,"ContractData",C36, "LongDescription",, "T")) ->  | H36: =IF(A36="","",RTD("cqg.rtd", ,"ContractData",C36, "LastTradeToday",, "T")) ->  | I36: =IF(A36="","",RTD("cqg.rtd", ,"ContractData",C36, "NetLastTradeToday",, "T")) ->  | J36: =IF(A36="","",IFERROR(RTD("cqg.rtd",,"StudyData",A36, "PCB","BaseType=Index,Index=1", "Close", "A",,"all",,,,"T")/100,"")) ->  | K36: =IF(A36="","",RTD("cqg.rtd", ,"ContractData", C36, "T_CVol",, "T")) ->  | L36: 36 | M36: =IFERROR(RANK($J36,INDIRECT(("$J$"&"1"&":$J$"&$A$103)))+COUNTIF($J$1:J36,J36)-1,"") -> 
A37: =IF(Symbols!A37="","",Symbols!A37) ->  | D37: =IF(A37="","",RTD("cqg.rtd", ,"ContractData",C37, "LongDescription",, "T")) ->  | H37: =IF(A37="","",RTD("cqg.rtd", ,"ContractData",C37, "LastTradeToday",, "T")) ->  | I37: =IF(A37="","",RTD("cqg.rtd", ,"ContractData",C37, "NetLastTradeToday",, "T")) ->  | J37: =IF(A37="","",IFERROR(RTD("cqg.rtd",,"StudyData",A37, "PCB","BaseType=Index,Index=1", "Close", "A",,"all",,,,"T")/100,"")) ->  | K37: =IF(A37="","",RTD("cqg.rtd", ,"ContractData", C37, "T_CVol",, "T")) ->  | L37: 37 | M37: =IFERROR(RANK($J37,INDIRECT(("$J$"&"1"&":$J$"&$A$103)))+COUNTIF($J$1:J37,J37)-1,"") -> 
A38: =IF(Symbols!A38="","",Symbols!A38) ->  | D38: =IF(A38="","",RTD("cqg.rtd", ,"ContractData",C38, "LongDescription",, "T")) ->  | H38: =IF(A38="","",RTD("cqg.rtd", ,"ContractData",C38, "LastTradeToday",, "T")) ->  | I38: =IF(A38="","",RTD("cqg.rtd", ,"ContractData",C38, "NetLastTradeToday",, "T")) ->  | J38: =IF(A38="","",IFERROR(RTD("cqg.rtd",,"StudyData",A38, "PCB","BaseType=Index,Index=1", "Close", "A",,"all",,,,"T")/100,"")) ->  | K38: =IF(A38="","",RTD("cqg.rtd", ,"ContractData", C38, "T_CVol",, "T")) ->  | L38: 38 | M38: =IFERROR(RANK($J38,INDIRECT(("$J$"&"1"&":$J$"&$A$103)))+COUNTIF($J$1:J38,J38)-1,"") -> 
A39: =IF(Symbols!A39="","",Symbols!A39) ->  | D39: =IF(A39="","",RTD("cqg.rtd", ,"ContractData",C39, "LongDescription",, "T")) ->  | H39: =IF(A39="","",RTD("cqg.rtd", ,"ContractData",C39, "LastTradeToday",, "T")) ->  | I39: =IF(A39="","",RTD("cqg.rtd", ,"ContractData",C39, "NetLastTradeToday",, "T")) ->  | J39: =IF(A39="","",IFERROR(RTD("cqg.rtd",,"StudyData",A39, "PCB","BaseType=Index,Index=1", "Close", "A",,"all",,,,"T")/100,"")) ->  | K39: =IF(A39="","",RTD("cqg.rtd", ,"ContractData", C39, "T_CVol",, "T")) ->  | L39: 39 | M39: =IFERROR(RANK($J39,INDIRECT(("$J$"&"1"&":$J$"&$A$103)))+COUNTIF($J$1:J39,J39)-1,"") -> 
A40: =IF(Symbols!A40="","",Symbols!A40) ->  | D40: =IF(A40="","",RTD("cqg.rtd", ,"ContractData",C40, "LongDescription",, "T")) ->  | H40: =IF(A40="","",RTD("cqg.rtd", ,"ContractData",C40, "LastTradeToday",, "T")) ->  | I40: =IF(A40="","",RTD("cqg.rtd", ,"ContractData",C40, "NetLastTradeToday",, "T")) ->  | J40: =IF(A40="","",IFERROR(RTD("cqg.rtd",,"StudyData",A40, "PCB","BaseType=Index,Index=1", "Close", "A",,"all",,,,"T")/100,"")) ->  | K40: =IF(A40="","",RTD("cqg.rtd", ,"ContractData", C40, "T_CVol",, "T")) ->  | L40: 40 | M40: =IFERROR(RANK($J40,INDIRECT(("$J$"&"1"&":$J$"&$A$103)))+COUNTIF($J$1:J40,J40)-1,"") -> 
A41: =IF(Symbols!A41="","",Symbols!A41) ->  | D41: =IF(A41="","",RTD("cqg.rtd", ,"ContractData",C41, "LongDescription",, "T")) ->  | H41: =IF(A41="","",RTD("cqg.rtd", ,"ContractData",C41, "LastTradeToday",, "T")) ->  | I41: =IF(A41="","",RTD("cqg.rtd", ,"ContractData",C41, "NetLastTradeToday",, "T")) ->  | J41: =IF(A41="","",IFERROR(RTD("cqg.rtd",,"StudyData",A41, "PCB","BaseType=Index,Index=1", "Close", "A",,"all",,,,"T")/100,"")) ->  | K41: =IF(A41="","",RTD("cqg.rtd", ,"ContractData", C41, "T_CVol",, "T")) ->  | L41: 41 | M41: =IFERROR(RANK($J41,INDIRECT(("$J$"&"1"&":$J$"&$A$103)))+COUNTIF($J$1:J41,J41)-1,"") -> 
A42: =IF(Symbols!A42="","",Symbols!A42) ->  | D42: =IF(A42="","",RTD("cqg.rtd", ,"ContractData",C42, "LongDescription",, "T")) ->  | H42: =IF(A42="","",RTD("cqg.rtd", ,"ContractData",C42, "LastTradeToday",, "T")) ->  | I42: =IF(A42="","",RTD("cqg.rtd", ,"ContractData",C42, "NetLastTradeToday",, "T")) ->  | J42: =IF(A42="","",IFERROR(RTD("cqg.rtd",,"StudyData",A42, "PCB","BaseType=Index,Index=1", "Close", "A",,"all",,,,"T")/100,"")) ->  | K42: =IF(A42="","",RTD("cqg.rtd", ,"ContractData", C42, "T_CVol",, "T")) ->  | L42: 42 | M42: =IFERROR(RANK($J42,INDIRECT(("$J$"&"1"&":$J$"&$A$103)))+COUNTIF($J$1:J42,J42)-1,"") -> 
A43: =IF(Symbols!A43="","",Symbols!A43) ->  | D43: =IF(A43="","",RTD("cqg.rtd", ,"ContractData",C43, "LongDescription",, "T")) ->  | H43: =IF(A43="","",RTD("cqg.rtd", ,"ContractData",C43, "LastTradeToday",, "T")) ->  | I43: =IF(A43="","",RTD("cqg.rtd", ,"ContractData",C43, "NetLastTradeToday",, "T")) ->  | J43: =IF(A43="","",IFERROR(RTD("cqg.rtd",,"StudyData",A43, "PCB","BaseType=Index,Index=1", "Close", "A",,"all",,,,"T")/100,"")) ->  | K43: =IF(A43="","",RTD("cqg.rtd", ,"ContractData", C43, "T_CVol",, "T")) ->  | L43: 43 | M43: =IFERROR(RANK($J43,INDIRECT(("$J$"&"1"&":$J$"&$A$103)))+COUNTIF($J$1:J43,J43)-1,"") -> 
A44: =IF(Symbols!A44="","",Symbols!A44) ->  | D44: =IF(A44="","",RTD("cqg.rtd", ,"ContractData",C44, "LongDescription",, "T")) ->  | H44: =IF(A44="","",RTD("cqg.rtd", ,"ContractData",C44, "LastTradeToday",, "T")) ->  | I44: =IF(A44="","",RTD("cqg.rtd", ,"ContractData",C44, "NetLastTradeToday",, "T")) ->  | J44: =IF(A44="","",IFERROR(RTD("cqg.rtd",,"StudyData",A44, "PCB","BaseType=Index,Index=1", "Close", "A",,"all",,,,"T")/100,"")) ->  | K44: =IF(A44="","",RTD("cqg.rtd", ,"ContractData", C44, "T_CVol",, "T")) ->  | L44: 44 | M44: =IFERROR(RANK($J44,INDIRECT(("$J$"&"1"&":$J$"&$A$103)))+COUNTIF($J$1:J44,J44)-1,"") -> 
A45: =IF(Symbols!A45="","",Symbols!A45) ->  | D45: =IF(A45="","",RTD("cqg.rtd", ,"ContractData",C45, "LongDescription",, "T")) ->  | H45: =IF(A45="","",RTD("cqg.rtd", ,"ContractData",C45, "LastTradeToday",, "T")) ->  | I45: =IF(A45="","",RTD("cqg.rtd", ,"ContractData",C45, "NetLastTradeToday",, "T")) ->  | J45: =IF(A45="","",IFERROR(RTD("cqg.rtd",,"StudyData",A45, "PCB","BaseType=Index,Index=1", "Close", "A",,"all",,,,"T")/100,"")) ->  | K45: =IF(A45="","",RTD("cqg.rtd", ,"ContractData", C45, "T_CVol",, "T")) ->  | L45: 45 | M45: =IFERROR(RANK($J45,INDIRECT(("$J$"&"1"&":$J$"&$A$103)))+COUNTIF($J$1:J45,J45)-1,"") -> 
A46: =IF(Symbols!A46="","",Symbols!A46) ->  | D46: =IF(A46="","",RTD("cqg.rtd", ,"ContractData",C46, "LongDescription",, "T")) ->  | H46: =IF(A46="","",RTD("cqg.rtd", ,"ContractData",C46, "LastTradeToday",, "T")) ->  | I46: =IF(A46="","",RTD("cqg.rtd", ,"ContractData",C46, "NetLastTradeToday",, "T")) ->  | J46: =IF(A46="","",IFERROR(RTD("cqg.rtd",,"StudyData",A46, "PCB","BaseType=Index,Index=1", "Close", "A",,"all",,,,"T")/100,"")) ->  | K46: =IF(A46="","",RTD("cqg.rtd", ,"ContractData", C46, "T_CVol",, "T")) ->  | L46: 46 | M46: =IFERROR(RANK($J46,INDIRECT(("$J$"&"1"&":$J$"&$A$103)))+COUNTIF($J$1:J46,J46)-1,"") -> 
A47: =IF(Symbols!A47="","",Symbols!A47) ->  | D47: =IF(A47="","",RTD("cqg.rtd", ,"ContractData",C47, "LongDescription",, "T")) ->  | H47: =IF(A47="","",RTD("cqg.rtd", ,"ContractData",C47, "LastTradeToday",, "T")) ->  | I47: =IF(A47="","",RTD("cqg.rtd", ,"ContractData",C47, "NetLastTradeToday",, "T")) ->  | J47: =IF(A47="","",IFERROR(RTD("cqg.rtd",,"StudyData",A47, "PCB","BaseType=Index,Index=1", "Close", "A",,"all",,,,"T")/100,"")) ->  | K47: =IF(A47="","",RTD("cqg.rtd", ,"ContractData", C47, "T_CVol",, "T")) ->  | L47: 47 | M47: =IFERROR(RANK($J47,INDIRECT(("$J$"&"1"&":$J$"&$A$103)))+COUNTIF($J$1:J47,J47)-1,"") -> 
A48: =IF(Symbols!A48="","",Symbols!A48) ->  | D48: =IF(A48="","",RTD("cqg.rtd", ,"ContractData",C48, "LongDescription",, "T")) ->  | H48: =IF(A48="","",RTD("cqg.rtd", ,"ContractData",C48, "LastTradeToday",, "T")) ->  | I48: =IF(A48="","",RTD("cqg.rtd", ,"ContractData",C48, "NetLastTradeToday",, "T")) ->  | J48: =IF(A48="","",IFERROR(RTD("cqg.rtd",,"StudyData",A48, "PCB","BaseType=Index,Index=1", "Close", "A",,"all",,,,"T")/100,"")) ->  | K48: =IF(A48="","",RTD("cqg.rtd", ,"ContractData", C48, "T_CVol",, "T")) ->  | L48: 48 | M48: =IFERROR(RANK($J48,INDIRECT(("$J$"&"1"&":$J$"&$A$103)))+COUNTIF($J$1:J48,J48)-1,"") -> 
A49: =IF(Symbols!A49="","",Symbols!A49) ->  | D49: =IF(A49="","",RTD("cqg.rtd", ,"ContractData",C49, "LongDescription",, "T")) ->  | H49: =IF(A49="","",RTD("cqg.rtd", ,"ContractData",C49, "LastTradeToday",, "T")) ->  | I49: =IF(A49="","",RTD("cqg.rtd", ,"ContractData",C49, "NetLastTradeToday",, "T")) ->  | J49: =IF(A49="","",IFERROR(RTD("cqg.rtd",,"StudyData",A49, "PCB","BaseType=Index,Index=1", "Close", "A",,"all",,,,"T")/100,"")) ->  | K49: =IF(A49="","",RTD("cqg.rtd", ,"ContractData", C49, "T_CVol",, "T")) ->  | L49: 49 | M49: =IFERROR(RANK($J49,INDIRECT(("$J$"&"1"&":$J$"&$A$103)))+COUNTIF($J$1:J49,J49)-1,"") -> 
A50: =IF(Symbols!A50="","",Symbols!A50) ->  | D50: =IF(A50="","",RTD("cqg.rtd", ,"ContractData",C50, "LongDescription",, "T")) ->  | H50: =IF(A50="","",RTD("cqg.rtd", ,"ContractData",C50, "LastTradeToday",, "T")) ->  | I50: =IF(A50="","",RTD("cqg.rtd", ,"ContractData",C50, "NetLastTradeToday",, "T")) ->  | J50: =IF(A50="","",IFERROR(RTD("cqg.rtd",,"StudyData",A50, "PCB","BaseType=Index,Index=1", "Close", "A",,"all",,,,"T")/100,"")) ->  | K50: =IF(A50="","",RTD("cqg.rtd", ,"ContractData", C50, "T_CVol",, "T")) ->  | L50: 50 | M50: =IFERROR(RANK($J50,INDIRECT(("$J$"&"1"&":$J$"&$A$103)))+COUNTIF($J$1:J50,J50)-1,"") -> 
A51: =IF(Symbols!A51="","",Symbols!A51) ->  | D51: =IF(A51="","",RTD("cqg.rtd", ,"ContractData",C51, "LongDescription",, "T")) ->  | H51: =IF(A51="","",RTD("cqg.rtd", ,"ContractData",C51, "LastTradeToday",, "T")) ->  | I51: =IF(A51="","",RTD("cqg.rtd", ,"ContractData",C51, "NetLastTradeToday",, "T")) ->  | J51: =IF(A51="","",IFERROR(RTD("cqg.rtd",,"StudyData",A51, "PCB","BaseType=Index,Index=1", "Close", "A",,"all",,,,"T")/100,"")) ->  | K51: =IF(A51="","",RTD("cqg.rtd", ,"ContractData", C51, "T_CVol",, "T")) ->  | L51: 51 | M51: =IFERROR(RANK($J51,INDIRECT(("$J$"&"1"&":$J$"&$A$103)))+COUNTIF($J$1:J51,J51)-1,"") -> 
A52: =IF(Symbols!A52="","",Symbols!A52) ->  | D52: =IF(A52="","",RTD("cqg.rtd", ,"ContractData",C52, "LongDescription",, "T")) ->  | H52: =IF(A52="","",RTD("cqg.rtd", ,"ContractData",C52, "LastTradeToday",, "T")) ->  | I52: =IF(A52="","",RTD("cqg.rtd", ,"ContractData",C52, "NetLastTradeToday",, "T")) ->  | J52: =IF(A52="","",IFERROR(RTD("cqg.rtd",,"StudyData",A52, "PCB","BaseType=Index,Index=1", "Close", "A",,"all",,,,"T")/100,"")) ->  | K52: =IF(A52="","",RTD("cqg.rtd", ,"ContractData", C52, "T_CVol",, "T")) ->  | L52: 52 | M52: =IFERROR(RANK($J52,INDIRECT(("$J$"&"1"&":$J$"&$A$103)))+COUNTIF($J$1:J52,J52)-1,"") -> 
A53: =IF(Symbols!A53="","",Symbols!A53) ->  | D53: =IF(A53="","",RTD("cqg.rtd", ,"ContractData",C53, "LongDescription",, "T")) ->  | H53: =IF(A53="","",RTD("cqg.rtd", ,"ContractData",C53, "LastTradeToday",, "T")) ->  | I53: =IF(A53="","",RTD("cqg.rtd", ,"ContractData",C53, "NetLastTradeToday",, "T")) ->  | J53: =IF(A53="","",IFERROR(RTD("cqg.rtd",,"StudyData",A53, "PCB","BaseType=Index,Index=1", "Close", "A",,"all",,,,"T")/100,"")) ->  | K53: =IF(A53="","",RTD("cqg.rtd", ,"ContractData", C53, "T_CVol",, "T")) ->  | L53: 53 | M53: =IFERROR(RANK($J53,INDIRECT(("$J$"&"1"&":$J$"&$A$103)))+COUNTIF($J$1:J53,J53)-1,"") -> 
A54: =IF(Symbols!A54="","",Symbols!A54) ->  | D54: =IF(A54="","",RTD("cqg.rtd", ,"ContractData",C54, "LongDescription",, "T")) ->  | H54: =IF(A54="","",RTD("cqg.rtd", ,"ContractData",C54, "LastTradeToday",, "T")) ->  | I54: =IF(A54="","",RTD("cqg.rtd", ,"ContractData",C54, "NetLastTradeToday",, "T")) ->  | J54: =IF(A54="","",IFERROR(RTD("cqg.rtd",,"StudyData",A54, "PCB","BaseType=Index,Index=1", "Close", "A",,"all",,,,"T")/100,"")) ->  | K54: =IF(A54="","",RTD("cqg.rtd", ,"ContractData", C54, "T_CVol",, "T")) ->  | L54: 54 | M54: =IFERROR(RANK($J54,INDIRECT(("$J$"&"1"&":$J$"&$A$103)))+COUNTIF($J$1:J54,J54)-1,"") -> 
A55: =IF(Symbols!A55="","",Symbols!A55) ->  | D55: =IF(A55="","",RTD("cqg.rtd", ,"ContractData",C55, "LongDescription",, "T")) ->  | H55: =IF(A55="","",RTD("cqg.rtd", ,"ContractData",C55, "LastTradeToday",, "T")) ->  | I55: =IF(A55="","",RTD("cqg.rtd", ,"ContractData",C55, "NetLastTradeToday",, "T")) ->  | J55: =IF(A55="","",IFERROR(RTD("cqg.rtd",,"StudyData",A55, "PCB","BaseType=Index,Index=1", "Close", "A",,"all",,,,"T")/100,"")) ->  | K55: =IF(A55="","",RTD("cqg.rtd", ,"ContractData", C55, "T_CVol",, "T")) ->  | L55: 55 | M55: =IFERROR(RANK($J55,INDIRECT(("$J$"&"1"&":$J$"&$A$103)))+COUNTIF($J$1:J55,J55)-1,"") -> 
A56: =IF(Symbols!A56="","",Symbols!A56) ->  | D56: =IF(A56="","",RTD("cqg.rtd", ,"ContractData",C56, "LongDescription",, "T")) ->  | H56: =IF(A56="","",RTD("cqg.rtd", ,"ContractData",C56, "LastTradeToday",, "T")) ->  | I56: =IF(A56="","",RTD("cqg.rtd", ,"ContractData",C56, "NetLastTradeToday",, "T")) ->  | J56: =IF(A56="","",IFERROR(RTD("cqg.rtd",,"StudyData",A56, "PCB","BaseType=Index,Index=1", "Close", "A",,"all",,,,"T")/100,"")) ->  | K56: =IF(A56="","",RTD("cqg.rtd", ,"ContractData", C56, "T_CVol",, "T")) ->  | L56: 56 | M56: =IFERROR(RANK($J56,INDIRECT(("$J$"&"1"&":$J$"&$A$103)))+COUNTIF($J$1:J56,J56)-1,"") -> 
A57: =IF(Symbols!A57="","",Symbols!A57) ->  | D57: =IF(A57="","",RTD("cqg.rtd", ,"ContractData",C57, "LongDescription",, "T")) ->  | H57: =IF(A57="","",RTD("cqg.rtd", ,"ContractData",C57, "LastTradeToday",, "T")) ->  | I57: =IF(A57="","",RTD("cqg.rtd", ,"ContractData",C57, "NetLastTradeToday",, "T")) ->  | J57: =IF(A57="","",IFERROR(RTD("cqg.rtd",,"StudyData",A57, "PCB","BaseType=Index,Index=1", "Close", "A",,"all",,,,"T")/100,"")) ->  | K57: =IF(A57="","",RTD("cqg.rtd", ,"ContractData", C57, "T_CVol",, "T")) ->  | L57: 57 | M57: =IFERROR(RANK($J57,INDIRECT(("$J$"&"1"&":$J$"&$A$103)))+COUNTIF($J$1:J57,J57)-1,"") -> 
A58: =IF(Symbols!A58="","",Symbols!A58) ->  | D58: =IF(A58="","",RTD("cqg.rtd", ,"ContractData",C58, "LongDescription",, "T")) ->  | H58: =IF(A58="","",RTD("cqg.rtd", ,"ContractData",C58, "LastTradeToday",, "T")) ->  | I58: =IF(A58="","",RTD("cqg.rtd", ,"ContractData",C58, "NetLastTradeToday",, "T")) ->  | J58: =IF(A58="","",IFERROR(RTD("cqg.rtd",,"StudyData",A58, "PCB","BaseType=Index,Index=1", "Close", "A",,"all",,,,"T")/100,"")) ->  | K58: =IF(A58="","",RTD("cqg.rtd", ,"ContractData", C58, "T_CVol",, "T")) ->  | L58: 58 | M58: =IFERROR(RANK($J58,INDIRECT(("$J$"&"1"&":$J$"&$A$103)))+COUNTIF($J$1:J58,J58)-1,"") -> 
A59: =IF(Symbols!A59="","",Symbols!A59) ->  | D59: =IF(A59="","",RTD("cqg.rtd", ,"ContractData",C59, "LongDescription",, "T")) ->  | H59: =IF(A59="","",RTD("cqg.rtd", ,"ContractData",C59, "LastTradeToday",, "T")) ->  | I59: =IF(A59="","",RTD("cqg.rtd", ,"ContractData",C59, "NetLastTradeToday",, "T")) ->  | J59: =IF(A59="","",IFERROR(RTD("cqg.rtd",,"StudyData",A59, "PCB","BaseType=Index,Index=1", "Close", "A",,"all",,,,"T")/100,"")) ->  | K59: =IF(A59="","",RTD("cqg.rtd", ,"ContractData", C59, "T_CVol",, "T")) ->  | L59: 59 | M59: =IFERROR(RANK($J59,INDIRECT(("$J$"&"1"&":$J$"&$A$103)))+COUNTIF($J$1:J59,J59)-1,"") -> 
A60: =IF(Symbols!A60="","",Symbols!A60) ->  | D60: =IF(A60="","",RTD("cqg.rtd", ,"ContractData",C60, "LongDescription",, "T")) ->  | H60: =IF(A60="","",RTD("cqg.rtd", ,"ContractData",C60, "LastTradeToday",, "T")) ->  | I60: =IF(A60="","",RTD("cqg.rtd", ,"ContractData",C60, "NetLastTradeToday",, "T")) ->  | J60: =IF(A60="","",IFERROR(RTD("cqg.rtd",,"StudyData",A60, "PCB","BaseType=Index,Index=1", "Close", "A",,"all",,,,"T")/100,"")) ->  | K60: =IF(A60="","",RTD("cqg.rtd", ,"ContractData", C60, "T_CVol",, "T")) ->  | L60: 60 | M60: =IFERROR(RANK($J60,INDIRECT(("$J$"&"1"&":$J$"&$A$103)))+COUNTIF($J$1:J60,J60)-1,"") -> 
A103: =60-COUNTIF(A1:A60,"") -> 15 | B103: =SUM(B1:B101)/A103 -> 0.8
A104: ="$J$1:$J$"&A103 -> $J$1:$J$15

Sheet Symbols
A1: S.US.BWXT | B1: =IF(A1="","",RTD("cqg.rtd", ,"ContractData",A1, "LongDescription",, "T")) -> BWX Technologies, Inc. | C1: 1) From their Web site download | G1: https://www.ark-funds.com/funds/arkk
A2: S.US.CCJ | B2: =IF(A2="","",RTD("cqg.rtd", ,"ContractData",A2, "LongDescription",, "T")) -> Cameco Corp | C2: the CSV File.
A3: S.US.CEG | B3: =IF(A3="","",RTD("cqg.rtd", ,"ContractData",A3, "LongDescription",, "T")) -> Constellation Energy Corporation
A4: S.US.DNN | B4: =IF(A4="","",RTD("cqg.rtd", ,"ContractData",A4, "LongDescription",, "T")) -> Denison Mines Corp
A5: S.US.EU | B5: =IF(A5="","",RTD("cqg.rtd", ,"ContractData",A5, "LongDescription",, "T")) -> enCore Energy Corp.
A6: S.US.LEU | B6: =IF(A6="","",RTD("cqg.rtd", ,"ContractData",A6, "LongDescription",, "T")) -> Centrus Energy Corp.
A7: S.US.NNE | B7: =IF(A7="","",RTD("cqg.rtd", ,"ContractData",A7, "LongDescription",, "T")) -> Nano Nuclear Energy Inc.
A8: S.US.NXE | B8: =IF(A8="","",RTD("cqg.rtd", ,"ContractData",A8, "LongDescription",, "T")) -> Nexgen Energy Ltd.
A9: S.US.OKLO | B9: =IF(A9="","",RTD("cqg.rtd", ,"ContractData",A9, "LongDescription",, "T")) -> Oklo Inc.
A10: S.US.PCG | B10: =IF(A10="","",RTD("cqg.rtd", ,"ContractData",A10, "LongDescription",, "T")) -> PG&E Corp Hldg Co
A11: S.US.PEG | B11: =IF(A11="","",RTD("cqg.rtd", ,"ContractData",A11, "LongDescription",, "T")) -> Pub Svc Entrpr Grp Inc
A12: S.US.SMR | B12: =IF(A12="","",RTD("cqg.rtd", ,"ContractData",A12, "LongDescription",, "T")) -> NuScale Power Corporation
A13: S.US.UEC | B13: =IF(A13="","",RTD("cqg.rtd", ,"ContractData",A13, "LongDescription",, "T")) -> Uranium Energy Corp
A14: S.US.UUUU | B14: =IF(A14="","",RTD("cqg.rtd", ,"ContractData",A14, "LongDescription",, "T")) -> Energy Fuels Inc.
A15: S.US.NLR | B15: =IF(A15="","",RTD("cqg.rtd", ,"ContractData",A15, "LongDescription",, "T")) -> Market Vectors Uranium+Nuclear EnergyETF
B16: =IF(A16="","",RTD("cqg.rtd", ,"ContractData",A16, "LongDescription",, "T")) -> 
B17: =IF(A17="","",RTD("cqg.rtd", ,"ContractData",A17, "LongDescription",, "T")) -> 
B18: =IF(A18="","",RTD("cqg.rtd", ,"ContractData",A18, "LongDescription",, "T")) -> 
B19: =IF(A19="","",RTD("cqg.rtd", ,"ContractData",A19, "LongDescription",, "T")) -> 
B20: =IF(A20="","",RTD("cqg.rtd", ,"ContractData",A20, "LongDescription",, "T")) -> 
B21: =IF(A21="","",RTD("cqg.rtd", ,"ContractData",A21, "LongDescription",, "T")) -> 
B22: =IF(A22="","",RTD("cqg.rtd", ,"ContractData",A22, "LongDescription",, "T")) -> 
B23: =IF(A23="","",RTD("cqg.rtd", ,"ContractData",A23, "LongDescription",, "T")) -> 
B24: =IF(A24="","",RTD("cqg.rtd", ,"ContractData",A24, "LongDescription",, "T")) -> 
B25: =IF(A25="","",RTD("cqg.rtd", ,"ContractData",A25, "LongDescription",, "T")) ->  | C25: 2) Copy the Tickers from the file.
B26: =IF(A26="","",RTD("cqg.rtd", ,"ContractData",A26, "LongDescription",, "T")) ->  | C26: Merge "S.US." to the Tickers. ="S.US."&H26 | H26: NVDA
B27: =IF(A27="","",RTD("cqg.rtd", ,"ContractData",A27, "LongDescription",, "T")) ->  | G27: ="S.US."&H26 -> S.US.NVDA
B28: =IF(A28="","",RTD("cqg.rtd", ,"ContractData",A28, "LongDescription",, "T")) -> 
B29: =IF(A29="","",RTD("cqg.rtd", ,"ContractData",A29, "LongDescription",, "T")) ->  | C29: 3) Remove money market fund tickers.
B30: =IF(A30="","",RTD("cqg.rtd", ,"ContractData",A30, "LongDescription",, "T")) -> 
B31: =IF(A31="","",RTD("cqg.rtd", ,"ContractData",A31, "LongDescription",, "T")) ->  | C31: 4) Copy and Paste "As Values" the updated Ticker List to column A.
B32: =IF(A32="","",RTD("cqg.rtd", ,"ContractData",A32, "LongDescription",, "T")) -> 
B33: =IF(A33="","",RTD("cqg.rtd", ,"ContractData",A33, "LongDescription",, "T")) -> 
B34: =IF(A34="","",RTD("cqg.rtd", ,"ContractData",A34, "LongDescription",, "T")) -> 
B35: =IF(A35="","",RTD("cqg.rtd", ,"ContractData",A35, "LongDescription",, "T")) -> 
B36: =IF(A36="","",RTD("cqg.rtd", ,"ContractData",A36, "LongDescription",, "T")) -> 
B37: =IF(A37="","",RTD("cqg.rtd", ,"ContractData",A37, "LongDescription",, "T")) -> 
B38: =IF(A38="","",RTD("cqg.rtd", ,"ContractData",A38, "LongDescription",, "T")) -> 
B39: =IF(A39="","",RTD("cqg.rtd", ,"ContractData",A39, "LongDescription",, "T")) -> 
B40: =IF(A40="","",RTD("cqg.rtd", ,"ContractData",A40, "LongDescription",, "T")) -> 
B41: =IF(A41="","",RTD("cqg.rtd", ,"ContractData",A41, "LongDescription",, "T")) -> 
B42: =IF(A42="","",RTD("cqg.rtd", ,"ContractData",A42, "LongDescription",, "T")) -> 
B43: =IF(A43="","",RTD("cqg.rtd", ,"ContractData",A43, "LongDescription",, "T")) -> 
B44: =IF(A44="","",RTD("cqg.rtd", ,"ContractData",A44, "LongDescription",, "T")) -> 
B45: =IF(A45="","",RTD("cqg.rtd", ,"ContractData",A45, "LongDescription",, "T")) -> 
B46: =IF(A46="","",RTD("cqg.rtd", ,"ContractData",A46, "LongDescription",, "T")) -> 
B47: =IF(A47="","",RTD("cqg.rtd", ,"ContractData",A47, "LongDescription",, "T")) -> 
B48: =IF(A48="","",RTD("cqg.rtd", ,"ContractData",A48, "LongDescription",, "T")) -> 
B49: =IF(A49="","",RTD("cqg.rtd", ,"ContractData",A49, "LongDescription",, "T")) -> 
B50: =IF(A50="","",RTD("cqg.rtd", ,"ContractData",A50, "LongDescription",, "T")) -> 
B51: =IF(A51="","",RTD("cqg.rtd", ,"ContractData",A51, "LongDescription",, "T")) -> 
B52: =IF(A52="","",RTD("cqg.rtd", ,"ContractData",A52, "LongDescription",, "T")) -> 
B53: =IF(A53="","",RTD("cqg.rtd", ,"ContractData",A53, "LongDescription",, "T")) -> 
B54: =IF(A54="","",RTD("cqg.rtd", ,"ContractData",A54, "LongDescription",, "T")) -> 
B55: =IF(A55="","",RTD("cqg.rtd", ,"ContractData",A55, "LongDescription",, "T")) -> 
B56: =IF(A56="","",RTD("cqg.rtd", ,"ContractData",A56, "LongDescription",, "T")) -> 
B57: =IF(A57="","",RTD("cqg.rtd", ,"ContractData",A57, "LongDescription",, "T")) -> 
B58: =IF(A58="","",RTD("cqg.rtd", ,"ContractData",A58, "LongDescription",, "T")) -> 
B59: =IF(A59="","",RTD("cqg.rtd", ,"ContractData",A59, "LongDescription",, "T")) -> 
B60: =IF(A60="","",RTD("cqg.rtd", ,"ContractData",A60, "LongDescription",, "T")) -> 
